Service Delivery Area(T),Service Delivery Team(T),CostC,ExpenditureGroup(T),Account(T),Supplier Name(T),Trans Date,Amount
Adult Social Services,Access & Enablement,HHAC,Supplies & Services,Consultants Fees,My Support Broker,01/05/2015,"69,200.00"
Adult Social Services,Access & Enablement,HMAA,Supplies & Services,Service Contracts,SRCL LTD,29/05/2015,912.68
Adult Social Services,Access & Enablement,HMAN,Employees,Course Fees,West Mercia Police & Crime Commissioner,14/05/2015,174.00
Adult Social Services,Access & Enablement,HMAN,Premises-Related Expenditure,R&M -Buildings DLO Charge,A1 Glass & Glazing (Shropshire) Limited,29/05/2015,785.00
Adult Social Services,Access & Enablement,HMAX,Supplies & Services,Other Grants (Expenses),CAIS Ltd,14/05/2015,"1,610.00"
Adult Social Services,Access & Enablement,HMBG,Supplies & Services,Consultants Fees,SHROPSHIRE COUNCIL (55636551),29/05/2015,173.37
Adult Social Services,Access & Enablement,HMBG,Supplies & Services,Supportive Lodgings,Firs Riverside B & B,29/05/2015,490.00
Adult Social Services,Access & Enablement,HMBJ,Third Party Payments,Residential Expenditure,Firs Riverside B & B,14/05/2015,784.00
Adult Social Services,Access & Enablement,HMBK,Third Party Payments,Homecare Expenditure,CARRADICE CARE LTD,14/05/2015,112.92
Adult Social Services,Access & Enablement,HOAG,Supplies & Services,Aids & Appliances,SW RETAIL LTD T/A IC,15/05/2015,110.00
Adult Social Services,Access & Enablement,HOAG,Supplies & Services,Aids & Appliances,SW RETAIL LTD T/A IC,20/05/2015,120.00
Adult Social Services,Access & Enablement,HOAG,Supplies & Services,Aids & Appliances,ACTION ON HEARING LOSS (01797293),29/05/2015,606.12
Adult Social Services,Access & Enablement,HOAP,Supplies & Services,Equipment - Repair,TOTAL HYGIENE LIMITED,29/05/2015,180.00
Adult Social Services,Access & Enablement,HOAP,Supplies & Services,Equipment - Repair,WESSEX LIFT CO. LTD,29/05/2015,110.00
Adult Social Services,Access & Enablement,HOAP,Supplies & Services,Equipment - Repair,WESSEX LIFT CO. LTD,29/05/2015,114.80
Adult Social Services,Access & Enablement,HOAP,Supplies & Services,Equipment - Repair,HANDICARE ACCESSIBILITY LIMITED,29/05/2015,"4,327.92"
Adult Social Services,Access & Enablement,HOAP,Supplies & Services,Equipment - Repair,HANDICARE ACCESSIBILITY LIMITED,29/05/2015,486.54
Adult Social Services,Access & Enablement,HOAP,Supplies & Services,Equipment - Repair,WESSEX LIFT CO. LTD,29/05/2015,115.40
Adult Social Services,Access & Enablement,HOAP,Supplies & Services,Equipment - Repair,WESSEX LIFT CO. LTD,29/05/2015,110.00
Adult Social Services,Access & Enablement,HOAP,Supplies & Services,Equipment - Repair,WESSEX LIFT CO. LTD,20/05/2015,110.00
Adult Social Services,Access & Enablement,HOAP,Supplies & Services,Aids & Appliances,AA Moving Solutions Ltd,27/05/2015,"1,044.50"
Adult Social Services,Access & Enablement,HOAP,Supplies & Services,Aids & Appliances,AA Moving Solutions Ltd,27/05/2015,686.12
Adult Social Services,Access & Enablement,HOAP,Supplies & Services,Aids & Appliances,SMITCARE LTD,27/05/2015,468.00
Adult Social Services,Access & Enablement,HOAP,Supplies & Services,Aids & Appliances,Alert-it Care Alarms,27/05/2015,568.00
Adult Social Services,Access & Enablement,HOAP,Supplies & Services,Aids & Appliances,Alert-it Care Alarms,27/05/2015,340.00
Adult Social Services,Access & Enablement,HOAP,Supplies & Services,Aids & Appliances,PATTERSON MEDICAL LTD,27/05/2015,114.54
Adult Social Services,Access & Enablement,HOAP,Supplies & Services,Aids & Appliances,NRS Healthcare T/A Nottingham Rehab Ltd,19/05/2015,149.95
Adult Social Services,Access & Enablement,HOAP,Supplies & Services,Aids & Appliances,CEFNDY ENTERPRISES HEALTHCARE,11/05/2015,533.60
Adult Social Services,Access & Enablement,HOAP,Supplies & Services,Aids & Appliances,THE WREKIN HOUSING TRUST (INVOICES ONLY),20/05/2015,125.00
Adult Social Services,Access & Enablement,HOAP,Supplies & Services,Aids & Appliances,Redacted Personal Information,20/05/2015,"1,000.00"
Adult Social Services,Access & Enablement,HOAP,Supplies & Services,Aids & Appliances,MANGAR INTERNATIONAL LTD,28/05/2015,321.20
Adult Social Services,Access & Enablement,HOAP,Supplies & Services,Aids & Appliances,Easylink,29/05/2015,299.97
Adult Social Services,Access & Enablement,HOAP,Supplies & Services,Aids & Appliances,RNIB SERVICES LIMITED,27/05/2015,389.25
Adult Social Services,Access & Enablement,HOAP,Supplies & Services,Aids & Appliances,AV10 Limited,15/05/2015,549.75
Adult Social Services,Access & Enablement,HOAP,Supplies & Services,Aids & Appliances,Easylink,13/05/2015,109.24
Adult Social Services,Access & Enablement,HOAP,Supplies & Services,Adaptations,TRAVIS PERKINS TRADING CO LIMITED,20/05/2015,"1,080.00"
Adult Social Services,Access & Enablement,HOAP,Supplies & Services,Adaptations,TRAVIS PERKINS TRADING CO LIMITED,20/05/2015,234.99
Adult Social Services,Access & Enablement,HOBP,Third Party Payments,Residential Expenditure,COVERAGE CARE SERVICES LTD (SY3),01/05/2015,"70,517.15"
Adult Social Services,Access & Enablement,HOBR,Third Party Payments,Homecare Expenditure,COVERAGE CARE SERVICES LTD (SY3),01/05/2015,"50,170.19"
Adult Social Services,Access & Enablement,HOBZ,Third Party Payments,Private Contractors,DIMENSIONS (UK) LTD,07/05/2015,"27,693.00"
Adult Social Services,Access & Enablement,HOBZ,Third Party Payments,Private Contractors,DIMENSIONS (UK) LTD,07/05/2015,"44,607.60"
Adult Social Services,Access & Enablement,HOBZ,Third Party Payments,Private Contractors,DIMENSIONS (UK) LTD,07/05/2015,"31,390.50"
Adult Social Services,Assessment & Case Management,HLAB,Premises-Related Expenditure,General Rents,WREKIN HOUSING TRUST (CARE SUPPORT PYMTS ONLY),29/05/2015,"1,978.99"
Adult Social Services,Assessment & Case Management,HLCJ,Third Party Payments,Joint Financing,SHROPSHIRE COUNCIL (55636551),07/05/2015,"39,813.43"
Adult Social Services,Assessment & Case Management,HLCK,Third Party Payments,Residential Expenditure,VISION HOMES ASSOCIATION,07/05/2015,"49,176.60"
Adult Social Services,Assessment & Case Management,HLCL,Supplies & Services,Respite Care,BOURNVILLE VILLAGE TRUST,14/05/2015,"53,186.36"
Adult Social Services,Assessment & Case Management,HLCL,Supplies & Services,Respite Care,BOURNVILLE VILLAGE TRUST,13/05/2015,"53,186.36"
Adult Social Services,Assessment & Case Management,HLCL,Third Party Payments,Residential Expenditure,BOURNVILLE VILLAGE TRUST,14/05/2015,"132,965.89"
Adult Social Services,Assessment & Case Management,HLCL,Third Party Payments,Residential Expenditure,BOURNVILLE VILLAGE TRUST,13/05/2015,"132,965.89"
Adult Social Services,Assessment & Case Management,HOAC,Supplies & Services,Purchased Meals,ACCORD HOUSING ASSOCIATION LIMITED,29/05/2015,146.51
Adult Social Services,Assessment & Case Management,HOAC,Supplies & Services,Purchased Meals,ACCORD HOUSING ASSOCIATION LIMITED,29/05/2015,179.40
Adult Social Services,Assessment & Case Management,HOAC,Supplies & Services,Purchased Meals,ACCORD HOUSING ASSOCIATION LIMITED,29/05/2015,137.54
Adult Social Services,Assessment & Case Management,HOAC,Supplies & Services,Purchased Meals,ACCORD HOUSING ASSOCIATION LIMITED,29/05/2015,203.32
Adult Social Services,Assessment & Case Management,HOAC,Supplies & Services,Purchased Meals,ACCORD HOUSING ASSOCIATION LIMITED,29/05/2015,161.46
Adult Social Services,Assessment & Case Management,HOAC,Supplies & Services,Purchased Meals,ACCORD HOUSING ASSOCIATION LIMITED,29/05/2015,170.43
Adult Social Services,Assessment & Case Management,HOAC,Supplies & Services,Purchased Meals,ACCORD HOUSING ASSOCIATION LIMITED,29/05/2015,203.32
Adult Social Services,Assessment & Case Management,HOAC,Supplies & Services,Purchased Meals,ACCORD HOUSING ASSOCIATION LIMITED,29/05/2015,146.51
Adult Social Services,Assessment & Case Management,HOAC,Supplies & Services,Purchased Meals,ACCORD HOUSING ASSOCIATION LIMITED,29/05/2015,215.28
Adult Social Services,Assessment & Case Management,HOAC,Supplies & Services,Purchased Meals,ACCORD HOUSING ASSOCIATION LIMITED,29/05/2015,236.21
Adult Social Services,Assessment & Case Management,HOAC,Supplies & Services,Purchased Meals,ACCORD HOUSING ASSOCIATION LIMITED,29/05/2015,272.09
Adult Social Services,Assessment & Case Management,HOBC,Supplies & Services,Other Office Expenses,CDEC Limited,13/05/2015,199.00
Adult Social Services,Assessment & Case Management,HOCM,Third Party Payments,Nursing Expenditure,MORRIS CARE,01/05/2015,"78,000.00"
Adult Social Services,Assessment & Case Management,HPAB,Supplies & Services,Telecomms,BT GLOBAL SERVICES (00637351),28/05/2015,369.82
Adult Social Services,Assessment & Case Management,HPAB,Supplies & Services,Telecomms,BT GLOBAL SERVICES (00637351),13/05/2015,369.82
Adult Social Services,Care & Support,HHAK,Premises-Related Expenditure,Hire Of Rooms,European Innovation Limited,13/05/2015,162.50
Childrens safeguarding & specialist services,child protection & assessment,JMAA,contribution to provision,legal,HM Courts and Tribunal service,19/05/2015," 7,995.00 "
Children's Safeguarding & Specialist Services,Child Protection & Assessment,JCAK,Supplies & Services,Other Services,Beacon C&C,15/05/2015,"1,750.00"
Children's Safeguarding & Specialist Services,Child Protection & Assessment,JHAB,Employees,Agency Supply Costs,Hamptons Resourcing,21/05/2015,"6,000.00"
Children's Safeguarding & Specialist Services,Child Protection & Assessment,JHAB,Employees,Agency Supply Costs,Hamptons Resourcing,15/05/2015,"3,600.00"
Children's Safeguarding & Specialist Services,Child Protection & Assessment,JHAB,Employees,Training Expenses,MEETING POINT TRUST LTD,21/05/2015,641.20
Children's Safeguarding & Specialist Services,Child Protection & Assessment,JHAB,Employees,Staff Training,STAFFORDSHIRE COUNTY COUNCIL,15/05/2015,"1,000.00"
Children's Safeguarding & Specialist Services,Child Protection & Assessment,JHAB,Supplies & Services,Other Services,TRI-X-CHILDCARE LTD,15/05/2015,"7,100.00"
Children's Safeguarding & Specialist Services,Child Protection & Assessment,JMAA,Supplies & Services,Legal,Redacted Personal Information,08/05/2015,700.00
Children's Safeguarding & Specialist Services,Child Protection & Assessment,JMAB,Supplies & Services,Telephones,EUROPEAN ELECTRONIQUE LTD,19/05/2015,137.80
Children's Safeguarding & Specialist Services,Child Protection & Assessment,JMAB,Supplies & Services,Supportive Lodgings,NESTOR PRIMECARE SERVICES LTD T/A ALLIED HEALTHCARE,14/05/2015,119.76
Children's Safeguarding & Specialist Services,Child Protection & Assessment,JMAB,Supplies & Services,Supportive Lodgings,NESTOR PRIMECARE SERVICES LTD T/A ALLIED HEALTHCARE,14/05/2015,771.94
Children's Safeguarding & Specialist Services,Child Protection & Assessment,JMAD,Supplies & Services,Translation Services,UK Language Solutions Ltd,12/05/2015,162.50
Children's Safeguarding & Specialist Services,Child Protection & Assessment,JMAD,Third Party Payments,Childminders,SMILEY FACES DAY NURSERIES LTD,12/05/2015,627.00
Children's Safeguarding & Specialist Services,Child Protection & Assessment,JMAE,Supplies & Services,Other Services,Gateway Psychology,20/05/2015,195.00
Children's Safeguarding & Specialist Services,Child Protection & Assessment,JMAE,Supplies & Services,Other Services,Right Mediation,20/05/2015,440.00
Children's Safeguarding & Specialist Services,Child Protection & Assessment,JMAE,Supplies & Services,Other Services,RGT TRAINING & CONSULTANCY,15/05/2015,"1,050.00"
Children's Safeguarding & Specialist Services,Child Protection & Assessment,JMAE,Supplies & Services,Other Services,ELMHURST PSYCHOLOGY LTD,08/05/2015,552.70
Children's Safeguarding & Specialist Services,Child Protection & Assessment,JMAE,Supplies & Services,Other Services,The National Teaching & Advisory Service,08/05/2015,768.00
Children's Safeguarding & Specialist Services,Child Protection & Assessment,JMAE,Supplies & Services,Other Services,CARTER BROWN LIMITED,20/05/2015,"1,100.00"
Children's Safeguarding & Specialist Services,Child Protection & Assessment,JMAE,Supplies & Services,Other Services,J.A. FOULKES LTD,20/05/2015,564.20
Children's Safeguarding & Specialist Services,Child Protection & Assessment,JMAE,Supplies & Services,Other Services,ELMHURST PSYCHOLOGY LTD,20/05/2015,"3,768.00"
Children's Safeguarding & Specialist Services,Child Protection & Assessment,JMAL,Supplies & Services,Equipment - Hire,QUICK SKIPS (TELFORD) LTD,15/05/2015,110.00
Children's Safeguarding & Specialist Services,Child Protection & Assessment,JMAL,Supplies & Services,Doctors Fees,ALPHA BIOLABORATORIES LIMITED,29/05/2015,255.00
Children's Safeguarding & Specialist Services,Child Protection & Assessment,JMAL,Supplies & Services,Doctors Fees,ALPHA BIOLABORATORIES LIMITED,29/05/2015,155.00
Children's Safeguarding & Specialist Services,Child Protection & Assessment,JMAL,Supplies & Services,Section 17 Childrens Act,NESTOR PRIMECARE SERVICES LTD T/A ALLIED HEALTHCARE,29/05/2015,337.64
Children's Safeguarding & Specialist Services,Child Protection & Assessment,JMAL,Supplies & Services,Section 17 Childrens Act,NESTOR PRIMECARE SERVICES LTD T/A ALLIED HEALTHCARE,20/05/2015,337.64
Children's Safeguarding & Specialist Services,Child Protection & Assessment,JMAL,Supplies & Services,Section 17 Childrens Act,NESTOR PRIMECARE SERVICES LTD T/A ALLIED HEALTHCARE,12/05/2015,482.24
Children's Safeguarding & Specialist Services,Child Protection & Assessment,JMAL,Supplies & Services,Section 17 Childrens Act,NESTOR PRIMECARE SERVICES LTD T/A ALLIED HEALTHCARE,08/05/2015,614.79
Children's Safeguarding & Specialist Services,Child Protection & Assessment,JMAL,Third Party Payments,Childminders,Bomere Heath CE Primary School,08/05/2015,220.50
Children's Safeguarding & Specialist Services,Child Protection & Assessment,JPAA,Third Party Payments,Joint Financing,SHROPSHIRE COUNCIL,15/05/2015,"423,544.40"
Children's Safeguarding & Specialist Services,Child Protection & Assessment,JSAB,Supplies & Services,Section 17 Childrens Act,Maybach Lettings,29/05/2015,530.00
Children's Safeguarding & Specialist Services,Children in Care & Fostering,JCAB,Supplies & Services,Supportive Lodgings,LEAVING CARE COMPANY,21/05/2015,"1,000.00"
Children's Safeguarding & Specialist Services,Children in Care & Fostering,JCAB,Supplies & Services,Supportive Lodgings,NEXT STEP CARE MANAGEMENT LTD,29/05/2015,385.74
Children's Safeguarding & Specialist Services,Children in Care & Fostering,JCAB,Supplies & Services,Supportive Lodgings,NESTOR PRIMECARE SERVICES LTD T/A ALLIED HEALTHCARE,12/05/2015,"4,057.48"
Children's Safeguarding & Specialist Services,Children in Care & Fostering,JCAB,Supplies & Services,Supportive Lodgings,NESTOR PRIMECARE SERVICES LTD T/A ALLIED HEALTHCARE,12/05/2015,"1,638.11"
Children's Safeguarding & Specialist Services,Children in Care & Fostering,JCAB,Transfer Payments,Leaving Care Grant,Peter Richardson Estates LTD,29/05/2015,120.00
Children's Safeguarding & Specialist Services,Children in Care & Fostering,JCAB,Transfer Payments,Leaving Care Grant,ARGOS BUSINESS SOLUTIONS,12/05/2015,171.22
Children's Safeguarding & Specialist Services,Children in Care & Fostering,JCAB,Transfer Payments,Leaving Care Grant,ARGOS BUSINESS SOLUTIONS,19/05/2015,149.99
Children's Safeguarding & Specialist Services,Children in Care & Fostering,JCAB,Transfer Payments,Leaving Care Grant,ARGOS BUSINESS SOLUTIONS,21/05/2015,299.99
Children's Safeguarding & Specialist Services,Children in Care & Fostering,JCAB,Transfer Payments,Leaving Care Grant,STUBLEYS WAREHOUSE,06/05/2015,159.00
Children's Safeguarding & Specialist Services,Children in Care & Fostering,JCAB,Transfer Payments,Leaving Care Grant,STUBLEYS WAREHOUSE,06/05/2015,109.00
Children's Safeguarding & Specialist Services,Children in Care & Fostering,JMAF,Employees,Staff Training,Catch22 Charity Ltd,29/05/2015,"1,300.00"
Children's Safeguarding & Specialist Services,Children in Care & Fostering,JMAF,Supplies & Services,Marketing & Publicity,THE MIDLAND NEWS ASSOCIATION LTD,29/05/2015,378.36
Children's Safeguarding & Specialist Services,Children in Care & Fostering,JMAF,Supplies & Services,Legal,WACE MORGAN SOLICITORS,12/05/2015,"4,558.55"
Children's Safeguarding & Specialist Services,Children in Care & Fostering,JMAF,Third Party Payments,Childminders,SMILEY FACES DAY NURSERIES LTD,12/05/2015,277.65
Children's Safeguarding & Specialist Services,Children in Care & Fostering,JPAD,Third Party Payments,External Foster Care Payments,RED KITE FOSTERING,27/05/2015,"5,207.14"
Children's Safeguarding & Specialist Services,Children in Care & Fostering,JPAD,Third Party Payments,External Foster Care Payments,PARK FOSTER CARE,27/05/2015,"6,000.00"
Children's Safeguarding & Specialist Services,Children in Care & Fostering,JPAD,Third Party Payments,External Foster Care Payments,THE ADOLESCENT & CHILDRENS TRUST,27/05/2015,"2,907.00"
Children's Safeguarding & Specialist Services,Children in Care & Fostering,JPAD,Third Party Payments,External Foster Care Payments,FOSTERING PRIORY,27/05/2015,"3,618.14"
Children's Safeguarding & Specialist Services,Children in Care & Fostering,JPAD,Third Party Payments,External Foster Care Payments,ACTION FOR CHILDREN LIMITED,27/05/2015,"3,516.33"
Children's Safeguarding & Specialist Services,Children in Care & Fostering,JPAD,Third Party Payments,External Foster Care Payments,PARK FOSTER CARE,14/05/2015,"3,600.00"
Children's Safeguarding & Specialist Services,Children in Care & Fostering,JPAD,Third Party Payments,External Foster Care Payments,PARK FOSTER CARE,14/05/2015,"3,309.60"
Children's Safeguarding & Specialist Services,Children in Care & Fostering,JPAD,Third Party Payments,External Foster Care Payments,Prospects for Young People Ltd,14/05/2015,"3,492.90"
Children's Safeguarding & Specialist Services,Children in Care & Fostering,JPAD,Third Party Payments,External Foster Care Payments,PARK FOSTER CARE,14/05/2015,"3,600.00"
Children's Safeguarding & Specialist Services,Children in Care & Fostering,JPAD,Third Party Payments,External Foster Care Payments,ORANGE GROVE FOSTERCARE LTD,22/05/2015,"3,244.33"
Children's Safeguarding & Specialist Services,Children in Care & Fostering,JPAD,Third Party Payments,External Foster Care Payments,ORANGE GROVE FOSTERCARE LTD,22/05/2015,"3,344.68"
Children's Safeguarding & Specialist Services,Children in Care & Fostering,JPAD,Third Party Payments,External Foster Care Payments,Prospects for Young People Ltd,21/05/2015,"3,604.99"
Children's Safeguarding & Specialist Services,Children in Care & Fostering,JPAD,Third Party Payments,External Foster Care Payments,Childcare Bureau,21/05/2015,"4,081.50"
Children's Safeguarding & Specialist Services,Children in Care & Fostering,JPAD,Third Party Payments,External Foster Care Payments,Childcare Bureau,21/05/2015,"5,755.75"
Children's Safeguarding & Specialist Services,Children in Care & Fostering,JPAD,Third Party Payments,External Foster Care Payments,NEXUS FOSTERING,21/05/2015,"3,369.80"
Children's Safeguarding & Specialist Services,Children in Care & Fostering,JPAD,Third Party Payments,External Foster Care Payments,ORANGE GROVE FOSTERCARE LTD,21/05/2015,"3,210.71"
Children's Safeguarding & Specialist Services,Children in Care & Fostering,JPAD,Third Party Payments,External Foster Care Payments,ORANGE GROVE FOSTERCARE LTD,15/05/2015,"3,139.67"
Children's Safeguarding & Specialist Services,Children in Care & Fostering,JPAD,Third Party Payments,External Foster Care Payments,ORANGE GROVE FOSTERCARE LTD,15/05/2015,"3,338.57"
Children's Safeguarding & Specialist Services,Children in Care & Fostering,JPAD,Third Party Payments,External Foster Care Payments,ORANGE GROVE FOSTERCARE LTD,15/05/2015,"3,236.79"
Children's Safeguarding & Specialist Services,Children in Care & Fostering,JPAD,Third Party Payments,External Foster Care Payments,ORANGE GROVE FOSTERCARE LTD,15/05/2015,"3,139.67"
Children's Safeguarding & Specialist Services,Children in Care & Fostering,JPAD,Third Party Payments,External Foster Care Payments,ORANGE GROVE FOSTERCARE LTD,22/05/2015,"2,951.79"
Children's Safeguarding & Specialist Services,Children in Care & Fostering,JPAD,Third Party Payments,External Foster Care Payments,ORANGE GROVE FOSTERCARE LTD,21/05/2015,"2,635.00"
Children's Safeguarding & Specialist Services,Children in Care & Fostering,JPAD,Third Party Payments,External Foster Care Payments,Prospects for Young People Ltd,21/05/2015,"3,366.60"
Children's Safeguarding & Specialist Services,Children in Care & Fostering,JPAD,Third Party Payments,External Foster Care Payments,SWIIS FOSTER CARE LTD,15/05/2015,872.62
Children's Safeguarding & Specialist Services,Children in Care & Fostering,JPAD,Third Party Payments,External Foster Care Payments,ORANGE GROVE FOSTERCARE LTD,15/05/2015,"3,139.67"
Children's Safeguarding & Specialist Services,Children in Care & Fostering,JPAD,Third Party Payments,External Foster Care Payments,ORANGE GROVE FOSTERCARE LTD,15/05/2015,"3,236.79"
Children's Safeguarding & Specialist Services,Children in Care & Fostering,JPAD,Third Party Payments,External Foster Care Payments,Prospects for Young People Ltd,15/05/2015,"3,488.70"
Children's Safeguarding & Specialist Services,Children in Care & Fostering,JPAD,Third Party Payments,External Foster Care Payments,Prospects for Young People Ltd,15/05/2015,"3,258.00"
Children's Safeguarding & Specialist Services,Children in Care & Fostering,JPAD,Third Party Payments,External Foster Care Payments,ORANGE GROVE FOSTERCARE LTD,15/05/2015,"2,978.57"
Children's Safeguarding & Specialist Services,Children in Care & Fostering,JPAD,Third Party Payments,External Foster Care Payments,FOSTER CARE ASSOCIATES LTD,15/05/2015,"3,160.26"
Children's Safeguarding & Specialist Services,Children in Care & Fostering,JPAD,Third Party Payments,External Foster Care Payments,SWIIS FOSTER CARE LTD,15/05/2015,872.62
Children's Safeguarding & Specialist Services,Children in Care & Fostering,JPAD,Third Party Payments,External Foster Care Payments,ORANGE GROVE FOSTERCARE LTD,15/05/2015,"3,172.03"
Children's Safeguarding & Specialist Services,Children in Care & Fostering,JPAD,Third Party Payments,External Foster Care Payments,ORANGE GROVE FOSTERCARE LTD,15/05/2015,"2,550.00"
Children's Safeguarding & Specialist Services,Children in Care & Fostering,JPAD,Third Party Payments,External Foster Care Payments,ORANGE GROVE FOSTERCARE LTD,15/05/2015,"3,172.07"
Children's Safeguarding & Specialist Services,Children in Care & Fostering,JPAD,Third Party Payments,External Foster Care Payments,ORANGE GROVE FOSTERCARE LTD,22/05/2015,"3,236.79"
Children's Safeguarding & Specialist Services,Children in Care & Fostering,JPAD,Third Party Payments,External Foster Care Payments,ACTION FOR CHILDREN LIMITED,15/05/2015,"3,402.90"
Children's Safeguarding & Specialist Services,Children in Care & Fostering,JPAD,Third Party Payments,External Foster Care Payments,Prospects for Young People Ltd,15/05/2015,870.00
Children's Safeguarding & Specialist Services,Children in Care & Fostering,JPAD,Third Party Payments,External Foster Care Payments,By The Bridge,15/05/2015,"6,178.86"
Children's Safeguarding & Specialist Services,Children in Care & Fostering,JPAD,Third Party Payments,External Foster Care Payments,By The Bridge,15/05/2015,"3,089.43"
Children's Safeguarding & Specialist Services,Children in Care & Fostering,JPAD,Third Party Payments,External Foster Care Payments,PARK FOSTER CARE,19/05/2015,"3,240.00"
Children's Safeguarding & Specialist Services,Children in Care & Fostering,JPAD,Third Party Payments,External Foster Care Payments,PARK FOSTER CARE,14/05/2015,720.00
Children's Safeguarding & Specialist Services,Children in Care & Fostering,JPAD,Third Party Payments,External Foster Care Payments,SWIIS FOSTER CARE LTD,18/05/2015,872.62
Children's Safeguarding & Specialist Services,Children in Care & Fostering,JPAD,Third Party Payments,External Foster Care Payments,SWIIS FOSTER CARE LTD,18/05/2015,872.62
Children's Safeguarding & Specialist Services,Children in Care & Fostering,JPAD,Third Party Payments,External Foster Care Payments,FOSTERING PRIORY,14/05/2015,"3,501.43"
Children's Safeguarding & Specialist Services,Children in Care & Fostering,JPAD,Third Party Payments,External Foster Care Payments,Childcare Bureau,22/05/2015,"4,047.98"
Children's Safeguarding & Specialist Services,Children in Care & Fostering,JPAD,Third Party Payments,External Foster Care Payments,PHOENIX FOSTERING,29/05/2015,"6,532.01"
Children's Safeguarding & Specialist Services,Children in Care & Fostering,JPAD,Third Party Payments,External Foster Care Payments,FAMILIES@FAMILYCARE,01/05/2015,"2,527.20"
Children's Safeguarding & Specialist Services,Children in Care & Fostering,JPAD,Third Party Payments,External Foster Care Payments,FOSTER CARE ASSOCIATES LTD,01/05/2015,456.40
Children's Safeguarding & Specialist Services,Children in Care & Fostering,JPAD,Third Party Payments,External Foster Care Payments,ORANGE GROVE FOSTERCARE LTD,01/05/2015,180.00
Children's Safeguarding & Specialist Services,Children in Care & Fostering,JPAD,Third Party Payments,External Foster Care Payments,ORANGE GROVE FOSTERCARE LTD,01/05/2015,720.00
Children's Safeguarding & Specialist Services,Children in Care & Fostering,JPAD,Third Party Payments,External Foster Care Payments,FAMILIES@FAMILYCARE,01/05/2015,"3,888.00"
Children's Safeguarding & Specialist Services,Children in Care & Fostering,JPAD,Third Party Payments,External Foster Care Payments,NATIONAL FOSTERING AGENCY,29/05/2015,"3,129.00"
Children's Safeguarding & Specialist Services,Children in Care & Fostering,JPAD,Third Party Payments,External Foster Care Payments,NATIONAL FOSTERING AGENCY,29/05/2015,"3,271.80"
Children's Safeguarding & Specialist Services,Children in Care & Fostering,JPAD,Third Party Payments,External Foster Care Payments,PHOENIX FOSTERING,29/05/2015,"6,321.30"
Children's Safeguarding & Specialist Services,Children in Care & Fostering,JPAD,Third Party Payments,External Foster Care Payments,PHOENIX FOSTERING,29/05/2015,"5,689.20"
Children's Safeguarding & Specialist Services,Children in Care & Fostering,JPAD,Third Party Payments,External Foster Care Payments,PHOENIX FOSTERING,29/05/2015,"6,321.30"
Children's Safeguarding & Specialist Services,Children in Care & Fostering,JPAD,Third Party Payments,External Foster Care Payments,PHOENIX FOSTERING,29/05/2015,"6,532.01"
Children's Safeguarding & Specialist Services,Children in Care & Fostering,JPAD,Third Party Payments,External Foster Care Payments,SWIIS FOSTER CARE LTD,28/05/2015,872.62
Children's Safeguarding & Specialist Services,Children in Care & Fostering,JPAD,Third Party Payments,External Foster Care Payments,PHOENIX FOSTERING,28/05/2015,"5,878.84"
Children's Safeguarding & Specialist Services,Children in Care & Fostering,JPAD,Third Party Payments,External Foster Care Payments,NATIONAL FOSTERING AGENCY,29/05/2015,"3,204.90"
Children's Safeguarding & Specialist Services,Children in Care & Fostering,JPAD,Third Party Payments,External Foster Care Payments,NATIONAL FOSTERING AGENCY,29/05/2015,"2,978.70"
Children's Safeguarding & Specialist Services,Children in Care & Fostering,JPAD,Third Party Payments,External Foster Care Payments,NATIONAL FOSTERING AGENCY,29/05/2015,"3,271.80"
Children's Safeguarding & Specialist Services,Children in Care & Fostering,JPAD,Third Party Payments,External Foster Care Payments,NATIONAL FOSTERING AGENCY,29/05/2015,"3,129.00"
Children's Safeguarding & Specialist Services,Children in Care & Fostering,JPAN,Third Party Payments,Residential Expenditure,CARE TODAY CHILDRENS SERVICES,21/05/2015,"11,579.96"
Children's Safeguarding & Specialist Services,Children in Care & Fostering,JPAN,Third Party Payments,Residential Expenditure,CARE TODAY CHILDRENS SERVICES,21/05/2015,"3,151.96"
Children's Safeguarding & Specialist Services,Children in Care & Fostering,JPAN,Third Party Payments,Residential Expenditure,ABC CARE LTD,21/05/2015,"10,714.20"
Children's Safeguarding & Specialist Services,Children in Care & Fostering,JPAN,Third Party Payments,Residential Expenditure,KEYS CHILDCARE LTD,21/05/2015,"11,691.34"
Children's Safeguarding & Specialist Services,Children in Care & Fostering,JPAN,Third Party Payments,Residential Expenditure,KEYS CHILDCARE LTD,01/05/2015,500.00
Children's Safeguarding & Specialist Services,Children in Care & Fostering,JPAN,Third Party Payments,Residential Expenditure,NESTOR PRIMECARE SERVICES LTD T/A ALLIED HEALTHCARE,01/05/2015,269.01
Children's Safeguarding & Specialist Services,Children in Care & Fostering,JPAN,Third Party Payments,Residential Expenditure,BETTERCARE KEYS LTD,18/05/2015,"2,171.44"
Children's Safeguarding & Specialist Services,Children in Care & Fostering,JPAN,Third Party Payments,Residential Expenditure,BETTERCARE KEYS LTD,18/05/2015,"8,142.90"
Children's Safeguarding & Specialist Services,Children in Care & Fostering,JPAN,Third Party Payments,Residential Expenditure,BETTERCARE KEYS LTD,18/05/2015,840.00
Children's Safeguarding & Specialist Services,Children in Care & Fostering,JPAN,Third Party Payments,Residential Expenditure,BETTERCARE KEYS LTD,27/05/2015,"8,142.86"
Children's Safeguarding & Specialist Services,Children in Care & Fostering,JPAN,Third Party Payments,Residential Expenditure,BETTERCARE KEYS LTD,27/05/2015,"8,142.86"
Children's Safeguarding & Specialist Services,Children in Care & Fostering,JPAN,Third Party Payments,Residential Expenditure,BETTERCARE KEYS LTD,27/05/2015,"8,142.86"
Children's Safeguarding & Specialist Services,Children in Care & Fostering,JPAN,Third Party Payments,Residential Expenditure,CARE TODAY CHILDRENS SERVICES,27/05/2015,"12,407.10"
Children's Safeguarding & Specialist Services,Children in Care & Fostering,JPAN,Third Party Payments,Residential Expenditure,Unity Residential Care Services Ltd,01/05/2015,"10,520.00"
Children's Safeguarding & Specialist Services,Children Specialist Services,GPAA,Employees,Course Fees,Video Interaction Guidance hk (VIGhk),15/05/2015,800.00
Children's Safeguarding & Specialist Services,Children Specialist Services,GPAA,Supplies & Services,Other Services,PEARSON EDUCATIONAL (71060627),20/05/2015,255.50
Children's Safeguarding & Specialist Services,Children Specialist Services,HDAB,Third Party Payments,Interpreters Fees,VISS LTD,08/05/2015,125.00
Children's Safeguarding & Specialist Services,Children Specialist Services,HDAF,Third Party Payments,Private Contractors,ACTION FOR CHILDREN LIMITED,15/05/2015,"1,743.00"
Children's Safeguarding & Specialist Services,Children Specialist Services,HDAG,Supplies & Services,Aids & Appliances,The Helping Hand Company (Ledbury) Ltd T/A Symmetrikit,05/05/2015,416.10
Children's Safeguarding & Specialist Services,Children Specialist Services,HDAG,Supplies & Services,Aids & Appliances,M A Smith Associates,06/05/2015,430.00
Children's Safeguarding & Specialist Services,Children Specialist Services,HDAG,Supplies & Services,Aids & Appliances,M A Smith Associates,06/05/2015,340.00
Children's Safeguarding & Specialist Services,Children Specialist Services,HDAJ,Supplies & Services,Other Services,WE ARE THE CARE COMPANY LTD,08/05/2015,215.00
Children's Safeguarding & Specialist Services,Children Specialist Services,HDAJ,Third Party Payments,Agency Services,Direct Health Homecare Limited,27/05/2015,184.80
Children's Safeguarding & Specialist Services,Children Specialist Services,HDAJ,Third Party Payments,Agency Services,Direct Health Homecare Limited,27/05/2015,184.80
Children's Safeguarding & Specialist Services,Children Specialist Services,HDAJ,Third Party Payments,Agency Services,Direct Health Homecare Limited,27/05/2015,225.00
Children's Safeguarding & Specialist Services,Children Specialist Services,HDAJ,Third Party Payments,Agency Services,Direct Health Homecare Limited,08/05/2015,154.00
Children's Safeguarding & Specialist Services,Children Specialist Services,HDAJ,Third Party Payments,Agency Services,Direct Health Homecare Limited,08/05/2015,118.24
Children's Safeguarding & Specialist Services,Children Specialist Services,HDAJ,Third Party Payments,Agency Services,Direct Health Homecare Limited,08/05/2015,246.00
Children's Safeguarding & Specialist Services,Children Specialist Services,HDAJ,Third Party Payments,Agency Services,NESTOR PRIMECARE SERVICES LTD T/A ALLIED HEALTHCARE,08/05/2015,230.45
Children's Safeguarding & Specialist Services,Children Specialist Services,HDAJ,Third Party Payments,Agency Services,Direct Health Homecare Limited,08/05/2015,118.24
Children's Safeguarding & Specialist Services,Children Specialist Services,HDAJ,Third Party Payments,Agency Services,Direct Health Homecare Limited,08/05/2015,123.20
Children's Safeguarding & Specialist Services,Children Specialist Services,HDAJ,Third Party Payments,Agency Services,Direct Health Homecare Limited,08/05/2015,181.80
Children's Safeguarding & Specialist Services,Children Specialist Services,HDAJ,Third Party Payments,Agency Services,NESTOR PRIMECARE SERVICES LTD T/A ALLIED HEALTHCARE,21/05/2015,229.81
Children's Safeguarding & Specialist Services,Children Specialist Services,HDAJ,Third Party Payments,Agency Services,NESTOR PRIMECARE SERVICES LTD T/A ALLIED HEALTHCARE,21/05/2015,763.81
Children's Safeguarding & Specialist Services,Children Specialist Services,HDAJ,Third Party Payments,Agency Services,NESTOR PRIMECARE SERVICES LTD T/A ALLIED HEALTHCARE,21/05/2015,110.00
Children's Safeguarding & Specialist Services,Children Specialist Services,HDAJ,Third Party Payments,Agency Services,Direct Health Homecare Limited,08/05/2015,123.20
Children's Safeguarding & Specialist Services,Children Specialist Services,HDAJ,Third Party Payments,Agency Services,Direct Health Homecare Limited,08/05/2015,127.76
Children's Safeguarding & Specialist Services,Children Specialist Services,HDAJ,Third Party Payments,Agency Services,Direct Health Homecare Limited,20/05/2015,269.61
Children's Safeguarding & Specialist Services,Children Specialist Services,HDAJ,Third Party Payments,Agency Services,NESTOR PRIMECARE SERVICES LTD T/A ALLIED HEALTHCARE,20/05/2015,114.01
Children's Safeguarding & Specialist Services,Children Specialist Services,HDAJ,Third Party Payments,Agency Services,Direct Health Homecare Limited,20/05/2015,178.55
Children's Safeguarding & Specialist Services,Children Specialist Services,HDAJ,Third Party Payments,Agency Services,Direct Health Homecare Limited,20/05/2015,341.82
Children's Safeguarding & Specialist Services,Children Specialist Services,HDAJ,Third Party Payments,Agency Services,Direct Health Homecare Limited,08/05/2015,277.60
Children's Safeguarding & Specialist Services,Children Specialist Services,HDAJ,Third Party Payments,Agency Services,WE ARE THE CARE COMPANY LTD,08/05/2015,200.00
Children's Safeguarding & Specialist Services,Children Specialist Services,HDAJ,Third Party Payments,Agency Services,WE ARE THE CARE COMPANY LTD,08/05/2015,184.00
Children's Safeguarding & Specialist Services,Children Specialist Services,HDAJ,Third Party Payments,Agency Services,NESTOR PRIMECARE SERVICES LTD T/A ALLIED HEALTHCARE,08/05/2015,328.43
Children's Safeguarding & Specialist Services,Children Specialist Services,HDAJ,Third Party Payments,Agency Services,NESTOR PRIMECARE SERVICES LTD T/A ALLIED HEALTHCARE,08/05/2015,393.43
Children's Safeguarding & Specialist Services,Children Specialist Services,HDAJ,Third Party Payments,Agency Services,NESTOR PRIMECARE SERVICES LTD T/A ALLIED HEALTHCARE,08/05/2015,449.24
Children's Safeguarding & Specialist Services,Children Specialist Services,HDAJ,Third Party Payments,Agency Services,WE ARE THE CARE COMPANY LTD,08/05/2015,172.50
Children's Safeguarding & Specialist Services,Children Specialist Services,HDAJ,Third Party Payments,Agency Services,Direct Health Homecare Limited,08/05/2015,129.60
Children's Safeguarding & Specialist Services,Children Specialist Services,HDAJ,Third Party Payments,Agency Services,NESTOR PRIMECARE SERVICES LTD T/A ALLIED HEALTHCARE,08/05/2015,385.00
Children's Safeguarding & Specialist Services,Children Specialist Services,HDAJ,Third Party Payments,Agency Services,NESTOR PRIMECARE SERVICES LTD T/A ALLIED HEALTHCARE,08/05/2015,121.88
Children's Safeguarding & Specialist Services,Children Specialist Services,HDAJ,Third Party Payments,Agency Services,NESTOR PRIMECARE SERVICES LTD T/A ALLIED HEALTHCARE,08/05/2015,203.39
Children's Safeguarding & Specialist Services,Children Specialist Services,HDAJ,Third Party Payments,Agency Services,Direct Health Homecare Limited,08/05/2015,184.80
Children's Safeguarding & Specialist Services,Children Specialist Services,HDAJ,Third Party Payments,Agency Services,Direct Health Homecare Limited,08/05/2015,230.40
Children's Safeguarding & Specialist Services,Children Specialist Services,HDAJ,Third Party Payments,Agency Services,Direct Health Homecare Limited,08/05/2015,184.80
Children's Safeguarding & Specialist Services,Children Specialist Services,HDAJ,Third Party Payments,Agency Services,NESTOR PRIMECARE SERVICES LTD T/A ALLIED HEALTHCARE,08/05/2015,121.00
Children's Safeguarding & Specialist Services,Children Specialist Services,HDAJ,Third Party Payments,Agency Services,NESTOR PRIMECARE SERVICES LTD T/A ALLIED HEALTHCARE,08/05/2015,107.64
Children's Safeguarding & Specialist Services,Children Specialist Services,HDAJ,Third Party Payments,Agency Services,WE ARE THE CARE COMPANY LTD,08/05/2015,216.00
Children's Safeguarding & Specialist Services,Children Specialist Services,HDAJ,Third Party Payments,Agency Services,NESTOR PRIMECARE SERVICES LTD T/A ALLIED HEALTHCARE,08/05/2015,183.90
Children's Safeguarding & Specialist Services,Children Specialist Services,HDAJ,Third Party Payments,Agency Services,Direct Health Homecare Limited,08/05/2015,123.20
Children's Safeguarding & Specialist Services,Children Specialist Services,HDAJ,Third Party Payments,Agency Services,Direct Health Homecare Limited,08/05/2015,123.20
Children's Safeguarding & Specialist Services,Children Specialist Services,HDAJ,Third Party Payments,Agency Services,Direct Health Homecare Limited,08/05/2015,123.20
Children's Safeguarding & Specialist Services,Children Specialist Services,HDAJ,Third Party Payments,Agency Services,Direct Health Homecare Limited,08/05/2015,123.20
Children's Safeguarding & Specialist Services,Children Specialist Services,HDAJ,Third Party Payments,Agency Services,Direct Health Homecare Limited,08/05/2015,123.20
Children's Safeguarding & Specialist Services,Children Specialist Services,HDAJ,Third Party Payments,Agency Services,NESTOR PRIMECARE SERVICES LTD T/A ALLIED HEALTHCARE,08/05/2015,161.67
Children's Safeguarding & Specialist Services,Children Specialist Services,HDAJ,Third Party Payments,Agency Services,NESTOR PRIMECARE SERVICES LTD T/A ALLIED HEALTHCARE,08/05/2015,140.66
Children's Safeguarding & Specialist Services,Children Specialist Services,HDAJ,Third Party Payments,Agency Services,NESTOR PRIMECARE SERVICES LTD T/A ALLIED HEALTHCARE,08/05/2015,104.20
Children's Safeguarding & Specialist Services,Children Specialist Services,HDAJ,Third Party Payments,Agency Services,NESTOR PRIMECARE SERVICES LTD T/A ALLIED HEALTHCARE,08/05/2015,499.06
Children's Safeguarding & Specialist Services,Children Specialist Services,HDAJ,Third Party Payments,Agency Services,NESTOR PRIMECARE SERVICES LTD T/A ALLIED HEALTHCARE,08/05/2015,170.60
Children's Safeguarding & Specialist Services,Children Specialist Services,HDAJ,Third Party Payments,Agency Services,NESTOR PRIMECARE SERVICES LTD T/A ALLIED HEALTHCARE,08/05/2015,502.32
Children's Safeguarding & Specialist Services,Children Specialist Services,HDAJ,Third Party Payments,Agency Services,NESTOR PRIMECARE SERVICES LTD T/A ALLIED HEALTHCARE,08/05/2015,148.03
Children's Safeguarding & Specialist Services,Children Specialist Services,HDAJ,Third Party Payments,Agency Services,NESTOR PRIMECARE SERVICES LTD T/A ALLIED HEALTHCARE,08/05/2015,295.32
Children's Safeguarding & Specialist Services,Children Specialist Services,HDAJ,Third Party Payments,Agency Services,WE ARE THE CARE COMPANY LTD,08/05/2015,216.00
Children's Safeguarding & Specialist Services,Children Specialist Services,HDAJ,Third Party Payments,Agency Services,Direct Health Homecare Limited,27/05/2015,288.00
Children's Safeguarding & Specialist Services,Children Specialist Services,HDAJ,Third Party Payments,Agency Services,Direct Health Homecare Limited,15/05/2015,177.36
Children's Safeguarding & Specialist Services,Children Specialist Services,HDAJ,Third Party Payments,Agency Services,Direct Health Homecare Limited,15/05/2015,177.36
Children's Safeguarding & Specialist Services,Children Specialist Services,HDAJ,Third Party Payments,Agency Services,Direct Health Homecare Limited,08/05/2015,230.40
Children's Safeguarding & Specialist Services,Children Specialist Services,HDAJ,Third Party Payments,Agency Services,Direct Health Homecare Limited,08/05/2015,230.40
Children's Safeguarding & Specialist Services,Children Specialist Services,HDAK,Third Party Payments,Agency Services,Direct Health Homecare Limited,07/05/2015,191.64
Children's Safeguarding & Specialist Services,Children Specialist Services,HDAK,Third Party Payments,Agency Services,NESTOR PRIMECARE SERVICES LTD T/A ALLIED HEALTHCARE,07/05/2015,273.18
Children's Safeguarding & Specialist Services,Children Specialist Services,HDAK,Third Party Payments,Agency Services,NESTOR PRIMECARE SERVICES LTD T/A ALLIED HEALTHCARE,07/05/2015,164.94
Children's Safeguarding & Specialist Services,Children Specialist Services,HDAK,Third Party Payments,Agency Services,Direct Health Homecare Limited,28/05/2015,372.57
Children's Safeguarding & Specialist Services,Children Specialist Services,KNAA,Third Party Payments,Residential Expenditure,YOUNG OPTIONS COLLEGE LTD,15/05/2015,"4,789.47"
Children's Safeguarding & Specialist Services,Children Specialist Services,KNAA,Third Party Payments,Residential Expenditure,The National Teaching & Advisory Service,15/05/2015,"1,082.00"
Children's Safeguarding & Specialist Services,Children Specialist Services,KNAA,Third Party Payments,Residential Expenditure,DUDLEY METROPOLITAN BOROUGH COUNCIL,08/05/2015,220.80
Children's Safeguarding & Specialist Services,Children Specialist Services,KNAC,Third Party Payments,Residential Expenditure,SHROPSHIRE COUNCIL,15/05/2015,"4,775.53"
Co-Operative Council,Community Engagement & Voluntary Sector,AEAH,Supplies & Services,Grants To Voluntary Organis,TELFORD & WREKIN CITIZENS ADVICE BUREAU,12/05/2015,"287,545.00"
Co-Operative Council,Community Engagement & Voluntary Sector,MCAE,Supplies & Services,Ward Cooperative Fund Grant,MADELEY PARISH COUNCIL (61481451),20/05/2015,"2,000.00"
Co-Operative Council,Community Engagement & Voluntary Sector,WECF,Capital Expenditure,Community Pride Fund Grant,MADELEY PARISH COUNCIL (61481451),29/05/2015,"12,000.00"
Co-Operative Council,Community Engagement & Voluntary Sector,WECF,Capital Expenditure,Community Pride Fund Grant,Heavenly Quest,22/05/2015,"14,914.00"
Co-Operative Council,Corporate Communications,MMAA,Premises-Related Expenditure,R&M -Buildings DLO Charge,3S PRINT & DISPLAY LIMITED,01/05/2015,340.00
Co-Operative Council,Corporate Communications,MMAB,Supplies & Services,Community Newspaper,Trinity Mirror Printing,01/05/2015,"2,704.87"
Co-Operative Council,Corporate Communications,MMAD,Employees,Recruitment Advertising,TES GLOBAL LTD (06090251),13/05/2015,787.50
Co-Operative Council,Corporate Communications,MMAD,Employees,Recruitment Advertising,TES GLOBAL LTD (06090251),13/05/2015,787.50
Co-Operative Council,Corporate Communications,MMAD,Employees,Recruitment Advertising,TES GLOBAL LTD (06090251),07/05/2015,787.50
Co-Operative Council,Corporate Communications,MMAD,Employees,Recruitment Advertising,TES GLOBAL LTD (06090251),07/05/2015,787.50
Co-Operative Council,Corporate Communications,MMAD,Employees,Recruitment Advertising,THE MIDLAND NEWS ASSOCIATION LTD,07/05/2015,624.37
Co-Operative Council,Delivery & Planning,MDAB,Supplies & Services,Subscriptions,SNAP SURVEYS LTD,14/05/2015,699.00
Co-Operative Council,Delivery & Planning,MDAB,Supplies & Services,Subscriptions,SNAP SURVEYS LTD,14/05/2015,545.00
Co-Operative Council,Policy & Strategy,MPAA,Supplies & Services,Other Expenses,ARUP,14/05/2015,660.00
Co-Operative Council,Policy & Strategy,MPAA,Supplies & Services,Other Expenses,BEVAN BRITTAN,14/05/2015,"17,008.50"
Co-Operative Council,Policy & Strategy,MPAA,Supplies & Services,Other Expenses,BEVAN BRITTAN,07/05/2015,"31,765.50"
Customer Services,ALD Services,HLBB,Supplies & Services,Chemicals/Cleaning Products,CARESHOP,13/05/2015,375.50
Customer Services,ALD Services,HLBB,Supplies & Services,Laundry & Towel Hire,PHS GROUP LTD,13/05/2015,127.92
Customer Services,ALD Services,HLBB,Supplies & Services,Laundry & Towel Hire,PHS GROUP LTD,15/05/2015,387.90
Customer Services,ALD Services,HLDB,Supplies & Services,Equipment - Purchase,Redacted Personal Information,15/05/2015,406.79
Customer Services,ALD Services,HLDB,Supplies & Services,Equipment - Purchase,Redacted Personal Information,18/05/2015,158.19
Customer Services,ALD Services,HLEB,Capital Financing Costs,Leased Equipment,LEX AUTOLEASE LTD,14/05/2015,714.49
Customer Services,ALD Services,HLEB,Supplies & Services,Equipment - Purchase,THE CONSORTIUM FOR PURCHASING & DISTRIBUTION LTD T/A WEST MERCIA SUPPLIES,28/05/2015,323.29
Customer Services,ALD Services,HLEB,Supplies & Services,Equipment - Purchase,CARESHOP,28/05/2015,298.95
Customer Services,ALD Services,HLEB,Supplies & Services,Equipment - Purchase,THE CONSORTIUM FOR PURCHASING & DISTRIBUTION LTD T/A WEST MERCIA SUPPLIES,13/05/2015,206.81
Customer Services,ALD Services,HLEG,Supplies & Services,Respite Care,Redacted Personal Information,05/05/2015,197.49
Customer Services,ALD Services,HLEG,Supplies & Services,Respite Care,Redacted Personal Information,05/05/2015,394.96
Customer Services,Benefits,LRSF,Transfer Payments,Crisis Assistance Awards,DAWLEY BARGAIN CENTRE,13/05/2015,335.00
Customer Services,Benefits,LRSF,Transfer Payments,Crisis Assistance Awards,DAWLEY BARGAIN CENTRE,13/05/2015,360.00
Customer Services,Benefits,LRSF,Transfer Payments,Crisis Assistance Awards,DAWLEY BARGAIN CENTRE,13/05/2015,110.00
Customer Services,Benefits,LRSF,Transfer Payments,Crisis Assistance Awards,DAWLEY BARGAIN CENTRE,13/05/2015,240.00
Customer Services,Benefits,LRSF,Transfer Payments,Crisis Assistance Awards,DAWLEY BARGAIN CENTRE,13/05/2015,110.00
Customer Services,Benefits,LRSF,Transfer Payments,Crisis Assistance Awards,A W HOLDINGS,13/05/2015,308.00
Customer Services,Benefits,LRSF,Transfer Payments,Crisis Assistance Awards,DAWLEY BARGAIN CENTRE,05/05/2015,250.00
Customer Services,Benefits,LRSF,Transfer Payments,Crisis Assistance Awards,DAWLEY BARGAIN CENTRE,05/05/2015,135.00
Customer Services,Benefits,LRSF,Transfer Payments,Crisis Assistance Awards,CHAIRS & SPARES,05/05/2015,111.50
Customer Services,Benefits,LRSF,Transfer Payments,Crisis Assistance Awards,DAWLEY BARGAIN CENTRE,19/05/2015,360.00
Customer Services,Benefits,LRSF,Transfer Payments,Crisis Assistance Awards,DAWLEY BARGAIN CENTRE,19/05/2015,275.00
Customer Services,Benefits,LRSF,Transfer Payments,Crisis Assistance Awards,DAWLEY BARGAIN CENTRE,19/05/2015,295.00
Customer Services,Benefits,LRSF,Transfer Payments,Crisis Assistance Awards,PayPoint Network Limited,21/05/2015,314.00
Customer Services,Benefits,LRSF,Transfer Payments,Crisis Assistance Awards,Reviive,21/05/2015,121.25
Customer Services,Benefits,LRSF,Transfer Payments,Crisis Assistance Awards,Reviive,05/05/2015,110.40
Customer Services,Benefits,LRSF,Transfer Payments,Crisis Assistance Awards,DAWLEY BARGAIN CENTRE,13/05/2015,490.00
Customer Services,Benefits,LRSF,Transfer Payments,Crisis Assistance Awards,DAWLEY BARGAIN CENTRE,13/05/2015,135.00
Customer Services,Benefits,LRSF,Transfer Payments,Crisis Assistance Awards,PayPoint Network Limited,13/05/2015,198.00
Customer Services,Benefits,LRSF,Transfer Payments,Crisis Assistance Awards,AE PROPERTY MAINTENANCE,13/05/2015,380.00
Customer Services,Benefits,LRSF,Transfer Payments,Crisis Assistance Awards,PayPoint Network Limited,13/05/2015,316.00
Customer Services,Benefits,LRSF,Transfer Payments,Crisis Assistance Awards,DAWLEY BARGAIN CENTRE,19/05/2015,385.00
Customer Services,Benefits,LRTC,Employees,Staff Training,CAPITA BUSINESS SERVICES LTD 60864978,06/05/2015,399.00
Customer Services,Benefits,LRTC,Supplies & Services,Comp Hardware (Purch / Hire),CCS MEDIA LIMITED,28/05/2015,292.50
Customer Services,Benefits,LRTC,Supplies & Services,Comp Software (Purch / Hire),NORTHGATE INFORMATION SOLUTIONS UK LTD,11/05/2015,225.00
Customer Services,Catering,CAHH,Supplies & Services,Holidays & Outings,Vegware,29/05/2015,162.76
Customer Services,Catering,CAHH,Supplies & Services,Holidays & Outings,Vegware,07/05/2015,116.12
Customer Services,Catering,CAHH,Supplies & Services,Holidays & Outings,Vegware,07/05/2015,121.30
Customer Services,Catering,CAHH,Supplies & Services,Provisions,Bikold,21/05/2015,102.07
Customer Services,Catering,CAHH,Supplies & Services,Provisions,Bikold,21/05/2015,103.31
Customer Services,Catering,CAHH,Supplies & Services,Provisions,ROWLANDS & COMPANY,05/05/2015,132.45
Customer Services,Catering,CAHH,Supplies & Services,Provisions,Aroma Tea & Coffee Merchants,05/05/2015,112.80
Customer Services,Catering,CAHH,Supplies & Services,Provisions,Shepleys Butchers,05/05/2015,103.04
Customer Services,Catering,CAHH,Supplies & Services,Provisions,Bikold,08/05/2015,113.23
Customer Services,Catering,CAHH,Supplies & Services,Provisions,Bikold,29/05/2015,101.23
Customer Services,Catering,CAHH,Supplies & Services,Provisions,Bikold,01/05/2015,107.98
Customer Services,Catering,CAHH,Supplies & Services,Provisions,Bikold,01/05/2015,168.25
Customer Services,Catering,CAHH,Supplies & Services,Provisions,Bikold,21/05/2015,233.81
Customer Services,Catering,CAHH,Supplies & Services,Provisions,ROWLANDS & COMPANY,14/05/2015,131.92
Customer Services,Catering,CAHH,Supplies & Services,Provisions,Bikold,29/05/2015,115.19
Customer Services,Catering,CAHH,Supplies & Services,Provisions,Bikold,15/05/2015,106.62
Customer Services,Catering,CAHH,Supplies & Services,Provisions,Bikold,15/05/2015,208.76
Customer Services,Catering,CAHH,Supplies & Services,Provisions,Bikold,08/05/2015,123.21
Customer Services,Catering,CAHH,Supplies & Services,Provisions,ROWLANDS & COMPANY,28/05/2015,104.61
Customer Services,Catering,CAHH,Supplies & Services,Provisions,ROWLANDS & COMPANY,28/05/2015,145.83
Customer Services,Catering,CAHH,Supplies & Services,Provisions,ROWLANDS & COMPANY,28/05/2015,127.57
Customer Services,Catering,CAHH,Supplies & Services,Provisions,Aroma Tea & Coffee Merchants,28/05/2015,135.05
Customer Services,Catering,CAHH,Supplies & Services,Provisions,ROWLANDS & COMPANY,14/05/2015,115.85
Customer Services,Catering,CAMA,Employees,Training Expenses,CIEH,19/05/2015,345.70
Customer Services,Catering,CAMA,Employees,Training Expenses,CIEH,11/05/2015,228.90
Customer Services,Catering,CAMA,Supplies & Services,Equipment - Repair,JCE & SONS LTD,07/05/2015,204.50
Customer Services,Catering,CAMA,Supplies & Services,Pocket Money/Home Leave,SIMON JERSEY LIMITED,19/05/2015,-167.92
Customer Services,Catering,CAMA,Supplies & Services,Pocket Money/Home Leave,SIMON JERSEY LIMITED,19/05/2015,167.92
Customer Services,Catering,CAMA,Supplies & Services,Protective Clothing,IMAGE@WORK LTD,05/05/2015,509.20
Customer Services,Catering,CAOC,Supplies & Services,Provisions,Bikold,01/05/2015,107.03
Customer Services,Catering,CAOC,Supplies & Services,Provisions,Bikold,01/05/2015,108.64
Customer Services,Catering,CASM,Supplies & Services,EEC Whole Milk,JOHAL DAIRIES,13/05/2015,"1,815.66"
Customer Services,Catering,CASM,Supplies & Services,EEC Whole Milk,JOHAL DAIRIES,13/05/2015,742.52
Customer Services,Catering,CASM,Supplies & Services,EEC Whole Milk,JOHAL DAIRIES,13/05/2015,"1,780.79"
Customer Services,Catering,CASM,Supplies & Services,EEC Whole Milk,JOHAL DAIRIES,13/05/2015,670.45
Customer Services,Catering,CASN,Supplies & Services,Equipment - Purchase,ERIC NEVILLE CATERING SUPPLIES LTD,05/05/2015,103.07
Customer Services,Catering,CASN,Supplies & Services,Provisions,John Sheppard Catering Butchers,07/05/2015,103.96
Customer Services,Catering,CASN,Supplies & Services,Provisions,Bikold,01/05/2015,174.76
Customer Services,Catering,CASN,Supplies & Services,Provisions,Bikold,01/05/2015,217.71
Customer Services,Catering,CASN,Supplies & Services,Provisions,Bikold,01/05/2015,186.59
Customer Services,Catering,CASN,Supplies & Services,Provisions,Bikold,21/05/2015,207.92
Customer Services,Catering,CASN,Supplies & Services,Provisions,Bikold,21/05/2015,191.86
Customer Services,Catering,CASN,Supplies & Services,Provisions,Bikold,21/05/2015,151.55
Customer Services,Catering,CASN,Supplies & Services,Provisions,Bikold,08/05/2015,137.23
Customer Services,Catering,CASN,Supplies & Services,Provisions,Bikold,08/05/2015,120.07
Customer Services,Catering,CASN,Supplies & Services,Provisions,Bikold,29/05/2015,151.67
Customer Services,Catering,CASN,Supplies & Services,Provisions,Bikold,29/05/2015,187.95
Customer Services,Catering,CASN,Supplies & Services,Provisions,Bikold,01/05/2015,146.99
Customer Services,Catering,CASN,Supplies & Services,Provisions,Bikold,01/05/2015,145.39
Customer Services,Catering,CASN,Supplies & Services,Provisions,RESPOL FLOORING SOLUTIONS,12/05/2015,-133.78
Customer Services,Catering,CASN,Supplies & Services,Provisions,John Sheppard Catering Butchers,14/05/2015,110.21
Customer Services,Catering,CASN,Supplies & Services,Provisions,Bikold,29/05/2015,210.56
Customer Services,Catering,CASN,Supplies & Services,Provisions,Bikold,15/05/2015,114.64
Customer Services,Catering,CASN,Supplies & Services,Provisions,Bikold,15/05/2015,232.72
Customer Services,Catering,CASN,Supplies & Services,Provisions,Bikold,08/05/2015,157.90
Customer Services,Catering,CASN,Supplies & Services,Provisions,ROWLANDS & COMPANY,27/05/2015,128.71
Customer Services,Catering,CASP,Premises-Related Expenditure,Clean Mats & Toilet Requisites,ERIC NEVILLE CATERING SUPPLIES LTD,19/05/2015,208.00
Customer Services,Catering,CASP,Premises-Related Expenditure,Hygiene Services,CANNON HYGIENE LTD,11/05/2015,221.52
Customer Services,Catering,CASP,Supplies & Services,Equipment - Purchase,ERIC NEVILLE CATERING SUPPLIES LTD,19/05/2015,164.99
Customer Services,Catering,CASP,Supplies & Services,Equipment - Purchase,ERIC NEVILLE CATERING SUPPLIES LTD,05/05/2015,103.08
Customer Services,Catering,CASP,Supplies & Services,Equipment - Purchase,BRITA WATER FILTER SYSTEMS LTD,05/05/2015,169.50
Customer Services,Catering,CASP,Supplies & Services,Crockery/Hardware/Light Equip,ERIC NEVILLE CATERING SUPPLIES LTD,19/05/2015,184.22
Customer Services,Catering,CASP,Supplies & Services,Crockery/Hardware/Light Equip,ERIC NEVILLE CATERING SUPPLIES LTD,19/05/2015,119.98
Customer Services,Catering,CASP,Supplies & Services,Provisions,John Sheppard Catering Butchers,07/05/2015,185.33
Customer Services,Catering,CASP,Supplies & Services,Provisions,John Sheppard Catering Butchers,07/05/2015,161.13
Customer Services,Catering,CASP,Supplies & Services,Provisions,John Sheppard Catering Butchers,07/05/2015,129.46
Customer Services,Catering,CASP,Supplies & Services,Provisions,John Sheppard Catering Butchers,07/05/2015,124.63
Customer Services,Catering,CASP,Supplies & Services,Provisions,John Sheppard Catering Butchers,07/05/2015,162.45
Customer Services,Catering,CASP,Supplies & Services,Provisions,John Sheppard Catering Butchers,07/05/2015,143.63
Customer Services,Catering,CASP,Supplies & Services,Provisions,John Sheppard Catering Butchers,07/05/2015,243.97
Customer Services,Catering,CASP,Supplies & Services,Provisions,John Sheppard Catering Butchers,07/05/2015,118.74
Customer Services,Catering,CASP,Supplies & Services,Provisions,John Sheppard Catering Butchers,07/05/2015,118.94
Customer Services,Catering,CASP,Supplies & Services,Provisions,John Sheppard Catering Butchers,07/05/2015,227.25
Customer Services,Catering,CASP,Supplies & Services,Provisions,John Sheppard Catering Butchers,07/05/2015,229.50
Customer Services,Catering,CASP,Supplies & Services,Provisions,John Sheppard Catering Butchers,07/05/2015,153.93
Customer Services,Catering,CASP,Supplies & Services,Provisions,John Sheppard Catering Butchers,07/05/2015,146.78
Customer Services,Catering,CASP,Supplies & Services,Provisions,John Sheppard Catering Butchers,07/05/2015,191.43
Customer Services,Catering,CASP,Supplies & Services,Provisions,John Sheppard Catering Butchers,07/05/2015,194.42
Customer Services,Catering,CASP,Supplies & Services,Provisions,John Sheppard Catering Butchers,07/05/2015,122.69
Customer Services,Catering,CASP,Supplies & Services,Provisions,John Sheppard Catering Butchers,07/05/2015,241.16
Customer Services,Catering,CASP,Supplies & Services,Provisions,Bikold,21/05/2015,110.47
Customer Services,Catering,CASP,Supplies & Services,Provisions,Bikold,21/05/2015,109.71
Customer Services,Catering,CASP,Supplies & Services,Provisions,Bikold,21/05/2015,134.93
Customer Services,Catering,CASP,Supplies & Services,Provisions,Bikold,21/05/2015,185.30
Customer Services,Catering,CASP,Supplies & Services,Provisions,Bikold,21/05/2015,144.04
Customer Services,Catering,CASP,Supplies & Services,Provisions,SMART FOOD,06/05/2015,229.20
Customer Services,Catering,CASP,Supplies & Services,Provisions,Bikold,21/05/2015,128.59
Customer Services,Catering,CASP,Supplies & Services,Provisions,Bikold,21/05/2015,121.58
Customer Services,Catering,CASP,Supplies & Services,Provisions,Bikold,21/05/2015,186.98
Customer Services,Catering,CASP,Supplies & Services,Provisions,Bikold,21/05/2015,135.89
Customer Services,Catering,CASP,Supplies & Services,Provisions,Bikold,21/05/2015,169.75
Customer Services,Catering,CASP,Supplies & Services,Provisions,Bikold,21/05/2015,192.96
Customer Services,Catering,CASP,Supplies & Services,Provisions,Bikold,21/05/2015,226.39
Customer Services,Catering,CASP,Supplies & Services,Provisions,Bikold,21/05/2015,-229.50
Customer Services,Catering,CASP,Supplies & Services,Provisions,Bikold,21/05/2015,211.14
Customer Services,Catering,CASP,Supplies & Services,Provisions,Bikold,21/05/2015,147.49
Customer Services,Catering,CASP,Supplies & Services,Provisions,Bikold,21/05/2015,148.81
Customer Services,Catering,CASP,Supplies & Services,Provisions,Bikold,21/05/2015,124.59
Customer Services,Catering,CASP,Supplies & Services,Provisions,Bikold,21/05/2015,170.94
Customer Services,Catering,CASP,Supplies & Services,Provisions,Bikold,21/05/2015,191.85
Customer Services,Catering,CASP,Supplies & Services,Provisions,Bikold,21/05/2015,193.38
Customer Services,Catering,CASP,Supplies & Services,Provisions,Bikold,21/05/2015,306.00
Customer Services,Catering,CASP,Supplies & Services,Provisions,Bikold,21/05/2015,-102.00
Customer Services,Catering,CASP,Supplies & Services,Provisions,Bikold,21/05/2015,152.57
Customer Services,Catering,CASP,Supplies & Services,Provisions,Bikold,21/05/2015,301.03
Customer Services,Catering,CASP,Supplies & Services,Provisions,Bikold,21/05/2015,200.23
Customer Services,Catering,CASP,Supplies & Services,Provisions,Bikold,21/05/2015,107.62
Customer Services,Catering,CASP,Supplies & Services,Provisions,Bikold,21/05/2015,143.60
Customer Services,Catering,CASP,Supplies & Services,Provisions,Bikold,21/05/2015,375.15
Customer Services,Catering,CASP,Supplies & Services,Provisions,Bikold,21/05/2015,144.48
Customer Services,Catering,CASP,Supplies & Services,Provisions,Bikold,21/05/2015,116.80
Customer Services,Catering,CASP,Supplies & Services,Provisions,Bikold,21/05/2015,113.61
Customer Services,Catering,CASP,Supplies & Services,Provisions,Bikold,21/05/2015,165.62
Customer Services,Catering,CASP,Supplies & Services,Provisions,Bikold,21/05/2015,248.18
Customer Services,Catering,CASP,Supplies & Services,Provisions,Bikold,21/05/2015,147.28
Customer Services,Catering,CASP,Supplies & Services,Provisions,Bikold,21/05/2015,164.86
Customer Services,Catering,CASP,Supplies & Services,Provisions,Bikold,21/05/2015,113.23
Customer Services,Catering,CASP,Supplies & Services,Provisions,Bikold,21/05/2015,287.61
Customer Services,Catering,CASP,Supplies & Services,Provisions,Bikold,21/05/2015,199.69
Customer Services,Catering,CASP,Supplies & Services,Provisions,Bikold,21/05/2015,111.68
Customer Services,Catering,CASP,Supplies & Services,Provisions,Bikold,21/05/2015,158.90
Customer Services,Catering,CASP,Supplies & Services,Provisions,Bikold,21/05/2015,222.30
Customer Services,Catering,CASP,Supplies & Services,Provisions,Bikold,21/05/2015,189.48
Customer Services,Catering,CASP,Supplies & Services,Provisions,Bikold,21/05/2015,195.51
Customer Services,Catering,CASP,Supplies & Services,Provisions,Bikold,21/05/2015,267.16
Customer Services,Catering,CASP,Supplies & Services,Provisions,Bikold,21/05/2015,104.30
Customer Services,Catering,CASP,Supplies & Services,Provisions,Bikold,21/05/2015,273.15
Customer Services,Catering,CASP,Supplies & Services,Provisions,Bikold,21/05/2015,101.45
Customer Services,Catering,CASP,Supplies & Services,Provisions,Bikold,21/05/2015,230.17
Customer Services,Catering,CASP,Supplies & Services,Provisions,Bikold,21/05/2015,180.64
Customer Services,Catering,CASP,Supplies & Services,Provisions,Bikold,21/05/2015,130.52
Customer Services,Catering,CASP,Supplies & Services,Provisions,Bikold,21/05/2015,115.28
Customer Services,Catering,CASP,Supplies & Services,Provisions,Bikold,21/05/2015,108.16
Customer Services,Catering,CASP,Supplies & Services,Provisions,Bikold,21/05/2015,106.34
Customer Services,Catering,CASP,Supplies & Services,Provisions,Bikold,21/05/2015,393.41
Customer Services,Catering,CASP,Supplies & Services,Provisions,Bikold,21/05/2015,124.87
Customer Services,Catering,CASP,Supplies & Services,Provisions,Bikold,21/05/2015,118.06
Customer Services,Catering,CASP,Supplies & Services,Provisions,Bikold,21/05/2015,192.06
Customer Services,Catering,CASP,Supplies & Services,Provisions,Bikold,21/05/2015,170.69
Customer Services,Catering,CASP,Supplies & Services,Provisions,Bikold,21/05/2015,130.95
Customer Services,Catering,CASP,Supplies & Services,Provisions,Bikold,21/05/2015,157.22
Customer Services,Catering,CASP,Supplies & Services,Provisions,Bikold,21/05/2015,117.34
Customer Services,Catering,CASP,Supplies & Services,Provisions,Bikold,21/05/2015,152.75
Customer Services,Catering,CASP,Supplies & Services,Provisions,Bikold,21/05/2015,331.76
Customer Services,Catering,CASP,Supplies & Services,Provisions,Bikold,21/05/2015,250.76
Customer Services,Catering,CASP,Supplies & Services,Provisions,Bikold,21/05/2015,372.52
Customer Services,Catering,CASP,Supplies & Services,Provisions,Bikold,01/05/2015,112.61
Customer Services,Catering,CASP,Supplies & Services,Provisions,Bikold,01/05/2015,168.39
Customer Services,Catering,CASP,Supplies & Services,Provisions,Bikold,01/05/2015,139.20
Customer Services,Catering,CASP,Supplies & Services,Provisions,Bikold,01/05/2015,166.47
Customer Services,Catering,CASP,Supplies & Services,Provisions,Bikold,01/05/2015,153.90
Customer Services,Catering,CASP,Supplies & Services,Provisions,Bikold,01/05/2015,110.41
Customer Services,Catering,CASP,Supplies & Services,Provisions,Bikold,01/05/2015,236.31
Customer Services,Catering,CASP,Supplies & Services,Provisions,Bikold,01/05/2015,315.53
Customer Services,Catering,CASP,Supplies & Services,Provisions,Bikold,01/05/2015,334.01
Customer Services,Catering,CASP,Supplies & Services,Provisions,Bikold,01/05/2015,172.90
Customer Services,Catering,CASP,Supplies & Services,Provisions,Bikold,01/05/2015,198.42
Customer Services,Catering,CASP,Supplies & Services,Provisions,Bikold,01/05/2015,111.07
Customer Services,Catering,CASP,Supplies & Services,Provisions,Bikold,01/05/2015,140.70
Customer Services,Catering,CASP,Supplies & Services,Provisions,Bikold,01/05/2015,149.19
Customer Services,Catering,CASP,Supplies & Services,Provisions,Bikold,01/05/2015,365.88
Customer Services,Catering,CASP,Supplies & Services,Provisions,Bikold,01/05/2015,128.15
Customer Services,Catering,CASP,Supplies & Services,Provisions,Bikold,01/05/2015,157.26
Customer Services,Catering,CASP,Supplies & Services,Provisions,Bikold,01/05/2015,180.96
Customer Services,Catering,CASP,Supplies & Services,Provisions,Bikold,01/05/2015,210.19
Customer Services,Catering,CASP,Supplies & Services,Provisions,Bikold,01/05/2015,119.88
Customer Services,Catering,CASP,Supplies & Services,Provisions,Bikold,01/05/2015,360.92
Customer Services,Catering,CASP,Supplies & Services,Provisions,Bikold,01/05/2015,210.03
Customer Services,Catering,CASP,Supplies & Services,Provisions,Bikold,01/05/2015,182.86
Customer Services,Catering,CASP,Supplies & Services,Provisions,Bikold,01/05/2015,143.62
Customer Services,Catering,CASP,Supplies & Services,Provisions,Bikold,01/05/2015,132.60
Customer Services,Catering,CASP,Supplies & Services,Provisions,Bikold,01/05/2015,101.86
Customer Services,Catering,CASP,Supplies & Services,Provisions,Bikold,01/05/2015,143.34
Customer Services,Catering,CASP,Supplies & Services,Provisions,Bikold,01/05/2015,153.30
Customer Services,Catering,CASP,Supplies & Services,Provisions,Bikold,01/05/2015,273.68
Customer Services,Catering,CASP,Supplies & Services,Provisions,Bikold,01/05/2015,159.85
Customer Services,Catering,CASP,Supplies & Services,Provisions,Bikold,01/05/2015,136.86
Customer Services,Catering,CASP,Supplies & Services,Provisions,Bikold,01/05/2015,107.24
Customer Services,Catering,CASP,Supplies & Services,Provisions,Bikold,01/05/2015,140.00
Customer Services,Catering,CASP,Supplies & Services,Provisions,Bikold,01/05/2015,105.45
Customer Services,Catering,CASP,Supplies & Services,Provisions,Bikold,01/05/2015,322.61
Customer Services,Catering,CASP,Supplies & Services,Provisions,Bikold,01/05/2015,380.19
Customer Services,Catering,CASP,Supplies & Services,Provisions,Bikold,01/05/2015,178.87
Customer Services,Catering,CASP,Supplies & Services,Provisions,Bikold,01/05/2015,322.72
Customer Services,Catering,CASP,Supplies & Services,Provisions,Bikold,01/05/2015,270.70
Customer Services,Catering,CASP,Supplies & Services,Provisions,Bikold,01/05/2015,281.28
Customer Services,Catering,CASP,Supplies & Services,Provisions,Bikold,01/05/2015,106.17
Customer Services,Catering,CASP,Supplies & Services,Provisions,Bikold,01/05/2015,242.39
Customer Services,Catering,CASP,Supplies & Services,Provisions,Bikold,01/05/2015,149.73
Customer Services,Catering,CASP,Supplies & Services,Provisions,Bikold,01/05/2015,150.19
Customer Services,Catering,CASP,Supplies & Services,Provisions,Bikold,01/05/2015,372.10
Customer Services,Catering,CASP,Supplies & Services,Provisions,Bikold,01/05/2015,123.68
Customer Services,Catering,CASP,Supplies & Services,Provisions,Bikold,01/05/2015,135.55
Customer Services,Catering,CASP,Supplies & Services,Provisions,Bikold,01/05/2015,223.82
Customer Services,Catering,CASP,Supplies & Services,Provisions,Bikold,01/05/2015,141.18
Customer Services,Catering,CASP,Supplies & Services,Provisions,Bikold,01/05/2015,410.39
Customer Services,Catering,CASP,Supplies & Services,Provisions,Bikold,01/05/2015,177.52
Customer Services,Catering,CASP,Supplies & Services,Provisions,Bikold,01/05/2015,264.37
Customer Services,Catering,CASP,Supplies & Services,Provisions,Bikold,01/05/2015,174.91
Customer Services,Catering,CASP,Supplies & Services,Provisions,Bikold,01/05/2015,107.80
Customer Services,Catering,CASP,Supplies & Services,Provisions,Bikold,01/05/2015,123.19
Customer Services,Catering,CASP,Supplies & Services,Provisions,Bikold,01/05/2015,135.58
Customer Services,Catering,CASP,Supplies & Services,Provisions,Bikold,01/05/2015,175.67
Customer Services,Catering,CASP,Supplies & Services,Provisions,Bikold,01/05/2015,131.73
Customer Services,Catering,CASP,Supplies & Services,Provisions,Bikold,01/05/2015,143.14
Customer Services,Catering,CASP,Supplies & Services,Provisions,Bikold,01/05/2015,287.82
Customer Services,Catering,CASP,Supplies & Services,Provisions,Bikold,01/05/2015,271.78
Customer Services,Catering,CASP,Supplies & Services,Provisions,Bikold,01/05/2015,178.24
Customer Services,Catering,CASP,Supplies & Services,Provisions,Bikold,01/05/2015,184.17
Customer Services,Catering,CASP,Supplies & Services,Provisions,Bikold,01/05/2015,130.36
Customer Services,Catering,CASP,Supplies & Services,Provisions,Bikold,01/05/2015,125.74
Customer Services,Catering,CASP,Supplies & Services,Provisions,Bikold,01/05/2015,132.89
Customer Services,Catering,CASP,Supplies & Services,Provisions,John Sheppard Catering Butchers,01/05/2015,131.28
Customer Services,Catering,CASP,Supplies & Services,Provisions,Bikold,29/05/2015,284.96
Customer Services,Catering,CASP,Supplies & Services,Provisions,Bikold,29/05/2015,107.08
Customer Services,Catering,CASP,Supplies & Services,Provisions,Bikold,29/05/2015,272.10
Customer Services,Catering,CASP,Supplies & Services,Provisions,SMART FOOD,20/05/2015,183.80
Customer Services,Catering,CASP,Supplies & Services,Provisions,Bikold,01/05/2015,124.26
Customer Services,Catering,CASP,Supplies & Services,Provisions,John Sheppard Catering Butchers,01/05/2015,354.28
Customer Services,Catering,CASP,Supplies & Services,Provisions,John Sheppard Catering Butchers,01/05/2015,234.93
Customer Services,Catering,CASP,Supplies & Services,Provisions,John Sheppard Catering Butchers,01/05/2015,142.86
Customer Services,Catering,CASP,Supplies & Services,Provisions,John Sheppard Catering Butchers,01/05/2015,132.73
Customer Services,Catering,CASP,Supplies & Services,Provisions,John Sheppard Catering Butchers,01/05/2015,159.34
Customer Services,Catering,CASP,Supplies & Services,Provisions,John Sheppard Catering Butchers,01/05/2015,119.12
Customer Services,Catering,CASP,Supplies & Services,Provisions,John Sheppard Catering Butchers,01/05/2015,126.65
Customer Services,Catering,CASP,Supplies & Services,Provisions,John Sheppard Catering Butchers,01/05/2015,118.63
Customer Services,Catering,CASP,Supplies & Services,Provisions,John Sheppard Catering Butchers,01/05/2015,167.36
Customer Services,Catering,CASP,Supplies & Services,Provisions,John Sheppard Catering Butchers,01/05/2015,191.23
Customer Services,Catering,CASP,Supplies & Services,Provisions,John Sheppard Catering Butchers,01/05/2015,213.42
Customer Services,Catering,CASP,Supplies & Services,Provisions,John Sheppard Catering Butchers,01/05/2015,245.81
Customer Services,Catering,CASP,Supplies & Services,Provisions,John Sheppard Catering Butchers,01/05/2015,140.40
Customer Services,Catering,CASP,Supplies & Services,Provisions,John Sheppard Catering Butchers,01/05/2015,132.00
Customer Services,Catering,CASP,Supplies & Services,Provisions,John Sheppard Catering Butchers,01/05/2015,118.53
Customer Services,Catering,CASP,Supplies & Services,Provisions,John Sheppard Catering Butchers,01/05/2015,150.52
Customer Services,Catering,CASP,Supplies & Services,Provisions,John Sheppard Catering Butchers,01/05/2015,225.09
Customer Services,Catering,CASP,Supplies & Services,Provisions,John Sheppard Catering Butchers,01/05/2015,172.58
Customer Services,Catering,CASP,Supplies & Services,Provisions,John Sheppard Catering Butchers,01/05/2015,275.28
Customer Services,Catering,CASP,Supplies & Services,Provisions,John Sheppard Catering Butchers,01/05/2015,119.60
Customer Services,Catering,CASP,Supplies & Services,Provisions,John Sheppard Catering Butchers,01/05/2015,218.42
Customer Services,Catering,CASP,Supplies & Services,Provisions,John Sheppard Catering Butchers,01/05/2015,229.83
Customer Services,Catering,CASP,Supplies & Services,Provisions,John Sheppard Catering Butchers,01/05/2015,119.53
Customer Services,Catering,CASP,Supplies & Services,Provisions,John Sheppard Catering Butchers,01/05/2015,106.50
Customer Services,Catering,CASP,Supplies & Services,Provisions,John Sheppard Catering Butchers,01/05/2015,158.81
Customer Services,Catering,CASP,Supplies & Services,Provisions,John Sheppard Catering Butchers,01/05/2015,131.25
Customer Services,Catering,CASP,Supplies & Services,Provisions,John Sheppard Catering Butchers,01/05/2015,136.83
Customer Services,Catering,CASP,Supplies & Services,Provisions,John Sheppard Catering Butchers,01/05/2015,301.20
Customer Services,Catering,CASP,Supplies & Services,Provisions,John Sheppard Catering Butchers,01/05/2015,176.05
Customer Services,Catering,CASP,Supplies & Services,Provisions,John Sheppard Catering Butchers,01/05/2015,235.59
Customer Services,Catering,CASP,Supplies & Services,Provisions,ROWLANDS & COMPANY,01/05/2015,137.43
Customer Services,Catering,CASP,Supplies & Services,Provisions,ROWLANDS & COMPANY,01/05/2015,109.11
Customer Services,Catering,CASP,Supplies & Services,Provisions,ROWLANDS & COMPANY,01/05/2015,119.38
Customer Services,Catering,CASP,Supplies & Services,Provisions,ROWLANDS & COMPANY,01/05/2015,119.22
Customer Services,Catering,CASP,Supplies & Services,Provisions,ROWLANDS & COMPANY,01/05/2015,114.95
Customer Services,Catering,CASP,Supplies & Services,Provisions,John Sheppard Catering Butchers,01/05/2015,176.97
Customer Services,Catering,CASP,Supplies & Services,Provisions,ROWLANDS & COMPANY,01/05/2015,121.49
Customer Services,Catering,CASP,Supplies & Services,Provisions,ROWLANDS & COMPANY,01/05/2015,130.02
Customer Services,Catering,CASP,Supplies & Services,Provisions,ROWLANDS & COMPANY,01/05/2015,100.41
Customer Services,Catering,CASP,Supplies & Services,Provisions,ROWLANDS & COMPANY,01/05/2015,110.53
Customer Services,Catering,CASP,Supplies & Services,Provisions,ROWLANDS & COMPANY,01/05/2015,221.16
Customer Services,Catering,CASP,Supplies & Services,Provisions,ROWLANDS & COMPANY,01/05/2015,132.74
Customer Services,Catering,CASP,Supplies & Services,Provisions,Bikold,08/05/2015,183.88
Customer Services,Catering,CASP,Supplies & Services,Provisions,Bikold,08/05/2015,123.04
Customer Services,Catering,CASP,Supplies & Services,Provisions,ROWLANDS & COMPANY,01/05/2015,187.92
Customer Services,Catering,CASP,Supplies & Services,Provisions,ROWLANDS & COMPANY,01/05/2015,138.84
Customer Services,Catering,CASP,Supplies & Services,Provisions,ROWLANDS & COMPANY,01/05/2015,105.53
Customer Services,Catering,CASP,Supplies & Services,Provisions,ROWLANDS & COMPANY,01/05/2015,173.98
Customer Services,Catering,CASP,Supplies & Services,Provisions,Bikold,08/05/2015,149.27
Customer Services,Catering,CASP,Supplies & Services,Provisions,Bikold,08/05/2015,137.13
Customer Services,Catering,CASP,Supplies & Services,Provisions,Bikold,08/05/2015,107.11
Customer Services,Catering,CASP,Supplies & Services,Provisions,Bikold,08/05/2015,161.57
Customer Services,Catering,CASP,Supplies & Services,Provisions,Bikold,08/05/2015,230.14
Customer Services,Catering,CASP,Supplies & Services,Provisions,Bikold,08/05/2015,142.84
Customer Services,Catering,CASP,Supplies & Services,Provisions,Bikold,08/05/2015,257.23
Customer Services,Catering,CASP,Supplies & Services,Provisions,Bikold,08/05/2015,405.90
Customer Services,Catering,CASP,Supplies & Services,Provisions,Bikold,08/05/2015,223.52
Customer Services,Catering,CASP,Supplies & Services,Provisions,Bikold,08/05/2015,198.63
Customer Services,Catering,CASP,Supplies & Services,Provisions,Bikold,08/05/2015,141.52
Customer Services,Catering,CASP,Supplies & Services,Provisions,Bikold,08/05/2015,231.63
Customer Services,Catering,CASP,Supplies & Services,Provisions,Bikold,08/05/2015,196.90
Customer Services,Catering,CASP,Supplies & Services,Provisions,Bikold,08/05/2015,290.08
Customer Services,Catering,CASP,Supplies & Services,Provisions,Bikold,08/05/2015,199.00
Customer Services,Catering,CASP,Supplies & Services,Provisions,Bikold,08/05/2015,237.83
Customer Services,Catering,CASP,Supplies & Services,Provisions,Bikold,08/05/2015,183.27
Customer Services,Catering,CASP,Supplies & Services,Provisions,Bikold,08/05/2015,225.03
Customer Services,Catering,CASP,Supplies & Services,Provisions,Bikold,08/05/2015,144.39
Customer Services,Catering,CASP,Supplies & Services,Provisions,Bikold,08/05/2015,120.54
Customer Services,Catering,CASP,Supplies & Services,Provisions,Bikold,08/05/2015,210.12
Customer Services,Catering,CASP,Supplies & Services,Provisions,Bikold,08/05/2015,127.84
Customer Services,Catering,CASP,Supplies & Services,Provisions,Bikold,08/05/2015,127.86
Customer Services,Catering,CASP,Supplies & Services,Provisions,Bikold,08/05/2015,124.55
Customer Services,Catering,CASP,Supplies & Services,Provisions,Bikold,08/05/2015,240.49
Customer Services,Catering,CASP,Supplies & Services,Provisions,Bikold,08/05/2015,103.59
Customer Services,Catering,CASP,Supplies & Services,Provisions,Bikold,08/05/2015,117.81
Customer Services,Catering,CASP,Supplies & Services,Provisions,Bikold,08/05/2015,203.69
Customer Services,Catering,CASP,Supplies & Services,Provisions,Bikold,08/05/2015,266.07
Customer Services,Catering,CASP,Supplies & Services,Provisions,Bikold,08/05/2015,291.86
Customer Services,Catering,CASP,Supplies & Services,Provisions,Bikold,08/05/2015,245.50
Customer Services,Catering,CASP,Supplies & Services,Provisions,Bikold,08/05/2015,201.29
Customer Services,Catering,CASP,Supplies & Services,Provisions,Bikold,08/05/2015,125.26
Customer Services,Catering,CASP,Supplies & Services,Provisions,Bikold,08/05/2015,153.06
Customer Services,Catering,CASP,Supplies & Services,Provisions,Bikold,08/05/2015,105.37
Customer Services,Catering,CASP,Supplies & Services,Provisions,Bikold,08/05/2015,246.84
Customer Services,Catering,CASP,Supplies & Services,Provisions,Bikold,01/05/2015,196.74
Customer Services,Catering,CASP,Supplies & Services,Provisions,Bikold,01/05/2015,180.57
Customer Services,Catering,CASP,Supplies & Services,Provisions,Bikold,08/05/2015,300.73
Customer Services,Catering,CASP,Supplies & Services,Provisions,Bikold,08/05/2015,112.10
Customer Services,Catering,CASP,Supplies & Services,Provisions,Bikold,08/05/2015,119.83
Customer Services,Catering,CASP,Supplies & Services,Provisions,Bikold,08/05/2015,124.96
Customer Services,Catering,CASP,Supplies & Services,Provisions,Bikold,08/05/2015,290.89
Customer Services,Catering,CASP,Supplies & Services,Provisions,Bikold,08/05/2015,366.34
Customer Services,Catering,CASP,Supplies & Services,Provisions,Bikold,08/05/2015,138.21
Customer Services,Catering,CASP,Supplies & Services,Provisions,Bikold,08/05/2015,135.27
Customer Services,Catering,CASP,Supplies & Services,Provisions,Bikold,01/05/2015,182.74
Customer Services,Catering,CASP,Supplies & Services,Provisions,Bikold,01/05/2015,405.30
Customer Services,Catering,CASP,Supplies & Services,Provisions,Bikold,01/05/2015,228.98
Customer Services,Catering,CASP,Supplies & Services,Provisions,Bikold,01/05/2015,341.37
Customer Services,Catering,CASP,Supplies & Services,Provisions,Bikold,01/05/2015,189.12
Customer Services,Catering,CASP,Supplies & Services,Provisions,Bikold,01/05/2015,123.79
Customer Services,Catering,CASP,Supplies & Services,Provisions,Bikold,01/05/2015,161.72
Customer Services,Catering,CASP,Supplies & Services,Provisions,Bikold,01/05/2015,231.87
Customer Services,Catering,CASP,Supplies & Services,Provisions,Bikold,01/05/2015,187.68
Customer Services,Catering,CASP,Supplies & Services,Provisions,Bikold,01/05/2015,262.09
Customer Services,Catering,CASP,Supplies & Services,Provisions,Bikold,01/05/2015,239.96
Customer Services,Catering,CASP,Supplies & Services,Provisions,Bikold,01/05/2015,606.89
Customer Services,Catering,CASP,Supplies & Services,Provisions,Bikold,01/05/2015,102.00
Customer Services,Catering,CASP,Supplies & Services,Provisions,Bikold,01/05/2015,114.64
Customer Services,Catering,CASP,Supplies & Services,Provisions,Bikold,01/05/2015,183.36
Customer Services,Catering,CASP,Supplies & Services,Provisions,Bikold,01/05/2015,152.10
Customer Services,Catering,CASP,Supplies & Services,Provisions,Bikold,01/05/2015,137.38
Customer Services,Catering,CASP,Supplies & Services,Provisions,Bikold,01/05/2015,167.55
Customer Services,Catering,CASP,Supplies & Services,Provisions,Bikold,01/05/2015,165.33
Customer Services,Catering,CASP,Supplies & Services,Provisions,Bikold,01/05/2015,216.42
Customer Services,Catering,CASP,Supplies & Services,Provisions,Bikold,15/05/2015,120.00
Customer Services,Catering,CASP,Supplies & Services,Provisions,Bikold,15/05/2015,320.45
Customer Services,Catering,CASP,Supplies & Services,Provisions,Bikold,15/05/2015,184.23
Customer Services,Catering,CASP,Supplies & Services,Provisions,Bikold,15/05/2015,147.92
Customer Services,Catering,CASP,Supplies & Services,Provisions,Bikold,15/05/2015,155.32
Customer Services,Catering,CASP,Supplies & Services,Provisions,Bikold,01/05/2015,128.20
Customer Services,Catering,CASP,Supplies & Services,Provisions,Bikold,15/05/2015,181.81
Customer Services,Catering,CASP,Supplies & Services,Provisions,Bikold,15/05/2015,124.37
Customer Services,Catering,CASP,Supplies & Services,Provisions,Bikold,15/05/2015,253.58
Customer Services,Catering,CASP,Supplies & Services,Provisions,Bikold,15/05/2015,316.73
Customer Services,Catering,CASP,Supplies & Services,Provisions,Bikold,15/05/2015,179.25
Customer Services,Catering,CASP,Supplies & Services,Provisions,Bikold,15/05/2015,187.46
Customer Services,Catering,CASP,Supplies & Services,Provisions,Bikold,15/05/2015,168.35
Customer Services,Catering,CASP,Supplies & Services,Provisions,Bikold,15/05/2015,115.69
Customer Services,Catering,CASP,Supplies & Services,Provisions,Bikold,15/05/2015,346.59
Customer Services,Catering,CASP,Supplies & Services,Provisions,Bikold,15/05/2015,179.30
Customer Services,Catering,CASP,Supplies & Services,Provisions,Bikold,15/05/2015,139.69
Customer Services,Catering,CASP,Supplies & Services,Provisions,Bikold,15/05/2015,270.36
Customer Services,Catering,CASP,Supplies & Services,Provisions,Bikold,15/05/2015,134.45
Customer Services,Catering,CASP,Supplies & Services,Provisions,Bikold,15/05/2015,188.54
Customer Services,Catering,CASP,Supplies & Services,Provisions,Bikold,15/05/2015,125.65
Customer Services,Catering,CASP,Supplies & Services,Provisions,Bikold,15/05/2015,299.51
Customer Services,Catering,CASP,Supplies & Services,Provisions,Bikold,15/05/2015,168.81
Customer Services,Catering,CASP,Supplies & Services,Provisions,Bikold,15/05/2015,107.72
Customer Services,Catering,CASP,Supplies & Services,Provisions,Bikold,15/05/2015,308.23
Customer Services,Catering,CASP,Supplies & Services,Provisions,Bikold,15/05/2015,204.46
Customer Services,Catering,CASP,Supplies & Services,Provisions,Bikold,15/05/2015,272.74
Customer Services,Catering,CASP,Supplies & Services,Provisions,Bikold,15/05/2015,133.45
Customer Services,Catering,CASP,Supplies & Services,Provisions,Bikold,15/05/2015,241.93
Customer Services,Catering,CASP,Supplies & Services,Provisions,Bikold,15/05/2015,139.10
Customer Services,Catering,CASP,Supplies & Services,Provisions,Bikold,15/05/2015,170.37
Customer Services,Catering,CASP,Supplies & Services,Provisions,Bikold,15/05/2015,109.88
Customer Services,Catering,CASP,Supplies & Services,Provisions,Bikold,15/05/2015,115.20
Customer Services,Catering,CASP,Supplies & Services,Provisions,Bikold,15/05/2015,173.27
Customer Services,Catering,CASP,Supplies & Services,Provisions,Bikold,15/05/2015,132.46
Customer Services,Catering,CASP,Supplies & Services,Provisions,Bikold,15/05/2015,103.96
Customer Services,Catering,CASP,Supplies & Services,Provisions,Bikold,15/05/2015,139.93
Customer Services,Catering,CASP,Supplies & Services,Provisions,Bikold,15/05/2015,161.22
Customer Services,Catering,CASP,Supplies & Services,Provisions,Bikold,15/05/2015,224.57
Customer Services,Catering,CASP,Supplies & Services,Provisions,Bikold,15/05/2015,181.44
Customer Services,Catering,CASP,Supplies & Services,Provisions,Bikold,15/05/2015,161.67
Customer Services,Catering,CASP,Supplies & Services,Provisions,Bikold,15/05/2015,232.21
Customer Services,Catering,CASP,Supplies & Services,Provisions,Bikold,15/05/2015,104.02
Customer Services,Catering,CASP,Supplies & Services,Provisions,Bikold,15/05/2015,112.48
Customer Services,Catering,CASP,Supplies & Services,Provisions,Bikold,15/05/2015,291.08
Customer Services,Catering,CASP,Supplies & Services,Provisions,Bikold,15/05/2015,124.59
Customer Services,Catering,CASP,Supplies & Services,Provisions,Bikold,15/05/2015,159.13
Customer Services,Catering,CASP,Supplies & Services,Provisions,Bikold,15/05/2015,274.58
Customer Services,Catering,CASP,Supplies & Services,Provisions,Bikold,15/05/2015,298.89
Customer Services,Catering,CASP,Supplies & Services,Provisions,Bikold,15/05/2015,119.15
Customer Services,Catering,CASP,Supplies & Services,Provisions,Bikold,15/05/2015,251.25
Customer Services,Catering,CASP,Supplies & Services,Provisions,Bikold,15/05/2015,235.46
Customer Services,Catering,CASP,Supplies & Services,Provisions,Bikold,15/05/2015,121.99
Customer Services,Catering,CASP,Supplies & Services,Provisions,Bikold,15/05/2015,225.08
Customer Services,Catering,CASP,Supplies & Services,Provisions,Bikold,15/05/2015,154.25
Customer Services,Catering,CASP,Supplies & Services,Provisions,Bikold,15/05/2015,106.62
Customer Services,Catering,CASP,Supplies & Services,Provisions,Bikold,15/05/2015,111.39
Customer Services,Catering,CASP,Supplies & Services,Provisions,Bikold,15/05/2015,294.55
Customer Services,Catering,CASP,Supplies & Services,Provisions,Bikold,15/05/2015,423.09
Customer Services,Catering,CASP,Supplies & Services,Provisions,Bikold,15/05/2015,164.15
Customer Services,Catering,CASP,Supplies & Services,Provisions,Bikold,15/05/2015,106.62
Customer Services,Catering,CASP,Supplies & Services,Provisions,Bikold,15/05/2015,227.70
Customer Services,Catering,CASP,Supplies & Services,Provisions,Bikold,15/05/2015,103.87
Customer Services,Catering,CASP,Supplies & Services,Provisions,Bikold,15/05/2015,207.42
Customer Services,Catering,CASP,Supplies & Services,Provisions,Bikold,15/05/2015,117.37
Customer Services,Catering,CASP,Supplies & Services,Provisions,Bikold,15/05/2015,308.71
Customer Services,Catering,CASP,Supplies & Services,Provisions,Bikold,15/05/2015,197.08
Customer Services,Catering,CASP,Supplies & Services,Provisions,Bikold,15/05/2015,141.57
Customer Services,Catering,CASP,Supplies & Services,Provisions,Bikold,15/05/2015,228.98
Customer Services,Catering,CASP,Supplies & Services,Provisions,Bikold,15/05/2015,402.09
Customer Services,Catering,CASP,Supplies & Services,Provisions,Bikold,15/05/2015,247.34
Customer Services,Catering,CASP,Supplies & Services,Provisions,Bikold,15/05/2015,149.68
Customer Services,Catering,CASP,Supplies & Services,Provisions,Bikold,15/05/2015,318.82
Customer Services,Catering,CASP,Supplies & Services,Provisions,Bikold,15/05/2015,143.82
Customer Services,Catering,CASP,Supplies & Services,Provisions,Bikold,15/05/2015,268.05
Customer Services,Catering,CASP,Supplies & Services,Provisions,Bikold,15/05/2015,245.74
Customer Services,Catering,CASP,Supplies & Services,Provisions,Bikold,15/05/2015,104.18
Customer Services,Catering,CASP,Supplies & Services,Provisions,Bikold,15/05/2015,175.57
Customer Services,Catering,CASP,Supplies & Services,Provisions,Bikold,15/05/2015,109.47
Customer Services,Catering,CASP,Supplies & Services,Provisions,Bikold,15/05/2015,117.03
Customer Services,Catering,CASP,Supplies & Services,Provisions,Bikold,15/05/2015,200.46
Customer Services,Catering,CASP,Supplies & Services,Provisions,Bikold,15/05/2015,359.66
Customer Services,Catering,CASP,Supplies & Services,Provisions,Bikold,15/05/2015,334.93
Customer Services,Catering,CASP,Supplies & Services,Provisions,Bikold,15/05/2015,133.96
Customer Services,Catering,CASP,Supplies & Services,Provisions,Bikold,15/05/2015,382.06
Customer Services,Catering,CASP,Supplies & Services,Provisions,Bikold,15/05/2015,123.10
Customer Services,Catering,CASP,Supplies & Services,Provisions,Bikold,15/05/2015,133.67
Customer Services,Catering,CASP,Supplies & Services,Provisions,Bikold,15/05/2015,123.92
Customer Services,Catering,CASP,Supplies & Services,Provisions,Bikold,15/05/2015,191.63
Customer Services,Catering,CASP,Supplies & Services,Provisions,Bikold,15/05/2015,120.49
Customer Services,Catering,CASP,Supplies & Services,Provisions,Bikold,15/05/2015,186.92
Customer Services,Catering,CASP,Supplies & Services,Provisions,Bikold,15/05/2015,127.65
Customer Services,Catering,CASP,Supplies & Services,Provisions,Bikold,15/05/2015,435.74
Customer Services,Catering,CASP,Supplies & Services,Provisions,Bikold,15/05/2015,462.63
Customer Services,Catering,CASP,Supplies & Services,Provisions,Bikold,15/05/2015,207.02
Customer Services,Catering,CASP,Supplies & Services,Provisions,Bikold,15/05/2015,166.38
Customer Services,Catering,CASP,Supplies & Services,Provisions,SAFY IMPEX LTD T/A SPICE TIME,01/05/2015,116.00
Customer Services,Catering,CASP,Supplies & Services,Provisions,ROWLANDS & COMPANY,01/05/2015,172.23
Customer Services,Catering,CASP,Supplies & Services,Provisions,ROWLANDS & COMPANY,01/05/2015,106.54
Customer Services,Catering,CASP,Supplies & Services,Provisions,Bikold,01/05/2015,303.95
Customer Services,Catering,CASP,Supplies & Services,Provisions,Bikold,01/05/2015,331.05
Customer Services,Catering,CASP,Supplies & Services,Provisions,Bikold,15/05/2015,219.28
Customer Services,Catering,CASP,Supplies & Services,Provisions,Bikold,01/05/2015,180.96
Customer Services,Catering,CASP,Supplies & Services,Provisions,SAFY IMPEX LTD T/A SPICE TIME,01/05/2015,170.00
Customer Services,Catering,CASP,Supplies & Services,Provisions,SAFY IMPEX LTD T/A SPICE TIME,01/05/2015,219.50
Customer Services,Catering,CASP,Supplies & Services,Provisions,SAFY IMPEX LTD T/A SPICE TIME,01/05/2015,200.00
Customer Services,Catering,CASP,Supplies & Services,Provisions,SAFY IMPEX LTD T/A SPICE TIME,01/05/2015,150.00
Customer Services,Catering,CASP,Supplies & Services,Provisions,SAFY IMPEX LTD T/A SPICE TIME,01/05/2015,168.00
Customer Services,Catering,CASP,Supplies & Services,Provisions,John Sheppard Catering Butchers,14/05/2015,190.42
Customer Services,Catering,CASP,Supplies & Services,Provisions,John Sheppard Catering Butchers,14/05/2015,156.75
Customer Services,Catering,CASP,Supplies & Services,Provisions,John Sheppard Catering Butchers,14/05/2015,118.65
Customer Services,Catering,CASP,Supplies & Services,Provisions,John Sheppard Catering Butchers,14/05/2015,100.01
Customer Services,Catering,CASP,Supplies & Services,Provisions,John Sheppard Catering Butchers,14/05/2015,110.40
Customer Services,Catering,CASP,Supplies & Services,Provisions,Bikold,01/05/2015,351.04
Customer Services,Catering,CASP,Supplies & Services,Provisions,John Sheppard Catering Butchers,14/05/2015,146.31
Customer Services,Catering,CASP,Supplies & Services,Provisions,John Sheppard Catering Butchers,14/05/2015,124.16
Customer Services,Catering,CASP,Supplies & Services,Provisions,John Sheppard Catering Butchers,14/05/2015,130.21
Customer Services,Catering,CASP,Supplies & Services,Provisions,John Sheppard Catering Butchers,14/05/2015,166.47
Customer Services,Catering,CASP,Supplies & Services,Provisions,John Sheppard Catering Butchers,14/05/2015,142.12
Customer Services,Catering,CASP,Supplies & Services,Provisions,John Sheppard Catering Butchers,14/05/2015,118.76
Customer Services,Catering,CASP,Supplies & Services,Provisions,RESPOL FLOORING SOLUTIONS,12/05/2015,-107.30
Customer Services,Catering,CASP,Supplies & Services,Provisions,RESPOL FLOORING SOLUTIONS,12/05/2015,-150.35
Customer Services,Catering,CASP,Supplies & Services,Provisions,RESPOL FLOORING SOLUTIONS,12/05/2015,-121.42
Customer Services,Catering,CASP,Supplies & Services,Provisions,Bikold,01/05/2015,136.56
Customer Services,Catering,CASP,Supplies & Services,Provisions,Bikold,01/05/2015,225.55
Customer Services,Catering,CASP,Supplies & Services,Provisions,John Sheppard Catering Butchers,14/05/2015,264.18
Customer Services,Catering,CASP,Supplies & Services,Provisions,Bikold,29/05/2015,110.37
Customer Services,Catering,CASP,Supplies & Services,Provisions,John Sheppard Catering Butchers,28/05/2015,157.35
Customer Services,Catering,CASP,Supplies & Services,Provisions,RESPOL FLOORING SOLUTIONS,12/05/2015,-114.42
Customer Services,Catering,CASP,Supplies & Services,Provisions,RESPOL FLOORING SOLUTIONS,12/05/2015,-145.04
Customer Services,Catering,CASP,Supplies & Services,Provisions,RESPOL FLOORING SOLUTIONS,12/05/2015,-177.50
Customer Services,Catering,CASP,Supplies & Services,Provisions,RESPOL FLOORING SOLUTIONS,12/05/2015,-125.84
Customer Services,Catering,CASP,Supplies & Services,Provisions,Bikold,29/05/2015,159.69
Customer Services,Catering,CASP,Supplies & Services,Provisions,Bikold,29/05/2015,324.64
Customer Services,Catering,CASP,Supplies & Services,Provisions,Bikold,29/05/2015,153.71
Customer Services,Catering,CASP,Supplies & Services,Provisions,Bikold,29/05/2015,100.91
Customer Services,Catering,CASP,Supplies & Services,Provisions,Bikold,29/05/2015,102.01
Customer Services,Catering,CASP,Supplies & Services,Provisions,Bikold,29/05/2015,111.21
Customer Services,Catering,CASP,Supplies & Services,Provisions,ROWLANDS & COMPANY,28/05/2015,113.15
Customer Services,Catering,CASP,Supplies & Services,Provisions,ROWLANDS & COMPANY,28/05/2015,105.24
Customer Services,Catering,CASP,Supplies & Services,Provisions,ROWLANDS & COMPANY,28/05/2015,129.31
Customer Services,Catering,CASP,Supplies & Services,Provisions,ROWLANDS & COMPANY,28/05/2015,121.82
Customer Services,Catering,CASP,Supplies & Services,Provisions,ROWLANDS & COMPANY,28/05/2015,141.22
Customer Services,Catering,CASP,Supplies & Services,Provisions,Bikold,29/05/2015,121.25
Customer Services,Catering,CASP,Supplies & Services,Provisions,John Sheppard Catering Butchers,28/05/2015,242.11
Customer Services,Catering,CASP,Supplies & Services,Provisions,ROWLANDS & COMPANY,28/05/2015,178.61
Customer Services,Catering,CASP,Supplies & Services,Provisions,ROWLANDS & COMPANY,28/05/2015,158.12
Customer Services,Catering,CASP,Supplies & Services,Provisions,ROWLANDS & COMPANY,28/05/2015,180.53
Customer Services,Catering,CASP,Supplies & Services,Provisions,ROWLANDS & COMPANY,28/05/2015,109.56
Customer Services,Catering,CASP,Supplies & Services,Provisions,ROWLANDS & COMPANY,28/05/2015,155.39
Customer Services,Catering,CASP,Supplies & Services,Provisions,John Sheppard Catering Butchers,28/05/2015,158.54
Customer Services,Catering,CASP,Supplies & Services,Provisions,John Sheppard Catering Butchers,28/05/2015,103.70
Customer Services,Catering,CASP,Supplies & Services,Provisions,John Sheppard Catering Butchers,28/05/2015,103.16
Customer Services,Catering,CASP,Supplies & Services,Provisions,John Sheppard Catering Butchers,28/05/2015,169.92
Customer Services,Catering,CASP,Supplies & Services,Provisions,John Sheppard Catering Butchers,28/05/2015,138.98
Customer Services,Catering,CASP,Supplies & Services,Provisions,John Sheppard Catering Butchers,28/05/2015,-111.18
Customer Services,Catering,CASP,Supplies & Services,Provisions,John Sheppard Catering Butchers,28/05/2015,209.64
Customer Services,Catering,CASP,Supplies & Services,Provisions,John Sheppard Catering Butchers,28/05/2015,141.02
Customer Services,Catering,CASP,Supplies & Services,Provisions,John Sheppard Catering Butchers,28/05/2015,292.88
Customer Services,Catering,CASP,Supplies & Services,Provisions,John Sheppard Catering Butchers,28/05/2015,121.19
Customer Services,Catering,CASP,Supplies & Services,Provisions,John Sheppard Catering Butchers,28/05/2015,190.74
Customer Services,Catering,CASP,Supplies & Services,Provisions,John Sheppard Catering Butchers,28/05/2015,243.63
Customer Services,Catering,CASP,Supplies & Services,Provisions,John Sheppard Catering Butchers,28/05/2015,-119.53
Customer Services,Catering,CASP,Supplies & Services,Provisions,John Sheppard Catering Butchers,28/05/2015,193.25
Customer Services,Catering,CASP,Supplies & Services,Provisions,John Sheppard Catering Butchers,28/05/2015,331.43
Customer Services,Catering,CASP,Supplies & Services,Provisions,John Sheppard Catering Butchers,28/05/2015,155.23
Customer Services,Catering,CASP,Supplies & Services,Provisions,John Sheppard Catering Butchers,28/05/2015,169.49
Customer Services,Catering,CASP,Supplies & Services,Provisions,John Sheppard Catering Butchers,28/05/2015,111.18
Customer Services,Catering,CASP,Supplies & Services,Provisions,ROWLANDS & COMPANY,27/05/2015,162.77
Customer Services,Catering,CASP,Supplies & Services,Provisions,ROWLANDS & COMPANY,27/05/2015,155.46
Customer Services,Catering,CASP,Supplies & Services,Provisions,ROWLANDS & COMPANY,27/05/2015,203.01
Customer Services,Catering,CASP,Supplies & Services,Provisions,ROWLANDS & COMPANY,27/05/2015,100.53
Customer Services,Catering,CASP,Supplies & Services,Provisions,John Sheppard Catering Butchers,28/05/2015,176.45
Customer Services,Catering,CASP,Supplies & Services,Provisions,John Sheppard Catering Butchers,28/05/2015,-131.25
Customer Services,Catering,CASP,Supplies & Services,Provisions,ROWLANDS & COMPANY,27/05/2015,102.27
Customer Services,Catering,CASP,Supplies & Services,Provisions,ROWLANDS & COMPANY,27/05/2015,105.13
Customer Services,Catering,CASP,Supplies & Services,Provisions,ROWLANDS & COMPANY,27/05/2015,154.16
Customer Services,Catering,CASP,Supplies & Services,Provisions,ROWLANDS & COMPANY,27/05/2015,126.00
Customer Services,Catering,CASP,Supplies & Services,Provisions,ROWLANDS & COMPANY,27/05/2015,163.30
Customer Services,Catering,CASP,Supplies & Services,Protective Clothing,IMAGE@WORK LTD,05/05/2015,240.00
Customer Services,Catering,CASS,Supplies & Services,Provisions,RADNOR HILLS MINERAL WATER COMPANY LTD,06/05/2015,157.20
Customer Services,Catering,CASS,Supplies & Services,Provisions,RADNOR HILLS MINERAL WATER COMPANY LTD,06/05/2015,238.86
Customer Services,Catering,CASS,Supplies & Services,Provisions,Willoughby (731) Ltd T/A The Fabulous Bakin' Boys,06/05/2015,146.02
Customer Services,Catering,CASS,Supplies & Services,Provisions,On A Roll,06/05/2015,158.37
Customer Services,Catering,CASS,Supplies & Services,Provisions,On A Roll,06/05/2015,269.44
Customer Services,Catering,CASS,Supplies & Services,Provisions,Willoughby (731) Ltd T/A The Fabulous Bakin' Boys,06/05/2015,110.59
Customer Services,Catering,CASS,Supplies & Services,Provisions,Bikold,21/05/2015,325.57
Customer Services,Catering,CASS,Supplies & Services,Provisions,Bikold,21/05/2015,325.08
Customer Services,Catering,CASS,Supplies & Services,Provisions,Bikold,21/05/2015,112.70
Customer Services,Catering,CASS,Supplies & Services,Provisions,Bikold,21/05/2015,315.70
Customer Services,Catering,CASS,Supplies & Services,Provisions,Bikold,21/05/2015,111.44
Customer Services,Catering,CASS,Supplies & Services,Provisions,Willoughby (731) Ltd T/A The Fabulous Bakin' Boys,05/05/2015,126.10
Customer Services,Catering,CASS,Supplies & Services,Provisions,Bikold,01/05/2015,"1,098.19"
Customer Services,Catering,CASS,Supplies & Services,Provisions,Bikold,01/05/2015,156.01
Customer Services,Catering,CASS,Supplies & Services,Provisions,Bikold,01/05/2015,177.01
Customer Services,Catering,CASS,Supplies & Services,Provisions,Bikold,21/05/2015,178.82
Customer Services,Catering,CASS,Supplies & Services,Provisions,Bikold,21/05/2015,362.30
Customer Services,Catering,CASS,Supplies & Services,Provisions,Bikold,21/05/2015,104.72
Customer Services,Catering,CASS,Supplies & Services,Provisions,Bikold,01/05/2015,151.93
Customer Services,Catering,CASS,Supplies & Services,Provisions,Bikold,01/05/2015,335.85
Customer Services,Catering,CASS,Supplies & Services,Provisions,Bikold,01/05/2015,129.71
Customer Services,Catering,CASS,Supplies & Services,Provisions,Bikold,01/05/2015,137.46
Customer Services,Catering,CASS,Supplies & Services,Provisions,Bikold,01/05/2015,171.47
Customer Services,Catering,CASS,Supplies & Services,Provisions,Bikold,01/05/2015,654.31
Customer Services,Catering,CASS,Supplies & Services,Provisions,Willoughby (731) Ltd T/A The Fabulous Bakin' Boys,20/05/2015,131.73
Customer Services,Catering,CASS,Supplies & Services,Provisions,SMART FOOD,20/05/2015,498.60
Customer Services,Catering,CASS,Supplies & Services,Provisions,Tasties of Chester Ltd,20/05/2015,300.60
Customer Services,Catering,CASS,Supplies & Services,Provisions,Bikold,01/05/2015,128.96
Customer Services,Catering,CASS,Supplies & Services,Provisions,Bikold,01/05/2015,158.53
Customer Services,Catering,CASS,Supplies & Services,Provisions,Bikold,01/05/2015,125.61
Customer Services,Catering,CASS,Supplies & Services,Provisions,Bikold,08/05/2015,136.16
Customer Services,Catering,CASS,Supplies & Services,Provisions,Bikold,08/05/2015,174.52
Customer Services,Catering,CASS,Supplies & Services,Provisions,John Sheppard Catering Butchers,01/05/2015,156.14
Customer Services,Catering,CASS,Supplies & Services,Provisions,RADNOR HILLS MINERAL WATER COMPANY LTD,20/05/2015,195.49
Customer Services,Catering,CASS,Supplies & Services,Provisions,On A Roll,20/05/2015,146.32
Customer Services,Catering,CASS,Supplies & Services,Provisions,RADNOR HILLS MINERAL WATER COMPANY LTD,20/05/2015,339.78
Customer Services,Catering,CASS,Supplies & Services,Provisions,Bikold,08/05/2015,302.59
Customer Services,Catering,CASS,Supplies & Services,Provisions,Bikold,08/05/2015,155.66
Customer Services,Catering,CASS,Supplies & Services,Provisions,Bikold,08/05/2015,115.12
Customer Services,Catering,CASS,Supplies & Services,Provisions,Bikold,08/05/2015,107.41
Customer Services,Catering,CASS,Supplies & Services,Provisions,Bikold,08/05/2015,237.46
Customer Services,Catering,CASS,Supplies & Services,Provisions,Bikold,08/05/2015,395.25
Customer Services,Catering,CASS,Supplies & Services,Provisions,Bikold,01/05/2015,126.33
Customer Services,Catering,CASS,Supplies & Services,Provisions,Bikold,01/05/2015,219.82
Customer Services,Catering,CASS,Supplies & Services,Provisions,Willoughby (731) Ltd T/A The Fabulous Bakin' Boys,07/05/2015,131.59
Customer Services,Catering,CASS,Supplies & Services,Provisions,On A Roll,07/05/2015,101.54
Customer Services,Catering,CASS,Supplies & Services,Provisions,Bikold,01/05/2015,192.19
Customer Services,Catering,CASS,Supplies & Services,Provisions,Bikold,01/05/2015,180.40
Customer Services,Catering,CASS,Supplies & Services,Provisions,Bikold,15/05/2015,115.07
Customer Services,Catering,CASS,Supplies & Services,Provisions,Bikold,15/05/2015,138.20
Customer Services,Catering,CASS,Supplies & Services,Provisions,Bikold,15/05/2015,156.69
Customer Services,Catering,CASS,Supplies & Services,Provisions,Bikold,01/05/2015,309.55
Customer Services,Catering,CASS,Supplies & Services,Provisions,Bikold,01/05/2015,353.78
Customer Services,Catering,CASS,Supplies & Services,Provisions,Bikold,01/05/2015,258.59
Customer Services,Catering,CASS,Supplies & Services,Provisions,Bikold,15/05/2015,110.80
Customer Services,Catering,CASS,Supplies & Services,Provisions,Bikold,15/05/2015,156.90
Customer Services,Catering,CASS,Supplies & Services,Provisions,Bikold,15/05/2015,131.67
Customer Services,Catering,CASS,Supplies & Services,Provisions,Bikold,15/05/2015,623.68
Customer Services,Catering,CASS,Supplies & Services,Provisions,Bikold,15/05/2015,100.64
Customer Services,Catering,CASS,Supplies & Services,Provisions,Bikold,15/05/2015,198.49
Customer Services,Catering,CASS,Supplies & Services,Provisions,Bikold,15/05/2015,312.72
Customer Services,Catering,CASS,Supplies & Services,Provisions,Bikold,15/05/2015,257.13
Customer Services,Catering,CASS,Supplies & Services,Provisions,Bikold,15/05/2015,100.92
Customer Services,Catering,CASS,Supplies & Services,Provisions,Bikold,15/05/2015,316.25
Customer Services,Catering,CASS,Supplies & Services,Provisions,Bikold,15/05/2015,130.48
Customer Services,Catering,CASS,Supplies & Services,Provisions,Bikold,15/05/2015,289.97
Customer Services,Catering,CASS,Supplies & Services,Provisions,SAFY IMPEX LTD T/A SPICE TIME,01/05/2015,178.50
Customer Services,Catering,CASS,Supplies & Services,Provisions,Bikold,15/05/2015,244.50
Customer Services,Catering,CASS,Supplies & Services,Provisions,Bikold,15/05/2015,233.57
Customer Services,Catering,CASS,Supplies & Services,Provisions,Tasties of Chester Ltd,11/05/2015,300.60
Customer Services,Catering,CASS,Supplies & Services,Provisions,Bikold,29/05/2015,-144.00
Customer Services,Catering,CASS,Supplies & Services,Provisions,Bikold,15/05/2015,173.67
Customer Services,Catering,CASS,Supplies & Services,Provisions,Bikold,29/05/2015,112.32
Customer Services,Catering,CASS,Supplies & Services,Provisions,Bikold,29/05/2015,267.90
Customer Services,Catering,CASS,Supplies & Services,Provisions,On A Roll,19/05/2015,187.96
Customer Services,Catering,CASS,Supplies & Services,Provisions,On A Roll,19/05/2015,208.03
Customer Services,Catering,CASS,Supplies & Services,Provisions,Tasties of Chester Ltd,19/05/2015,300.60
Customer Services,Catering,CASS,Supplies & Services,Provisions,Tasties of Chester Ltd,19/05/2015,300.60
Customer Services,Catering,CASS,Supplies & Services,Provisions,John Sheppard Catering Butchers,28/05/2015,152.54
Customer Services,Catering,CASS,Supplies & Services,Provisions,John Sheppard Catering Butchers,28/05/2015,126.40
Customer Services,Catering,CASS,Supplies & Services,Provisions,John Sheppard Catering Butchers,28/05/2015,161.66
Customer Services,Catering,CASS,Supplies & Services,Provisions,ROWLANDS & COMPANY,28/05/2015,117.38
Customer Services,Catering,CASS,Supplies & Services,Provisions,Bikold,29/05/2015,337.20
Customer Services,Catering,CASS,Supplies & Services,Provisions,Bikold,29/05/2015,127.18
Customer Services,Catering,CASS,Supplies & Services,Provisions,ROWLANDS & COMPANY,27/05/2015,293.63
Customer Services,Catering,CASX,Supplies & Services,Provisions,Bikold,21/05/2015,115.28
Customer Services,Catering,CASX,Supplies & Services,Provisions,Bikold,21/05/2015,202.02
Customer Services,Catering,CASX,Supplies & Services,Provisions,Bikold,15/05/2015,195.05
Customer Services,Catering,CASX,Supplies & Services,Provisions,Bikold,15/05/2015,153.11
Customer Services,Catering,CASX,Supplies & Services,Provisions,Bikold,08/05/2015,218.43
Customer Services,Catering,CASX,Supplies & Services,Provisions,Bikold,01/05/2015,186.95
Customer Services,Catering,CASX,Supplies & Services,Provisions,Bikold,08/05/2015,148.30
Customer Services,Catering,CASX,Supplies & Services,Provisions,Bikold,01/05/2015,187.22
Customer Services,Catering,COMM,Supplies & Services,Provisions,Bikold,29/05/2015,122.87
Customer Services,Catering,COMM,Supplies & Services,Provisions,Bikold,01/05/2015,329.61
Customer Services,Catering,COMM,Supplies & Services,Provisions,Bikold,21/05/2015,106.42
Customer Services,Catering,COMM,Supplies & Services,Provisions,Bikold,21/05/2015,278.09
Customer Services,Catering,COMM,Supplies & Services,Provisions,Brambles Foods Ltd,05/05/2015,467.37
Customer Services,Catering,COMM,Supplies & Services,Provisions,Brambles Foods Ltd,05/05/2015,-100.69
Customer Services,Catering,COMM,Supplies & Services,Provisions,Bikold,15/05/2015,119.10
Customer Services,Catering,COMM,Supplies & Services,Provisions,Bikold,15/05/2015,432.07
Customer Services,Catering,COMM,Supplies & Services,Provisions,Bikold,15/05/2015,146.16
Customer Services,Catering,COMM,Supplies & Services,Provisions,Bikold,08/05/2015,117.42
Customer Services,Catering,COMM,Supplies & Services,Provisions,Bikold,08/05/2015,191.29
Customer Services,Catering,COMM,Supplies & Services,Provisions,Bikold,08/05/2015,141.40
Customer Services,Catering,COMM,Supplies & Services,Provisions,Brambles Foods Ltd,28/05/2015,441.41
Customer Services,Catering,COMM,Supplies & Services,Provisions,Brambles Foods Ltd,29/05/2015,370.34
Customer Services,Catering,COMM,Supplies & Services,Provisions,Brambles Foods Ltd,14/05/2015,543.99
Customer Services,Catering,COMM,Supplies & Services,Provisions,Aroma Tea & Coffee Merchants,14/05/2015,112.80
Customer Services,Catering,COMM,Supplies & Services,Other Services,ERIC NEVILLE CATERING SUPPLIES LTD,28/05/2015,"3,822.24"
Customer Services,Catering,COMM,Supplies & Services,Other Services,ERIC NEVILLE CATERING SUPPLIES LTD,28/05/2015,"2,141.00"
Customer Services,Catering,LCAP,Supplies & Services,Equipment - Purchase,ERIC NEVILLE CATERING SUPPLIES LTD,05/05/2015,600.00
Customer Services,Catering,LCAP,Supplies & Services,Equipment - Purchase,ERIC NEVILLE CATERING SUPPLIES LTD,28/05/2015,"1,090.24"
Customer Services,Catering,LEIC,Supplies & Services,Holidays & Outings,TROPICAL ICE,14/05/2015,300.60
Customer Services,Catering,LEIC,Supplies & Services,Provisions,Bikold,21/05/2015,338.43
Customer Services,Catering,LEIC,Supplies & Services,Provisions,Bikold,21/05/2015,125.30
Customer Services,Catering,LEIC,Supplies & Services,Provisions,Bikold,21/05/2015,217.41
Customer Services,Catering,LEIC,Supplies & Services,Provisions,Bikold,15/05/2015,350.25
Customer Services,Catering,LEIC,Supplies & Services,Provisions,Bikold,15/05/2015,139.92
Customer Services,Catering,LEIC,Supplies & Services,Provisions,Bikold,08/05/2015,147.52
Customer Services,Catering,LEIC,Supplies & Services,Provisions,Bikold,08/05/2015,126.67
Customer Services,Catering,LEIC,Supplies & Services,Provisions,Bikold,01/05/2015,139.61
Customer Services,Catering,LEIC,Supplies & Services,Provisions,Bikold,29/05/2015,187.32
Customer Services,Catering,LEIC,Supplies & Services,Provisions,P & H SNACKS DIRECT LTD,28/05/2015,236.45
Customer Services,Catering,LEIC,Supplies & Services,Provisions,Willoughby (731) Ltd T/A The Fabulous Bakin' Boys,14/05/2015,205.41
Customer Services,Catering,LEIC,Supplies & Services,Provisions,Willoughby (731) Ltd T/A The Fabulous Bakin' Boys,14/05/2015,147.23
Customer Services,Catering,LEIC,Supplies & Services,Provisions,Delice de France,14/05/2015,154.30
Customer Services,Catering,LEIC,Supplies & Services,Provisions,TROPICAL ICE,14/05/2015,240.00
Customer Services,Catering,LEIC,Supplies & Services,Provisions,TROPICAL ICE,14/05/2015,875.00
Customer Services,Catering,LEIC,Supplies & Services,Protective Clothing,SIMON JERSEY LIMITED,28/05/2015,167.92
Customer Services,Customer & Registrars Services,LMAG,Supplies & Services,Equipment - Purchase,Mistry Medical Supplies Ltd,21/05/2015,887.68
Customer Services,Customer & Registrars Services,LSAA,Supplies & Services,Equipment - Purchase,Cartridge Save Limited,13/05/2015,162.08
Customer Services,Customer & Registrars Services,LSAA,Supplies & Services,Equipment - Purchase,Arcania,29/05/2015,107.50
Customer Services,Customer & Registrars Services,LSAB,Premises-Related Expenditure, Cemeteries Grounds Maintenance ,P & W MAINTENANCE CONTRACTING LTD,27/05/2015,"3,944.95"
Customer Services,Customer & Registrars Services,LSAB,Premises-Related Expenditure, Cemeteries Grounds Maintenance ,P & W MAINTENANCE CONTRACTING LTD,27/05/2015,683.66
Customer Services,Customer & Registrars Services,LSAB,Supplies & Services,Funeral Services,C J WILLIAMS FUNERAL SERVICES,07/05/2015,450.00
Customer Services,Customer & Registrars Services,LSAB,Supplies & Services,Subscriptions,ICCM,29/05/2015,445.00
Customer Services,Facilities Management and Cleaning Services,ASAB,Employees,Training Expenses,NAT ASSOC OF BRITISH MARKET AUTHORITIES,12/05/2015,795.00
Customer Services,Facilities Management and Cleaning Services,ASAB,Premises-Related Expenditure,R&M -Buildings DLO Charge,BUSINESS WATCH GUARDING LIMITED,21/05/2015,521.04
Customer Services,Facilities Management and Cleaning Services,CFAA,Premises-Related Expenditure,Grounds Maintenance - Other,NOBRIDGE LTD,28/05/2015,132.92
Customer Services,Facilities Management and Cleaning Services,CFAA,Premises-Related Expenditure,Grounds Maintenance - Other,NOBRIDGE LTD,14/05/2015,"7,255.99"
Customer Services,Facilities Management and Cleaning Services,CFAA,Premises-Related Expenditure,Grounds Maintenance - Other,Cropper Grounds Maintenance Ltd,12/05/2015,"3,081.88"
Customer Services,Facilities Management and Cleaning Services,CFAD,Supplies & Services,Security Services,BUSINESS WATCH GUARDING LIMITED,20/05/2015,"19,053.29"
Customer Services,Facilities Management and Cleaning Services,CFAV,Capital Financing Costs,Unitary Charge,PYRAMID SCHOOLS (HADLEY) LTD,05/05/2015,"828,045.69"
Customer Services,Facilities Management and Cleaning Services,CFAV,Capital Financing Costs,Penalty Deductions,PYRAMID SCHOOLS (HADLEY) LTD,05/05/2015,"-10,000.00"
Customer Services,Facilities Management and Cleaning Services,CFAV,Premises-Related Expenditure,Vandal Damage,INTERSERVE (FACILITIES MANAGEMENT) LTD,15/05/2015,137.61
Customer Services,Facilities Management and Cleaning Services,CFAY,Employees,Training Expenses,TELFORD COLLEGE OF ARTS & TECHNOLOGY,07/05/2015,-900.00
Customer Services,Facilities Management and Cleaning Services,CFAY,Premises-Related Expenditure,R&M -Buildings DLO Charge,WELLINGTON INSULATION CO. LTD,12/05/2015,450.00
Customer Services,Facilities Management and Cleaning Services,CFAY,Premises-Related Expenditure,R&M -Buildings DLO Charge,Pass,12/05/2015,355.00
Customer Services,Facilities Management and Cleaning Services,CFAY,Premises-Related Expenditure,Service Contracts,ACUTE SALES LIMITED,20/05/2015,235.00
Customer Services,Facilities Management and Cleaning Services,CLCM,Premises-Related Expenditure,Clean Mats & Toilet Requisites,Border Janitorial Supplies Limited,21/05/2015,280.59
Customer Services,Facilities Management and Cleaning Services,CLCM,Premises-Related Expenditure,Clean Mats & Toilet Requisites,Border Janitorial Supplies Limited,21/05/2015,315.34
Customer Services,Facilities Management and Cleaning Services,CLCM,Premises-Related Expenditure,Clean Mats & Toilet Requisites,Border Janitorial Supplies Limited,21/05/2015,128.59
Customer Services,Facilities Management and Cleaning Services,CLCM,Premises-Related Expenditure,Clean Mats & Toilet Requisites,Border Janitorial Supplies Limited,21/05/2015,137.60
Customer Services,Facilities Management and Cleaning Services,CLCM,Premises-Related Expenditure,Clean Mats & Toilet Requisites,Border Janitorial Supplies Limited,21/05/2015,125.24
Customer Services,Facilities Management and Cleaning Services,CLCM,Premises-Related Expenditure,Clean Mats & Toilet Requisites,Border Janitorial Supplies Limited,05/05/2015,227.72
Customer Services,Facilities Management and Cleaning Services,CLSP,Premises-Related Expenditure,Clean Mats & Toilet Requisites,Border Janitorial Supplies Limited,21/05/2015,152.30
Customer Services,Facilities Management and Cleaning Services,CLSP,Premises-Related Expenditure,Clean Mats & Toilet Requisites,Border Janitorial Supplies Limited,13/05/2015,110.01
Customer Services,Facilities Management and Cleaning Services,CLSP,Premises-Related Expenditure,Clean Mats & Toilet Requisites,Border Janitorial Supplies Limited,13/05/2015,121.96
Customer Services,Facilities Management and Cleaning Services,CLSP,Premises-Related Expenditure,Clean Mats & Toilet Requisites,Border Janitorial Supplies Limited,21/05/2015,128.97
Customer Services,Facilities Management and Cleaning Services,CLSP,Premises-Related Expenditure,Clean Mats & Toilet Requisites,Border Janitorial Supplies Limited,21/05/2015,103.79
Customer Services,Facilities Management and Cleaning Services,CLSP,Premises-Related Expenditure,Clean Mats & Toilet Requisites,Border Janitorial Supplies Limited,21/05/2015,133.30
Customer Services,Facilities Management and Cleaning Services,CLSP,Premises-Related Expenditure,Clean Mats & Toilet Requisites,Border Janitorial Supplies Limited,21/05/2015,168.10
Customer Services,Facilities Management and Cleaning Services,CLSP,Supplies & Services,Equipment - Repair,THE CLEAN MACHINE DIRECT LTD,13/05/2015,279.94
Customer Services,Facilities Management and Cleaning Services,CLSS,Premises-Related Expenditure,Clean Mats & Toilet Requisites,Border Janitorial Supplies Limited,13/05/2015,140.22
Customer Services,ICT,CBAF,Supplies & Services,Telecomms,Airband Community Internet,11/05/2015,945.00
Customer Services,ICT,CBAF,Supplies & Services,Telecomms,Airband Community Internet,11/05/2015,295.00
Customer Services,ICT,CBAF,Supplies & Services,Telecomms,Airband Community Internet,11/05/2015,295.00
Customer Services,ICT,CBAF,Supplies & Services,Telecomms,Airband Community Internet,11/05/2015,890.00
Customer Services,ICT,CBAF,Supplies & Services,Telecomms,Airband Community Internet,11/05/2015,"1,245.00"
Customer Services,ICT,CBAF,Supplies & Services,Telecomms,Airband Community Internet,11/05/2015,"1,245.00"
Customer Services,ICT,CBAF,Supplies & Services,Telecomms,Airband Community Internet,11/05/2015,295.00
Customer Services,ICT,CBAF,Supplies & Services,Telecomms,Airband Community Internet,11/05/2015,"1,480.00"
Customer Services,ICT,CBAF,Supplies & Services,Telecomms,Airband Community Internet,11/05/2015,"2,690.00"
Customer Services,ICT,CBAF,Supplies & Services,Telecomms,Airband Community Internet,11/05/2015,"1,245.00"
Customer Services,ICT,CBAF,Supplies & Services,Telecomms,Airband Community Internet,11/05/2015,"1,245.00"
Customer Services,ICT,CBAF,Supplies & Services,Telecomms,Airband Community Internet,11/05/2015,295.00
Customer Services,ICT,CBAG,Supplies & Services,Equipment - Purchase,EUROPEAN ELECTRONIQUE LTD,13/05/2015,225.00
Customer Services,ICT,CBAG,Supplies & Services,Equipment - Purchase,EUROPEAN ELECTRONIQUE LTD,19/05/2015,"3,300.00"
Customer Services,ICT,CBAG,Supplies & Services,Equipment - Purchase,CCS MEDIA LIMITED,20/05/2015,"1,799.00"
Customer Services,ICT,CBAG,Supplies & Services,Equipment - Purchase,CCS MEDIA LIMITED,20/05/2015,325.00
Customer Services,ICT,CBAG,Supplies & Services,Comp Hardware (Purch / Hire),EUROPEAN ELECTRONIQUE LTD,19/05/2015,"4,825.50"
Customer Services,ICT,CBAG,Supplies & Services,Comp Hardware (Purch / Hire),EUROPEAN ELECTRONIQUE LTD,19/05/2015,"1,048.96"
Customer Services,ICT,CBAG,Supplies & Services,Comp Hardware (Purch / Hire),SPECIALIST COMPUTERS CENTRES PLC,15/05/2015,"4,168.20"
Customer Services,ICT,CBAG,Supplies & Services,Comp Hardware (Purch / Hire),SPECIALIST COMPUTERS CENTRES PLC,15/05/2015,"1,541.62"
Customer Services,ICT,CBAG,Supplies & Services,Computer Software (Maint),PHOENIX SOFTWARE LTD,11/05/2015,381.00
Customer Services,ICT,CBAG,Supplies & Services,Telephones,VIRGIN MEDIA BUSINESS,21/05/2015,"9,802.68"
Customer Services,ICT,CBAG,Supplies & Services,Mobile Phones,EE LTD,27/05/2015,"-2,993.00"
Customer Services,ICT,CBAG,Supplies & Services,Mobile Phones,ORANGE PCS LTD,27/05/2015,-225.00
Customer Services,ICT,CBAG,Supplies & Services,Mobile Phones,ORANGE PCS LTD,14/05/2015,"-1,560.00"
Customer Services,ICT,CBAG,Supplies & Services,Mobile Phones,ORANGE PCS LTD,01/05/2015,-164.00
Customer Services,ICT,CBAG,Supplies & Services,Mobile Phones,ORANGE PCS LTD,01/05/2015,-820.00
Customer Services,ICT,CBAG,Supplies & Services,Mobile Phones,EE LTD,08/05/2015,-369.00
Customer Services,ICT,CBAG,Supplies & Services,Mobile Phones,EE LTD,05/05/2015,-130.00
Customer Services,ICT,CBAG,Supplies & Services,Mobile Phones,EE LTD,05/05/2015,-492.00
Customer Services,ICT,CBAG,Supplies & Services,Mobile Phones,EE LTD,21/05/2015,"2,313.09"
Customer Services,ICT,CBAG,Supplies & Services,Mobile Phones,EE LTD,07/05/2015,164.00
Customer Services,ICT,CBAG,Supplies & Services,Other Expenses,PROCESS FLOWS UK LTD,13/05/2015,292.77
Customer Services,ICT,CBAG,Supplies & Services,Other Expenses,PROCESS FLOWS UK LTD,06/05/2015,481.71
Customer Services,ICT,CBAH,Premises-Related Expenditure,R&M -Building Other,Riello UPS Ltd,07/05/2015,"2,150.01"
Customer Services,ICT,CBAH,Supplies & Services,Comp Software (Purch / Hire),PHOENIX SOFTWARE LTD,12/05/2015,"24,000.00"
Customer Services,ICT,CBAH,Supplies & Services,Comp Software (Purch / Hire),PLANET PC,05/05/2015,"7,622.00"
Customer Services,ICT,CBAH,Supplies & Services,External Computer Use,PHOENIX SOFTWARE LTD,12/05/2015,"9,400.00"
Customer Services,ICT,CBAH,Supplies & Services,Telecomms,Airband Community Internet,11/05/2015,650.00
Customer Services,ICT,CBAH,Supplies & Services,Telecomms,JANET (UK),12/05/2015,"13,686.00"
Customer Services,ICT,CBAJ,Employees,Staff Training,DODS PARLIAMENTARY COMMUNICATIONS LTD,13/05/2015,155.00
Customer Services,ICT,CBAJ,Employees,Recruitment Advertising,TOTALJOBS GROUP,15/05/2015,400.00
Customer Services,ICT,CBAJ,Premises-Related Expenditure,R&M -Building Other,PP ELECTRICAL SERVICES (Shropshire) Ltd,08/05/2015,630.00
Customer Services,ICT,CBAJ,Supplies & Services,Equipment - Purchase,WREKIN SERVICES LTD,05/05/2015,175.00
Customer Services,ICT,CBAJ,Supplies & Services,Comp Hardware (Purch / Hire),SPECIALIST COMPUTERS CENTRES PLC,13/05/2015,"3,530.60"
Customer Services,ICT,CBAJ,Supplies & Services,Comp Hardware (Purch / Hire),SPECIALIST COMPUTERS CENTRES PLC,22/05/2015,"7,489.20"
Customer Services,ICT,CBAJ,Supplies & Services,Computer Hardware (Maint),AXIELL LTD,29/05/2015,400.00
Customer Services,ICT,CBAJ,Supplies & Services,Comp Software (Purch / Hire),NORTHGATEARINSO UK LTD,27/05/2015,"67,219.16"
Customer Services,ICT,CBAJ,Supplies & Services,Comp Software (Purch / Hire),VISIONWARE LTD,29/05/2015,"6,083.00"
Customer Services,ICT,CBAJ,Supplies & Services,Comp Software (Purch / Hire),Condeco Ltd,08/05/2015,835.00
Customer Services,ICT,CBAJ,Supplies & Services,Comp Software (Purch / Hire),Condeco Ltd,08/05/2015,417.50
Customer Services,ICT,CBAJ,Supplies & Services,Comp Software (Purch / Hire),Condeco Ltd,08/05/2015,835.00
Customer Services,ICT,CBAJ,Supplies & Services,Comp Software (Purch / Hire),Condeco Ltd,08/05/2015,835.00
Customer Services,ICT,CBAJ,Supplies & Services,Comp Software (Purch / Hire),PHOENIX SOFTWARE LTD,05/05/2015,"3,004.50"
Customer Services,ICT,CBAJ,Supplies & Services,Telephones,BRITISH TELECOMMUNICATIONS PLC,13/05/2015,"3,838.78"
Customer Services,ICT,CBAJ,Supplies & Services,Telecomms,Airband Community Internet,11/05/2015,250.00
Customer Services,ICT,CBAJ,Supplies & Services,Telecomms,Airband Community Internet,11/05/2015,250.00
Customer Services,ICT,CBAJ,Supplies & Services,Telecomms,VODAFONE LTD (70649252),21/05/2015,999.00
Customer Services,ICT,CBAJ,Supplies & Services,Telecomms,JANET (UK),12/05/2015,"13,686.00"
Customer Services,ICT,CBAJ,Supplies & Services,Telecomms,VODAFONE LTD (70649252),05/05/2015,"3,335.57"
Customer Services,ICT,CBAJ,Supplies & Services,Telecomms,Airband Community Internet,11/05/2015,250.00
Customer Services,ICT,CBAJ,Supplies & Services,Telecomms,Airband Community Internet,11/05/2015,250.00
Customer Services,ICT,CBAL,Supplies & Services,Stationery,PREMIER PAPER GROUP LTD,29/05/2015,149.25
Customer Services,ICT,CBAL,Supplies & Services,Stationery,PREMIER PAPER GROUP LTD,19/05/2015,248.75
Customer Services,ICT,CBAL,Supplies & Services,Stationery,PREMIER PAPER GROUP LTD,19/05/2015,497.50
Customer Services,ICT,CBAL,Supplies & Services,Stationery,PREMIER PAPER GROUP LTD,15/05/2015,199.00
Customer Services,ICT,CBAL,Supplies & Services,Stationery,PREMIER PAPER GROUP LTD,19/05/2015,101.12
Customer Services,ICT,CBAL,Supplies & Services,Stationery,PREMIER PAPER GROUP LTD,19/05/2015,199.00
Customer Services,ICT,CBAR,Supplies & Services,Comp Hardware (Purch / Hire),EUROPEAN ELECTRONIQUE LTD,13/05/2015,692.00
Customer Services,ICT,WCAG,Capital Expenditure,Payments to Contractor,Oaresome LTD,26/05/2015,"4,600.00"
Customer Services,ICT,WCAG,Capital Expenditure,Computer Hardware,CAPITA IT SERVICES LIMITED,15/05/2015,"253,388.00"
Customer Services,ICT,WCAG,Capital Expenditure,Computer Hardware,CAPITA IT SERVICES LIMITED,15/05/2015,"-253,388.00"
Customer Services,ICT,WCAG,Capital Expenditure,Payments to Contractor,CAPITA IT SERVICES LIMITED,12/05/2015,"214,772.00"
Customer Services,ICT,WCAG,Capital Expenditure,Computer Software,Integra Associates,15/05/2015,875.00
Customer Services,ICT,WCAG,Capital Expenditure,Computer Hardware,CAPITA IT SERVICES LIMITED,11/05/2015,"286,897.00"
Customer Services,ICT,WCAG,Capital Expenditure,Payments to Contractor,OPTEVIA,21/05/2015,"1,010.00"
Customer Services,ICT,WCAG,Capital Expenditure,Payments to Contractor,Oaresome LTD,12/05/2015,"4,370.00"
Customer Services,Library Services,LLAA,Supplies & Services,Libraries Book Fund,BERTRAMS LIBRARY SERVICES,07/05/2015,173.54
Customer Services,Library Services,LLAA,Supplies & Services,Libraries Book Fund,BERTRAMS LIBRARY SERVICES,07/05/2015,550.32
Customer Services,Library Services,LLAA,Supplies & Services,Libraries Book Fund,BERTRAMS LIBRARY SERVICES,07/05/2015,504.51
Customer Services,Library Services,LLAA,Supplies & Services,Libraries Book Fund,BERTRAMS LIBRARY SERVICES,07/05/2015,230.86
Customer Services,Library Services,LLAA,Supplies & Services,Libraries Book Fund,W F HOWES LTD,01/05/2015,228.00
Customer Services,Library Services,LLAA,Supplies & Services,Libraries Book Fund,LIBRARY MAGNA BOOKS LIMITED,01/05/2015,113.34
Customer Services,Library Services,LLAA,Supplies & Services,Libraries Book Fund,ULVERSCROFT LARGE PRINT BOOKS LIMITED,01/05/2015,196.40
Customer Services,Library Services,LLAA,Supplies & Services,Libraries Book Fund,LIBRARY MAGNA BOOKS LIMITED,06/05/2015,142.82
Customer Services,Library Services,LLAA,Supplies & Services,Libraries Book Fund,BERTRAMS LIBRARY SERVICES,07/05/2015,411.28
Customer Services,Library Services,LLAA,Supplies & Services,Libraries Book Fund,BERTRAMS LIBRARY SERVICES,07/05/2015,560.99
Customer Services,Library Services,LLAA,Supplies & Services,Libraries Book Fund,W F HOWES LTD,01/05/2015,187.20
Customer Services,Library Services,LLAA,Supplies & Services,Libraries Book Fund,LIBRARY MAGNA BOOKS LIMITED,01/05/2015,279.28
Customer Services,Library Services,LLAA,Supplies & Services,Libraries Book Fund,ULVERSCROFT LARGE PRINT BOOKS LIMITED,13/05/2015,206.40
Customer Services,Library Services,LLAA,Supplies & Services,Libraries Book Fund,BERTRAMS LIBRARY SERVICES,14/05/2015,108.69
Customer Services,Library Services,LLAA,Supplies & Services,Libraries Book Fund,LIBRARY MAGNA BOOKS LIMITED,01/05/2015,113.34
Customer Services,Library Services,LLAA,Supplies & Services,Libraries Book Fund,LIBRARY MAGNA BOOKS LIMITED,01/05/2015,174.27
Customer Services,Library Services,LLAA,Supplies & Services,Libraries Book Fund,BERTRAMS LIBRARY SERVICES,14/05/2015,760.59
Customer Services,Library Services,LLAA,Supplies & Services,Libraries Book Fund,BERTRAMS LIBRARY SERVICES,01/05/2015,119.40
Customer Services,Library Services,LLAA,Supplies & Services,Libraries Book Fund,BERTRAMS LIBRARY SERVICES,01/05/2015,113.88
Customer Services,Library Services,LLAA,Supplies & Services,Libraries Book Fund,BERTRAMS LIBRARY SERVICES,01/05/2015,521.39
Customer Services,Library Services,LLAA,Supplies & Services,Libraries Book Fund,W F HOWES LTD,01/05/2015,431.20
Customer Services,Library Services,LLAA,Supplies & Services,Libraries Book Fund,LIBRARY MAGNA BOOKS LIMITED,01/05/2015,296.78
Customer Services,Library Services,LLAA,Supplies & Services,Libraries Book Fund,ULVERSCROFT LARGE PRINT BOOKS LIMITED,14/05/2015,214.08
Customer Services,Library Services,LLAA,Supplies & Services,Libraries Book Fund,LIBRARY MAGNA BOOKS LIMITED,14/05/2015,170.02
Customer Services,Library Services,LLAA,Supplies & Services,Libraries Book Fund,BERTRAMS LIBRARY SERVICES,14/05/2015,848.53
Customer Services,Library Services,LLAA,Supplies & Services,Libraries Book Fund,BERTRAMS LIBRARY SERVICES,14/05/2015,306.19
Customer Services,Library Services,LLAA,Supplies & Services,Libraries Book Fund,BERTRAMS LIBRARY SERVICES,14/05/2015,728.19
Customer Services,Library Services,LLAA,Supplies & Services,Libraries Book Fund,BERTRAMS LIBRARY SERVICES,07/05/2015,334.07
Customer Services,Library Services,LLAA,Supplies & Services,Libraries Book Fund,BERTRAMS LIBRARY SERVICES,01/05/2015,271.97
Customer Services,Library Services,LLAA,Supplies & Services,Libraries Book Fund,BERTRAMS LIBRARY SERVICES,14/05/2015,112.15
Customer Services,Library Services,LLAA,Supplies & Services,Libraries Book Fund,BERTRAMS LIBRARY SERVICES,14/05/2015,407.82
Customer Services,Library Services,LLAA,Supplies & Services,Libraries Book Fund,OAKHILL PUBLISHING LTD,14/05/2015,245.86
Customer Services,Revenues,CBAK,Supplies & Services,Printer costs,XEROX (UK) LTD,27/05/2015,170.74
Customer Services,Revenues,CBAK,Supplies & Services,Printer costs,XEROX (UK) LTD,27/05/2015,"5,217.13"
Customer Services,Revenues,CBAK,Supplies & Services,Printing - external supplies,LEXON,05/05/2015,189.18
Customer Services,Revenues,CBAK,Supplies & Services,Printing - external supplies,LION FPG LIMITED,19/05/2015,659.00
Customer Services,Revenues,CBAK,Supplies & Services,Printing - external supplies,LEXON,08/05/2015,149.99
Customer Services,Revenues,CBAK,Supplies & Services,Printing - external supplies,Image Data Group Ltd,05/05/2015,121.00
Customer Services,Revenues,CBAK,Supplies & Services,Printing - external supplies,LION FPG LIMITED,29/05/2015,205.00
Customer Services,Revenues,CBAK,Supplies & Services,Printing - external supplies,MARKETING AT THE MILL,29/05/2015,926.00
Customer Services,Revenues,CBAK,Supplies & Services,Printing - external supplies,MARKETING AT THE MILL,29/05/2015,298.00
Customer Services,Revenues,CBAK,Supplies & Services,Printing - external supplies,LION FPG LIMITED,29/05/2015,106.00
Customer Services,Revenues,CBAK,Supplies & Services,Printing - external supplies,TUDOR PRINT & SIGNS,18/05/2015,102.00
Customer Services,Revenues,CBAK,Supplies & Services,Printing - external supplies,TUDOR PRINT & SIGNS,18/05/2015,137.00
Customer Services,Revenues,CBAK,Supplies & Services,Printing - external supplies,TUDOR PRINT & SIGNS,27/05/2015,383.00
Customer Services,Revenues,CBAK,Supplies & Services,Printing - external supplies,TUDOR PRINT & SIGNS,27/05/2015,305.00
Customer Services,Revenues,CBAK,Supplies & Services,Printing - external supplies,Collector Set Printers Ltd,29/05/2015,366.43
Customer Services,Revenues,CBAK,Supplies & Services,Stationery - paper supplies,PREMIER PAPER GROUP LTD,19/05/2015,101.12
Customer Services,Revenues,CBAK,Supplies & Services,Stationery - paper supplies,PREMIER PAPER GROUP LTD,19/05/2015,398.00
Customer Services,Revenues,COAB,Supplies & Services,Postages - courier,G FORCE EXPRESS PARCELS LTD,13/05/2015,227.91
Customer Services,Revenues,COAB,Supplies & Services,Postages - courier,FREELANCE BUSINESS ASSOCIATES,17/05/2015,300.00
Customer Services,Revenues,COAB,Supplies & Services,Postages - courier,FREELANCE BUSINESS ASSOCIATES,17/05/2015,300.00
Customer Services,Revenues,COAC,Supplies & Services,Stationery - franking machine supplies,TMR EXECUTIVE AGENCY LTD,20/05/2015,239.00
Customer Services,Revenues,COAC,Supplies & Services,Stationery - franking machine supplies,TMR EXECUTIVE AGENCY LTD,27/05/2015,239.00
Customer Services,Revenues,COAC,Supplies & Services,Postages - franking machine ,FRANCOTYP-POSTALIA LTD (POSTAGE),18/05/2015,"2,450.00"
Customer Services,Revenues,COAC,Supplies & Services,Postages - franking machine ,FRANCOTYP-POSTALIA LTD (POSTAGE),11/05/2015,"2,450.00"
Customer Services,Revenues,LRTA,Employees,Staff Training,DUDLEY METROPOLITAN BOROUGH COUNCIL,22/05/2015,300.00
Customer Services,Revenues,LRTA,Supplies & Services,Postages - courier,G FORCE EXPRESS PARCELS LTD,13/05/2015,422.28
Customer Services,Revenues,LRTA,Supplies & Services,Postages,ROYAL MAIL GROUP LTD,11/05/2015,"4,867.60"
Customer Services,Revenues,LRTA,Supplies & Services,Postages,ROYAL MAIL GROUP LTD,17/05/2015,"2,930.40"
Customer Services,Revenues,LRTA,Supplies & Services,Postages,ROYAL MAIL GROUP LTD,22/05/2015,"3,049.42"
Customer Services,Revenues,LRTB,Employees,Off Site Processing Cost,NORTHGATE INFORMATION SOLUTIONS UK LTD,18/05/2015,"2,680.00"
Customer Services,Revenues,LRTB,Supplies & Services,Comp Hardware (Purch / Hire),CCS MEDIA LIMITED,28/05/2015,292.50
Customer Services,Revenues,LRTB,Supplies & Services,Comp Software (Purch / Hire),NORTHGATE INFORMATION SOLUTIONS UK LTD,18/05/2015,"5,000.00"
Customer Services,Revenues,LRTB,Third Party Payments,Private Contractors - Collection Agent Services,ROSSENDALES LTD,13/05/2015,310.00
Customer Services,Revenues,LRTB,Third Party Payments,Private Contractors - Procurement,YPO,17/05/2015,750.00
"Development, Business & Employment","AD - Development, Business & Housing",CBAN,Premises-Related Expenditure,Hire Of Rooms,AFC TELFORD UNITED,13/05/2015,156.00
"Development, Business & Employment","AD - Development, Business & Housing",WCBE,Capital Expenditure,Payments to Contractor,VPS (UK) LTD,20/05/2015,169.08
"Development, Business & Employment",Business & Development Planning,AEAJ,Supplies & Services,Web Services,Bluehub Solutions,27/05/2015,"2,352.00"
"Development, Business & Employment",Business & Development Planning,AEAJ,Third Party Payments,Contribution To Other La's,SHROPSHIRE CHAMBER OF COMMERCE & ENTERPR,14/05/2015,"4,000.00"
"Development, Business & Employment",Business & Development Planning,DHAT,Supplies & Services,Subscriptions,HQN LTD,27/05/2015,"1,095.00"
"Development, Business & Employment",Business & Development Planning,EWAJ,Supplies & Services,Advertising,THE MIDLAND NEWS ASSOCIATION LTD,19/05/2015,129.60
"Development, Business & Employment",Business & Development Planning,WDAF,Capital Expenditure,Expenditure on loans & other financial assistance,STANNAH LIFT SERVICES LTD,28/05/2015,"1,855.00"
"Development, Business & Employment",Business & Development Planning,WDAF,Capital Expenditure,Expenditure on loans & other financial assistance,TOTAL HYGIENE LIMITED,28/05/2015,"4,421.50"
"Development, Business & Employment",Business & Development Planning,WDAF,Capital Expenditure,Expenditure on loans & other financial assistance,THE WREKIN HOUSING TRUST (INVOICES ONLY),28/05/2015,"1,600.00"
"Development, Business & Employment",Business & Development Planning,WDAF,Capital Expenditure,Expenditure on loans & other financial assistance,THE WREKIN HOUSING TRUST (INVOICES ONLY),28/05/2015,"1,600.00"
"Development, Business & Employment",Business & Development Planning,WDAF,Capital Expenditure,Expenditure on loans & other financial assistance,THE WREKIN HOUSING TRUST (INVOICES ONLY),28/05/2015,"1,600.00"
"Development, Business & Employment",Business & Development Planning,WDAF,Capital Expenditure,Expenditure on loans & other financial assistance,THE WREKIN HOUSING TRUST (INVOICES ONLY),28/05/2015,"1,600.00"
"Development, Business & Employment",Business & Development Planning,WDAF,Capital Expenditure,Expenditure on loans & other financial assistance,THE WREKIN HOUSING TRUST (INVOICES ONLY),28/05/2015,"1,600.00"
"Development, Business & Employment",Business & Development Planning,WDAF,Capital Expenditure,Expenditure on loans & other financial assistance,THE WREKIN HOUSING TRUST (INVOICES ONLY),28/05/2015,"1,600.00"
"Development, Business & Employment",Business & Development Planning,WDAF,Capital Expenditure,Expenditure on loans & other financial assistance,THE WREKIN HOUSING TRUST (INVOICES ONLY),28/05/2015,"1,600.00"
"Development, Business & Employment",Business & Development Planning,WDAF,Capital Expenditure,Expenditure on loans & other financial assistance,AWS Bathroom Supplies Ltd,28/05/2015,"3,250.00"
"Development, Business & Employment",Business & Development Planning,WDAF,Capital Expenditure,Expenditure on loans & other financial assistance,Redacted Personal Information ,28/05/2015,255.00
"Development, Business & Employment",Business & Development Planning,WDAF,Capital Expenditure,Expenditure on loans & other financial assistance,STANNAH LIFT SERVICES LTD,28/05/2015,"5,090.00"
"Development, Business & Employment",Business & Development Planning,WDAF,Capital Expenditure,Expenditure on loans & other financial assistance,STANNAH LIFT SERVICES LTD,28/05/2015,"11,541.00"
"Development, Business & Employment",Business & Development Planning,WDAF,Capital Expenditure,Expenditure on loans & other financial assistance,DMW ENVIRONMENTAL SAFETY LTD,28/05/2015,122.40
"Development, Business & Employment",Business & Development Planning,WDAF,Capital Expenditure,Expenditure on loans & other financial assistance,DMW ENVIRONMENTAL SAFETY LTD,28/05/2015,150.00
"Development, Business & Employment",Business & Development Planning,WDAF,Capital Expenditure,Expenditure on loans & other financial assistance,DMW ENVIRONMENTAL SAFETY LTD,14/05/2015,150.00
"Development, Business & Employment",Business & Development Planning,WDAF,Capital Expenditure,Expenditure on loans & other financial assistance,DMW ENVIRONMENTAL SAFETY LTD,14/05/2015,150.00
"Development, Business & Employment",Business & Development Planning,WDAF,Capital Expenditure,Expenditure on loans & other financial assistance,M J PERRINS,14/05/2015,"8,480.00"
"Development, Business & Employment",Business & Development Planning,WDAF,Capital Expenditure,Expenditure on loans & other financial assistance,DMW ENVIRONMENTAL SAFETY LTD,14/05/2015,150.00
"Development, Business & Employment",Business & Development Planning,WDAF,Capital Expenditure,Expenditure on loans & other financial assistance,ADDISON & LANS LTD,14/05/2015,"1,676.85"
"Development, Business & Employment",Business & Development Planning,WDAF,Capital Expenditure,Expenditure on loans & other financial assistance,STANNAH LIFT SERVICES LTD,14/05/2015,"4,066.00"
"Development, Business & Employment",Business & Development Planning,WDAF,Capital Expenditure,Expenditure on loans & other financial assistance,ADDISON & LANS LTD,14/05/2015,"1,995.00"
"Development, Business & Employment",Business & Development Planning,WDAF,Capital Expenditure,Expenditure on loans & other financial assistance,DMW ENVIRONMENTAL SAFETY LTD,06/05/2015,150.00
"Development, Business & Employment",Business & Development Planning,WDAF,Capital Expenditure,Expenditure on loans & other financial assistance,Redacted Personal Information ,06/05/2015,"5,487.75"
"Development, Business & Employment",Business & Development Planning,WDAF,Capital Expenditure,Expenditure on loans & other financial assistance,STANNAH LIFT SERVICES LTD,06/05/2015,"4,835.00"
"Development, Business & Employment",Business & Development Planning,WDAF,Capital Expenditure,Expenditure on loans & other financial assistance,Carillion Energy Services Ltd,06/05/2015,"1,645.00"
"Development, Business & Employment",Business & Development Planning,WDAF,Capital Expenditure,Expenditure on loans & other financial assistance,STANNAH LIFT SERVICES LTD,06/05/2015,"1,702.00"
"Development, Business & Employment",Business & Development Planning,WDAF,Capital Expenditure,Expenditure on loans & other financial assistance,M J PERRINS,27/05/2015,"7,567.56"
"Development, Business & Employment",Business & Development Planning,WDAF,Capital Expenditure,Expenditure on loans & other financial assistance,STANNAH LIFT SERVICES LTD,27/05/2015,"1,797.00"
"Development, Business & Employment",Business & Development Planning,WDAF,Capital Expenditure,Expenditure on loans & other financial assistance,MARTIN EVANS CONSTRUCTION LTD,27/05/2015,"1,691.67"
"Development, Business & Employment",Business & Development Planning,WDAF,Capital Expenditure,Expenditure on loans & other financial assistance,ADDISON & LANS LTD,27/05/2015,"2,509.50"
"Development, Business & Employment",Business & Development Planning,WDAF,Capital Expenditure,Expenditure on loans & other financial assistance,STANNAH LIFT SERVICES LTD,06/05/2015,"1,611.00"
"Development, Business & Employment",Business & Development Planning,WDAF,Capital Expenditure,Expenditure on loans & other financial assistance,M J PERRINS,06/05/2015,"9,420.00"
"Development, Business & Employment",Business & Development Planning,WDAF,Capital Expenditure,Expenditure on loans & other financial assistance,ADDISON & LANS LTD,06/05/2015,"2,289.00"
"Development, Business & Employment",Business & Development Planning,WDAF,Capital Expenditure,Expenditure on loans & other financial assistance,STANNAH LIFT SERVICES LTD,06/05/2015,"1,730.00"
"Development, Business & Employment",Business & Development Planning,WDAF,Capital Expenditure,Expenditure on loans & other financial assistance,MR O P RIGBY T/A ROSEMONT BUILDING CONTRACTORS,06/05/2015,"4,941.18"
"Development, Business & Employment",Business & Development Planning,WDAF,Capital Expenditure,Expenditure on loans & other financial assistance,THE WREKIN HOUSING TRUST (INVOICES ONLY),06/05/2015,"1,391.94"
"Development, Business & Employment",Business & Development Planning,WDAF,Capital Expenditure,Expenditure on loans & other financial assistance,THREE PINES BUILDING CO LTD,06/05/2015,"4,116.99"
"Development, Business & Employment",Business & Development Planning,WDAF,Capital Expenditure,Expenditure on loans & other financial assistance,THE WREKIN HOUSING TRUST (INVOICES ONLY),06/05/2015,"1,600.00"
"Development, Business & Employment",Business & Development Planning,WDAF,Capital Expenditure,Expenditure on loans & other financial assistance,THE WREKIN HOUSING TRUST (INVOICES ONLY),06/05/2015,"1,600.00"
"Development, Business & Employment",Business & Development Planning,WDAK,Employees,Employee Costs Recharged,PARK LANE CENTRE,06/05/2015,"1,155.00"
"Development, Business & Employment",Business & Development Planning,WDGD,Capital Expenditure,Expenditure on loans & other financial assistance,Carillion Energy Services Ltd,05/05/2015,"41,164.93"
"Development, Business & Employment",Business & Development Planning,WDGD,Capital Expenditure,Expenditure on loans & other financial assistance,Carillion Energy Services Ltd,06/05/2015,550.02
"Development, Business & Employment",Business & Development Planning,WDGD,Capital Expenditure,Expenditure on loans & other financial assistance,Carillion Energy Services Ltd,06/05/2015,183.34
"Development, Business & Employment",Business & Development Planning,WDGD,Capital Expenditure,Expenditure on loans & other financial assistance,Carillion Energy Services Ltd,06/05/2015,433.29
"Development, Business & Employment",Business & Development Planning,WDGD,Capital Expenditure,Expenditure on loans & other financial assistance,Carillion Energy Services Ltd,06/05/2015,"19,489.43"
"Development, Business & Employment",Business & Development Planning,WDGD,Capital Expenditure,Expenditure on loans & other financial assistance,Carillion Energy Services Ltd,06/05/2015,"7,000.00"
"Development, Business & Employment",Business & Development Planning,WDSB,Capital Expenditure,Payments to Contractor,SANCTUARY HOUSING ASSOCIATION (40329819),07/05/2015,"160,000.00"
"Development, Business & Employment",Business & Development Planning,WDSQ,Capital Expenditure,Payments to Contractor,JAMES LISTER & SONS LTD,20/05/2015,342.83
"Development, Business & Employment",Business & Development Planning,WDSQ,Capital Expenditure,Payments to Contractor,Churches Fire Security Ltd,07/05/2015,172.74
"Development, Business & Employment",Business & Development Planning,WDSQ,Capital Expenditure,Payments to Contractor,JAMES LISTER & SONS LTD,07/05/2015,295.50
"Development, Business & Employment",Business & Development Planning,WDST,Capital Expenditure,Fixtures & Fittings & Equipment,CHRISBEON OFFICE SUPPLIES,27/05/2015,946.74
"Development, Business & Employment",Business & Development Planning,WDST,Capital Expenditure,Fixtures & Fittings & Equipment,CHRISBEON OFFICE SUPPLIES,27/05/2015,940.80
"Development, Business & Employment",Business & Development Planning,WDST,Capital Expenditure,Fixtures & Fittings & Equipment,CHRISBEON OFFICE SUPPLIES,27/05/2015,511.80
"Development, Business & Employment",Business & Development Planning,WDST,Capital Expenditure,Fixtures & Fittings & Equipment,CHRISBEON OFFICE SUPPLIES,27/05/2015,191.71
"Development, Business & Employment",Business & Development Planning,WDST,Capital Expenditure,Fixtures & Fittings & Equipment,CHRISBEON OFFICE SUPPLIES,27/05/2015,"4,312.00"
"Development, Business & Employment",Business & Development Planning,WDST,Capital Expenditure,Fixtures & Fittings & Equipment,SPECIALIST COMPUTERS CENTRES PLC,27/05/2015,293.31
"Development, Business & Employment",Business & Development Planning,WDST,Capital Expenditure,Payments to Contractor,JORDAN LEWIS ASSOCIATES LTD,27/05/2015,800.00
"Development, Business & Employment",Business & Development Planning,WDST,Capital Expenditure,Payments to Contractor,JORDAN LEWIS ASSOCIATES LTD,27/05/2015,200.00
"Development, Business & Employment",Business & Development Planning,WDST,Capital Expenditure,Payments to Contractor,Baart Harries Newall,27/05/2015,"3,000.00"
"Development, Business & Employment",Business & Development Planning,WDST,Capital Expenditure,Payments to Contractor,SIGNS EXPRESS (TELFORD),27/05/2015,655.00
"Development, Business & Employment",Business & Development Planning,WDST,Capital Expenditure,Payments to Contractor,BUSINESS WATCH GUARDING LIMITED,27/05/2015,679.80
"Development, Business & Employment",Business & Development Planning,WDST,Capital Expenditure,Payments to Contractor,SIGNS EXPRESS (TELFORD),13/05/2015,"2,053.00"
"Development, Business & Employment",Business & Development Planning,WDST,Capital Expenditure,Fixtures & Fittings & Equipment,CDEC Limited,21/05/2015,120.00
"Development, Business & Employment",Business & Development Planning,WDST,Capital Expenditure,Fixtures & Fittings & Equipment,CDEC Limited,21/05/2015,199.00
"Development, Business & Employment",Business & Development Planning,WDST,Capital Expenditure,Fixtures & Fittings & Equipment,CDEC Limited,21/05/2015,530.00
"Development, Business & Employment",Business & Development Planning,WDST,Capital Expenditure,Fixtures & Fittings & Equipment,CDEC Limited,21/05/2015,120.00
"Development, Business & Employment",Business & Development Planning,WDST,Capital Expenditure,Payments to Contractor,E.ON (36166103),05/05/2015,988.28
"Development, Business & Employment",Business & Development Planning,WDST,Capital Expenditure,Fixtures & Fittings & Equipment,CHRISBEON OFFICE SUPPLIES,05/05/2015,"9,654.43"
"Development, Business & Employment",Business & Development Planning,WDST,Capital Expenditure,Payments to Contractor,PAVE AWAYS LTD,13/05/2015,"580,431.98"
"Development, Business & Employment",Business & Development Planning,WDSW,Capital Expenditure,Legal Fees,Bond Dickinson LLP,14/05/2015,"10,032.60"
"Development, Business & Employment",Business & Development Planning,WDSW,Capital Expenditure,Legal Fees,Bond Dickinson LLP,19/05/2015,"5,646.20"
"Development, Business & Employment",Business & Development Planning,WDSW,Capital Expenditure,External Professional Fees,ANDREW DIXON & CO,20/05/2015,700.00
"Development, Business & Employment",Business & Development Planning,WDSW,Capital Expenditure,External Professional Fees,ANDREW DIXON & CO,20/05/2015,700.00
"Development, Business & Employment",Business & Development Planning,WDSW,Capital Expenditure,External Professional Fees,ANDREW DIXON & CO,20/05/2015,700.00
"Development, Business & Employment",Business & Development Planning,WDSW,Capital Expenditure,External Professional Fees,ANDREW DIXON & CO,20/05/2015,700.00
"Development, Business & Employment",Business & Development Planning,WDSW,Capital Expenditure,Payments to Contractor,Lovell Partnerships Limited,20/05/2015,"15,190.48"
"Development, Business & Employment",Business & Development Planning,WDSW,Capital Expenditure,Payments to Contractor,Lovell Partnerships Limited,21/05/2015,"110,795.00"
"Development, Business & Employment",Business & Development Planning,WDSW,Capital Expenditure,Payments to Contractor,Treeman Tree Care,05/05/2015,"9,528.00"
"Development, Business & Employment",Business & Development Planning,WDSW,Capital Expenditure,Payments to Contractor,FITZGERALD CONTRACTORS LTD,22/05/2015,195.72
"Development, Business & Employment",Business & Development Planning,WDSW,Capital Expenditure,Payments to Contractor,Lovell Partnerships Limited,21/05/2015,"54,550.66"
"Development, Business & Employment",Development Management,DDAC,Supplies & Services,Advertising,THE MIDLAND NEWS ASSOCIATION LTD,11/05/2015,129.60
"Development, Business & Employment",Development Management,DDAD,Supplies & Services,Other Expenses,Richard Jardine Ltd,20/05/2015,119.55
"Development, Business & Employment",Development Management,DDAE,Supplies & Services,Advertising,THE MIDLAND NEWS ASSOCIATION LTD,20/05/2015,207.36
"Development, Business & Employment",Development Management,DDAE,Supplies & Services,Advertising,THE MIDLAND NEWS ASSOCIATION LTD,06/05/2015,259.20
"Development, Business & Employment",Development Management,DDAG,Employees,Agency Supply Costs,matchtech,20/05/2015,897.00
"Development, Business & Employment",Development Management,DDAG,Employees,Agency Supply Costs,matchtech,20/05/2015,586.50
"Development, Business & Employment",Development Management,DDAG,Supplies & Services,Furniture - Purchase,Complete Office Solutions,21/05/2015,790.00
"Development, Business & Employment",Development Management,DDAG,Supplies & Services,Furniture - Purchase,Complete Office Solutions,21/05/2015,369.00
"Development, Business & Employment",Development Management,DDAG,Supplies & Services,Ordnance Survey And Maps,LANDMARK INFORMATION GROUP LTD,14/05/2015,249.12
"Development, Business & Employment",Development Management,DDAG,Supplies & Services,Print & Data Services (Print Room) - Charges,RESOLUTION DATA MANAGEMENT LTD,20/05/2015,246.51
"Development, Business & Employment",Development Management,DDAG,Supplies & Services,Computer Software (Maint),MIS LOCAL GOVERNMENT SYSTEMS LTD,05/05/2015,450.00
"Development, Business & Employment",Development Management,DDAG,Supplies & Services,Computer Software (Maint),MIS LOCAL GOVERNMENT SYSTEMS LTD,06/05/2015,337.50
"Development, Business & Employment",Development Management,DDAG,Supplies & Services,Subscriptions,Planning Jungle Limited,14/05/2015,200.00
"Development, Business & Employment",Property & Design,CAAG,Supplies & Services,Printing - Other,STANFORD MARSH FINANCE LTD,07/05/2015,233.58
"Development, Business & Employment",Property & Design,CAAG,Supplies & Services,Consultants Fees,EMECH Consultants Ltd,14/05/2015,"1,026.29"
"Development, Business & Employment",Property & Design,CAAG,Supplies & Services,Other Services,WENLOCK HEALTH & SAFETY LTD,21/05/2015,260.00
"Development, Business & Employment",Property & Design,CAAG,Supplies & Services,Other Services,RICS BUSINESS SERVICES,21/05/2015,800.00
"Development, Business & Employment",Property & Design,CAAG,Supplies & Services,Other Expenses,AFC TELFORD UNITED,07/05/2015,110.83
"Development, Business & Employment",Property & Design,CAAH,Premises-Related Expenditure,R&M -Buildings DLO Charge,SECURITY WISE LTD,01/05/2015,424.00
"Development, Business & Employment",Property & Design,CAAH,Premises-Related Expenditure,R&M -Buildings DLO Charge,SECURITY WISE LTD,01/05/2015,190.00
"Development, Business & Employment",Property & Design,CAAH,Premises-Related Expenditure,R&M -Buildings DLO Charge,SECURITY WISE LTD,01/05/2015,190.00
"Development, Business & Employment",Property & Design,CAAH,Premises-Related Expenditure,R&M -Buildings DLO Charge,George Birchall Limited,07/05/2015,501.37
"Development, Business & Employment",Property & Design,CAAH,Premises-Related Expenditure,R&M -Buildings DLO Charge,SDT ELECTRICAL LTD,07/05/2015,220.00
"Development, Business & Employment",Property & Design,CAAH,Premises-Related Expenditure,R&M -Buildings DLO Charge,OSBORNE DELTA (LIGHTNING CONDUCTORS) LTD,07/05/2015,110.00
"Development, Business & Employment",Property & Design,CAAH,Premises-Related Expenditure,R&M -Buildings DLO Charge,E DAVIES & SON (TF4 3JZ),07/05/2015,531.98
"Development, Business & Employment",Property & Design,CAAH,Premises-Related Expenditure,R&M -Buildings DLO Charge,ARJOHUNTLEIGH UK,05/05/2015,181.00
"Development, Business & Employment",Property & Design,CAAH,Premises-Related Expenditure,R&M -Buildings DLO Charge,IDRIS CONTRACT FLOORING LTD,21/05/2015,-122.50
"Development, Business & Employment",Property & Design,CAAH,Premises-Related Expenditure,R&M -Buildings DLO Charge,CHUBB FIRE & SECURITY LTD,05/05/2015,351.01
"Development, Business & Employment",Property & Design,CAAH,Premises-Related Expenditure,R&M -Buildings DLO Charge,TAYLORS MECHANICAL H & P SERVICES LTD,05/05/2015,360.00
"Development, Business & Employment",Property & Design,CAAH,Premises-Related Expenditure,R&M -Buildings DLO Charge,TAYLORS MECHANICAL H & P SERVICES LTD,05/05/2015,312.00
"Development, Business & Employment",Property & Design,CAAH,Premises-Related Expenditure,R&M -Buildings DLO Charge,TAYLORS MECHANICAL H & P SERVICES LTD,05/05/2015,144.00
"Development, Business & Employment",Property & Design,CAAH,Premises-Related Expenditure,R&M -Buildings DLO Charge,George Birchall Limited,05/05/2015,131.50
"Development, Business & Employment",Property & Design,CAAH,Premises-Related Expenditure,R&M -Buildings DLO Charge,SECURITY WISE LTD,21/05/2015,160.00
"Development, Business & Employment",Property & Design,CAAH,Premises-Related Expenditure,R&M -Buildings DLO Charge,George Birchall Limited,21/05/2015,888.96
"Development, Business & Employment",Property & Design,CAAH,Premises-Related Expenditure,R&M -Buildings DLO Charge,IDRIS CONTRACT FLOORING LTD,21/05/2015,733.25
"Development, Business & Employment",Property & Design,CAAH,Premises-Related Expenditure,R&M -Buildings DLO Charge,PP ELECTRICAL SERVICES (Shropshire) Ltd,21/05/2015,348.00
"Development, Business & Employment",Property & Design,CAAH,Premises-Related Expenditure,R&M -Buildings DLO Charge,PP ELECTRICAL SERVICES (Shropshire) Ltd,21/05/2015,110.00
"Development, Business & Employment",Property & Design,CAAH,Premises-Related Expenditure,R&M -Buildings DLO Charge,TELFORD & WREKIN SERVICES LTD,21/05/2015,375.00
"Development, Business & Employment",Property & Design,CAAH,Premises-Related Expenditure,R&M -Buildings DLO Charge,JONES & HAMPTON LTD,21/05/2015,330.12
"Development, Business & Employment",Property & Design,CAAH,Premises-Related Expenditure,R&M -Buildings DLO Charge,WINDOW & DOOR CONTRACT SERVICES,21/05/2015,551.14
"Development, Business & Employment",Property & Design,CAAH,Premises-Related Expenditure,R&M -Buildings DLO Charge,WINDOW & DOOR CONTRACT SERVICES,21/05/2015,279.80
"Development, Business & Employment",Property & Design,CAAH,Premises-Related Expenditure,R&M -Buildings DLO Charge,GRANVILLE CONSTRUCTION & MAINTENANCE LTD,21/05/2015,294.00
"Development, Business & Employment",Property & Design,CAAH,Premises-Related Expenditure,R&M -Buildings DLO Charge,HYDRO-TECH ENVIRONMENTAL LLP,21/05/2015,150.00
"Development, Business & Employment",Property & Design,CAAH,Premises-Related Expenditure,R&M -Buildings DLO Charge,HYDRO-TECH ENVIRONMENTAL LLP,21/05/2015,195.00
"Development, Business & Employment",Property & Design,CAAH,Premises-Related Expenditure,R&M -Buildings DLO Charge,TAYLORS MECHANICAL H & P SERVICES LTD,21/05/2015,240.00
"Development, Business & Employment",Property & Design,CAAH,Premises-Related Expenditure,R&M -Buildings DLO Charge,ARJOHUNTLEIGH UK,21/05/2015,101.00
"Development, Business & Employment",Property & Design,CAAH,Premises-Related Expenditure,R&M -Buildings DLO Charge,SECURITY WISE LTD,21/05/2015,155.00
"Development, Business & Employment",Property & Design,CAAH,Premises-Related Expenditure,R&M -Buildings DLO Charge,A1 Glass & Glazing (Shropshire) Limited,21/05/2015,385.00
"Development, Business & Employment",Property & Design,CAAH,Premises-Related Expenditure,R&M -Buildings DLO Charge,HYDRO-TECH ENVIRONMENTAL LLP,21/05/2015,150.00
"Development, Business & Employment",Property & Design,CAAH,Premises-Related Expenditure,R&M -Buildings DLO Charge,HYDRO-TECH ENVIRONMENTAL LLP,07/05/2015,195.00
"Development, Business & Employment",Property & Design,CAAH,Premises-Related Expenditure,R&M -Buildings DLO Charge,TAYLORS MECHANICAL H & P SERVICES LTD,14/05/2015,144.00
"Development, Business & Employment",Property & Design,CAAH,Premises-Related Expenditure,R&M -Buildings DLO Charge,ARJOHUNTLEIGH UK,07/05/2015,168.00
"Development, Business & Employment",Property & Design,CAAH,Premises-Related Expenditure,R&M -Buildings DLO Charge,George Birchall Limited,07/05/2015,379.87
"Development, Business & Employment",Property & Design,CAAH,Premises-Related Expenditure,R&M -Buildings DLO Charge,PP ELECTRICAL SERVICES (Shropshire) Ltd,14/05/2015,312.95
"Development, Business & Employment",Property & Design,CAAH,Premises-Related Expenditure,R&M -Buildings DLO Charge,HYDRO-TECH ENVIRONMENTAL LLP,07/05/2015,150.00
"Development, Business & Employment",Property & Design,CAAH,Premises-Related Expenditure,R&M -Buildings DLO Charge,JOHNSON CONTROLS LTD,01/05/2015,177.50
"Development, Business & Employment",Property & Design,CAAH,Premises-Related Expenditure,R&M -Buildings DLO Charge,SECURITY WISE LTD,01/05/2015,190.00
"Development, Business & Employment",Property & Design,CAAH,Premises-Related Expenditure,R&M -Buildings DLO Charge,SECURITY WISE LTD,01/05/2015,185.00
"Development, Business & Employment",Property & Design,CAAH,Premises-Related Expenditure,R&M -Buildings DLO Charge,SECURITY WISE LTD,01/05/2015,190.00
"Development, Business & Employment",Property & Design,CAAH,Premises-Related Expenditure,R&M -Buildings DLO Charge,ARJOHUNTLEIGH UK,07/05/2015,124.00
"Development, Business & Employment",Property & Design,CAAH,Premises-Related Expenditure,R&M -Buildings DLO Charge,SECURITY WISE LTD,01/05/2015,185.00
"Development, Business & Employment",Property & Design,CAAH,Premises-Related Expenditure,R&M -Buildings DLO Charge,George Birchall Limited,01/05/2015,174.50
"Development, Business & Employment",Property & Design,CAAH,Premises-Related Expenditure,R&M -Buildings DLO Charge,SECURITY WISE LTD,01/05/2015,190.00
"Development, Business & Employment",Property & Design,CAAH,Premises-Related Expenditure,R&M -Buildings DLO Charge,RENTOKIL INITIAL UK LIMITED,01/05/2015,118.05
"Development, Business & Employment",Property & Design,CAAH,Premises-Related Expenditure,R&M -Buildings DLO Charge,George Birchall Limited,01/05/2015,336.38
"Development, Business & Employment",Property & Design,CAAH,Premises-Related Expenditure,R&M -Buildings DLO Charge,SECURITY WISE LTD,01/05/2015,318.00
"Development, Business & Employment",Property & Design,CAAH,Premises-Related Expenditure,R&M -Buildings DLO Charge,D P WILCOX & SON,12/05/2015,138.00
"Development, Business & Employment",Property & Design,CAAH,Premises-Related Expenditure,R&M -Buildings DLO Charge,JONES & HAMPTON LTD,12/05/2015,432.07
"Development, Business & Employment",Property & Design,CAAH,Premises-Related Expenditure,R&M -Buildings DLO Charge,A1 Glass & Glazing (Shropshire) Limited,12/05/2015,220.00
"Development, Business & Employment",Property & Design,CAAH,Premises-Related Expenditure,R&M -Buildings DLO Charge,PP ELECTRICAL SERVICES (Shropshire) Ltd,14/05/2015,"1,300.00"
"Development, Business & Employment",Property & Design,CAAH,Premises-Related Expenditure,R&M -Buildings DLO Charge,SECURITY WISE LTD,01/05/2015,185.00
"Development, Business & Employment",Property & Design,CAAH,Premises-Related Expenditure,R&M -Buildings DLO Charge,HYDRO-TECH ENVIRONMENTAL LLP,01/05/2015,210.00
"Development, Business & Employment",Property & Design,CAAH,Premises-Related Expenditure,R&M -Buildings DLO Charge,BRITISH GAS SERVICES (COMMERCIAL) LTD,01/05/2015,227.50
"Development, Business & Employment",Property & Design,CAAH,Premises-Related Expenditure,R&M -Buildings DLO Charge,BRITISH GAS SERVICES (COMMERCIAL) LTD,01/05/2015,292.50
"Development, Business & Employment",Property & Design,CAAH,Premises-Related Expenditure,R&M -Buildings DLO Charge,D P WILCOX & SON,12/05/2015,173.50
"Development, Business & Employment",Property & Design,CAAH,Premises-Related Expenditure,R&M -Buildings DLO Charge,SECURITY WISE LTD,01/05/2015,185.00
"Development, Business & Employment",Property & Design,CAAH,Premises-Related Expenditure,R&M -Buildings DLO Charge,SECURITY WISE LTD,01/05/2015,185.00
"Development, Business & Employment",Property & Design,CAAH,Premises-Related Expenditure,R&M -Buildings DLO Charge,SECURITY WISE LTD,01/05/2015,185.00
"Development, Business & Employment",Property & Design,CAAH,Premises-Related Expenditure,R&M -Buildings DLO Charge,SECURITY WISE LTD,01/05/2015,185.00
"Development, Business & Employment",Property & Design,CAAH,Premises-Related Expenditure,R&M -Buildings DLO Charge,HYDRO-TECH ENVIRONMENTAL LLP,01/05/2015,210.00
"Development, Business & Employment",Property & Design,CAAH,Premises-Related Expenditure,R&M -Buildings DLO Charge,PP ELECTRICAL SERVICES (Shropshire) Ltd,18/05/2015,"3,996.90"
"Development, Business & Employment",Property & Design,CAAH,Premises-Related Expenditure,R&M -Buildings DLO Charge,JONES & HAMPTON LTD,18/05/2015,"1,462.00"
"Development, Business & Employment",Property & Design,CAAH,Premises-Related Expenditure,R&M -Buildings DLO Charge,NOBRIDGE LTD,01/05/2015,490.00
"Development, Business & Employment",Property & Design,CAAH,Premises-Related Expenditure,R&M -Buildings DLO Charge,NOBRIDGE LTD,01/05/2015,245.00
"Development, Business & Employment",Property & Design,CAAH,Premises-Related Expenditure,R&M -Buildings DLO Charge,George Birchall Limited,01/05/2015,298.88
"Development, Business & Employment",Property & Design,CAAH,Premises-Related Expenditure,R&M -Buildings DLO Charge,SECURITY WISE LTD,14/05/2015,185.00
"Development, Business & Employment",Property & Design,CAAH,Premises-Related Expenditure,R&M -Buildings DLO Charge,George Birchall Limited,01/05/2015,307.20
"Development, Business & Employment",Property & Design,CAAH,Premises-Related Expenditure,R&M -Buildings DLO Charge,SECURITY WISE LTD,01/05/2015,190.00
"Development, Business & Employment",Property & Design,CAAH,Premises-Related Expenditure,R&M -Buildings DLO Charge,SECURITY WISE LTD,01/05/2015,185.00
"Development, Business & Employment",Property & Design,CAAH,Premises-Related Expenditure,R&M -Buildings DLO Charge,HYDRO-TECH ENVIRONMENTAL LLP,14/05/2015,195.00
"Development, Business & Employment",Property & Design,CAAH,Premises-Related Expenditure,R&M -Buildings DLO Charge,JONES & HAMPTON LTD,18/05/2015,"2,044.41"
"Development, Business & Employment",Property & Design,CAAH,Premises-Related Expenditure,R&M -Buildings DLO Charge,George Birchall Limited,14/05/2015,217.60
"Development, Business & Employment",Property & Design,CAAH,Premises-Related Expenditure,R&M -Buildings DLO Charge,SDT ELECTRICAL LTD,14/05/2015,265.00
"Development, Business & Employment",Property & Design,CAAH,Premises-Related Expenditure,R&M -Buildings DLO Charge,JCE & SONS LTD,14/05/2015,139.65
"Development, Business & Employment",Property & Design,CAAH,Premises-Related Expenditure,R&M -Buildings DLO Charge,PP ELECTRICAL SERVICES (Shropshire) Ltd,14/05/2015,620.00
"Development, Business & Employment",Property & Design,CAAH,Premises-Related Expenditure,R&M -Buildings DLO Charge,PP ELECTRICAL SERVICES (Shropshire) Ltd,14/05/2015,121.44
"Development, Business & Employment",Property & Design,CAAH,Premises-Related Expenditure,R&M -Buildings DLO Charge,Churches Fire Security Ltd,14/05/2015,479.28
"Development, Business & Employment",Property & Design,CAAH,Premises-Related Expenditure,R&M -Buildings DLO Charge,George Birchall Limited,14/05/2015,174.50
"Development, Business & Employment",Property & Design,CAAH,Premises-Related Expenditure,R&M -Buildings DLO Charge,DUDLEY'S GLASS (TELFORD) LTD,14/05/2015,285.00
"Development, Business & Employment",Property & Design,CAAH,Premises-Related Expenditure,R&M -Buildings DLO Charge,PP ELECTRICAL SERVICES (Shropshire) Ltd,14/05/2015,720.00
"Development, Business & Employment",Property & Design,CAAH,Premises-Related Expenditure,R&M -Buildings DLO Charge,JONES & HAMPTON LTD,14/05/2015,101.42
"Development, Business & Employment",Property & Design,CAAH,Premises-Related Expenditure,R&M -Buildings DLO Charge,George Birchall Limited,14/05/2015,"1,627.38"
"Development, Business & Employment",Property & Design,CAAH,Premises-Related Expenditure,R&M -Buildings DLO Charge,GRANVILLE CONSTRUCTION & MAINTENANCE LTD,14/05/2015,218.85
"Development, Business & Employment",Property & Design,CAAH,Premises-Related Expenditure,R&M -Buildings DLO Charge,SECURITY WISE LTD,01/05/2015,185.00
"Development, Business & Employment",Property & Design,CAAH,Premises-Related Expenditure,R&M -Buildings DLO Charge,George Birchall Limited,01/05/2015,131.50
"Development, Business & Employment",Property & Design,CAAH,Premises-Related Expenditure,R&M -Buildings DLO Charge,George Birchall Limited,14/05/2015,479.20
"Development, Business & Employment",Property & Design,CAAH,Premises-Related Expenditure,R&M -Buildings DLO Charge,JONES & HAMPTON LTD,14/05/2015,512.00
"Development, Business & Employment",Property & Design,CAAH,Premises-Related Expenditure,Service Contracts,George Birchall Limited,14/05/2015,858.35
"Development, Business & Employment",Property & Design,CAAH,Premises-Related Expenditure,Service Contracts,George Birchall Limited,21/05/2015,117.00
"Development, Business & Employment",Property & Design,COAE,Premises-Related Expenditure,R&M -Buildings DLO Charge,PP ELECTRICAL SERVICES (Shropshire) Ltd,05/05/2015,160.00
"Development, Business & Employment",Property & Design,COAE,Premises-Related Expenditure,R&M -Buildings DLO Charge,PP ELECTRICAL SERVICES (Shropshire) Ltd,05/05/2015,755.00
"Development, Business & Employment",Property & Design,COAE,Premises-Related Expenditure,R&M -Buildings DLO Charge,Lift Source (UK) Limited,05/05/2015,221.00
"Development, Business & Employment",Property & Design,COAE,Premises-Related Expenditure,R&M -Buildings DLO Charge,RMF LANDSCAPING LTD,05/05/2015,195.00
"Development, Business & Employment",Property & Design,COAE,Premises-Related Expenditure,R&M -Buildings DLO Charge,JCE & SONS LTD,11/05/2015,124.34
"Development, Business & Employment",Property & Design,COAE,Premises-Related Expenditure,R&M -Buildings DLO Charge,JONES & HAMPTON LTD,12/05/2015,175.12
"Development, Business & Employment",Property & Design,COAE,Premises-Related Expenditure,R&M -Buildings DLO Charge,JONES & HAMPTON LTD,14/05/2015,415.67
"Development, Business & Employment",Property & Design,COAE,Premises-Related Expenditure,Service Contracts,HYDRO-TECH ENVIRONMENTAL LLP,20/05/2015,150.00
"Development, Business & Employment",Property & Design,COAE,Premises-Related Expenditure,Service Contracts,SECURITY WISE LTD,05/05/2015,318.00
"Development, Business & Employment",Property & Design,COAE,Premises-Related Expenditure,Service Contracts,George Birchall Limited,05/05/2015,234.67
"Development, Business & Employment",Property & Design,COAE,Premises-Related Expenditure,Service Contracts,George Birchall Limited,05/05/2015,217.50
"Development, Business & Employment",Property & Design,COAE,Premises-Related Expenditure,Gas,West Mercia Energy (WME),28/05/2015,351.84
"Development, Business & Employment",Property & Design,COAE,Premises-Related Expenditure,Gas,West Mercia Energy (WME),14/05/2015,881.88
"Development, Business & Employment",Property & Design,COAE,Premises-Related Expenditure,Gas,West Mercia Energy (WME),14/05/2015,"1,017.78"
"Development, Business & Employment",Property & Design,COAE,Premises-Related Expenditure,Water Rates,SEVERN TRENT WATER LTD,05/05/2015,220.57
"Development, Business & Employment",Property & Design,COAE,Premises-Related Expenditure,Water Rates,SEVERN TRENT WATER LTD,11/05/2015,221.20
"Development, Business & Employment",Property & Design,COAE,Premises-Related Expenditure,Water Rates,SEVERN TRENT WATER LTD,11/05/2015,582.16
"Development, Business & Employment",Property & Design,COAE,Premises-Related Expenditure,Trade Refuse,FCC Recycling (UK) Ltd (39521486),20/05/2015,416.26
"Development, Business & Employment",Property & Design,COAG,Premises-Related Expenditure,R&M -Buildings DLO Charge,George Birchall Limited,07/05/2015,363.15
"Development, Business & Employment",Property & Design,COAG,Premises-Related Expenditure,R&M -Buildings DLO Charge,JCE & SONS LTD,07/05/2015,112.50
"Development, Business & Employment",Property & Design,COAG,Premises-Related Expenditure,R&M -Buildings DLO Charge,RCS ROOFING CONSTRUCTION SERVICES LTD,11/05/2015,646.00
"Development, Business & Employment",Property & Design,COAG,Premises-Related Expenditure,R&M -Buildings DLO Charge,ASLES (TOOL HIRE & SALES) LTD,21/05/2015,143.68
"Development, Business & Employment",Property & Design,COAG,Premises-Related Expenditure,R&M -Buildings DLO Charge,BRADLEY INDUSTRIAL SERVICES,21/05/2015,130.60
"Development, Business & Employment",Property & Design,COAG,Premises-Related Expenditure,R&M -Buildings DLO Charge,BRADLEY INDUSTRIAL SERVICES,21/05/2015,170.10
"Development, Business & Employment",Property & Design,COAG,Premises-Related Expenditure,R&M -Buildings DLO Charge,TAYLORS MECHANICAL H & P SERVICES LTD,06/05/2015,180.05
"Development, Business & Employment",Property & Design,COAG,Premises-Related Expenditure,R&M -Buildings DLO Charge,JCE & SONS LTD,07/05/2015,207.75
"Development, Business & Employment",Property & Design,COAG,Premises-Related Expenditure,R&M -Buildings DLO Charge,JCE & SONS LTD,14/05/2015,250.50
"Development, Business & Employment",Property & Design,COAG,Premises-Related Expenditure,Service Contracts,BRADLEY INDUSTRIAL SERVICES,01/05/2015,348.00
"Development, Business & Employment",Property & Design,COAG,Premises-Related Expenditure,Service Contracts,BRADLEY INDUSTRIAL SERVICES,01/05/2015,297.00
"Development, Business & Employment",Property & Design,COAG,Premises-Related Expenditure,Service Contracts,BRADLEY INDUSTRIAL SERVICES,01/05/2015,323.50
"Development, Business & Employment",Property & Design,COAG,Premises-Related Expenditure,Service Contracts,Celsius Design Limited,05/05/2015,166.33
"Development, Business & Employment",Property & Design,COAG,Premises-Related Expenditure,Service Contracts,BRADLEY INDUSTRIAL SERVICES,06/05/2015,227.00
"Development, Business & Employment",Property & Design,COAG,Premises-Related Expenditure,Service Contracts,BRADLEY INDUSTRIAL SERVICES,01/05/2015,334.00
"Development, Business & Employment",Property & Design,COAG,Premises-Related Expenditure,Service Contracts,BRADLEY INDUSTRIAL SERVICES,01/05/2015,297.00
"Development, Business & Employment",Property & Design,COAG,Premises-Related Expenditure,Service Contracts,BRADLEY INDUSTRIAL SERVICES,01/05/2015,183.00
"Development, Business & Employment",Property & Design,COAG,Premises-Related Expenditure,Service Contracts,BRADLEY INDUSTRIAL SERVICES,01/05/2015,355.00
"Development, Business & Employment",Property & Design,COAG,Premises-Related Expenditure,Service Contracts,BRADLEY INDUSTRIAL SERVICES,01/05/2015,304.00
"Development, Business & Employment",Property & Design,COAG,Premises-Related Expenditure,Service Contracts,BRADLEY INDUSTRIAL SERVICES,21/05/2015,116.25
"Development, Business & Employment",Property & Design,COAG,Premises-Related Expenditure,Service Contracts,Churches Fire Security Ltd,14/05/2015,105.30
"Development, Business & Employment",Property & Design,COAG,Premises-Related Expenditure,Service Contracts,BRADLEY INDUSTRIAL SERVICES,14/05/2015,484.00
"Development, Business & Employment",Property & Design,COAG,Premises-Related Expenditure,Service Contracts,BRADLEY INDUSTRIAL SERVICES,14/05/2015,200.50
"Development, Business & Employment",Property & Design,COAG,Premises-Related Expenditure,Service Contracts,BRADLEY INDUSTRIAL SERVICES,14/05/2015,327.00
"Development, Business & Employment",Property & Design,COAG,Premises-Related Expenditure,Service Contracts,J.A.K. WATER SYSTEMS LTD,12/05/2015,222.35
"Development, Business & Employment",Property & Design,COAG,Premises-Related Expenditure,Service Contracts,BRADLEY INDUSTRIAL SERVICES,01/05/2015,461.00
"Development, Business & Employment",Property & Design,COAK,Premises-Related Expenditure,R&M -Buildings DLO Charge,JONES & HAMPTON LTD,14/05/2015,158.67
"Development, Business & Employment",Property & Design,COAK,Premises-Related Expenditure,R&M -Buildings DLO Charge,JONES & HAMPTON LTD,14/05/2015,131.41
"Development, Business & Employment",Property & Design,COAK,Premises-Related Expenditure,R&M -Buildings DLO Charge,JCE & SONS LTD,22/05/2015,409.50
"Development, Business & Employment",Property & Design,COAK,Premises-Related Expenditure,R&M -Buildings DLO Charge,ADT FIRE & SECURITY PLC,21/05/2015,233.00
"Development, Business & Employment",Property & Design,COAK,Premises-Related Expenditure,R&M -Buildings DLO Charge,A1 Glass & Glazing (Shropshire) Limited,20/05/2015,120.00
"Development, Business & Employment",Property & Design,COAK,Premises-Related Expenditure,R&M -Buildings DLO Charge,George Birchall Limited,11/05/2015,168.00
"Development, Business & Employment",Property & Design,COAK,Premises-Related Expenditure,R&M -Buildings DLO Charge,SECURITY WISE LTD,01/05/2015,256.00
"Development, Business & Employment",Property & Design,COAK,Premises-Related Expenditure,Vandal Damage,JONES & HAMPTON LTD,14/05/2015,291.56
"Development, Business & Employment",Property & Design,COAK,Premises-Related Expenditure,Vandal Damage,GRANVILLE CONSTRUCTION & MAINTENANCE LTD,18/05/2015,"1,800.00"
"Development, Business & Employment",Property & Design,COAK,Premises-Related Expenditure,Vandal Damage,GRANVILLE CONSTRUCTION & MAINTENANCE LTD,18/05/2015,"3,200.00"
"Development, Business & Employment",Property & Design,COAK,Premises-Related Expenditure,Vandal Damage,GRANVILLE CONSTRUCTION & MAINTENANCE LTD,18/05/2015,"1,800.00"
"Development, Business & Employment",Property & Design,COAK,Premises-Related Expenditure,Vandal Damage,GRANVILLE CONSTRUCTION & MAINTENANCE LTD,18/05/2015,"3,200.00"
"Development, Business & Employment",Property & Design,COAK,Premises-Related Expenditure,Vandal Damage,JONES & HAMPTON LTD,07/05/2015,114.70
"Development, Business & Employment",Property & Design,COAK,Premises-Related Expenditure,Leasehold Rents,Redacted Personal Information ,13/05/2015,378.54
"Development, Business & Employment",Property & Design,COAK,Premises-Related Expenditure,Leasehold Rents,Redacted Personal Information ,15/05/2015,452.65
"Development, Business & Employment",Property & Design,COAK,Premises-Related Expenditure,Leasehold Rents,CHURCHILL PL LIMITED,15/05/2015,431.10
"Development, Business & Employment",Property & Design,COAK,Premises-Related Expenditure,Leasehold Rents,CHURCHILL PL LIMITED,15/05/2015,420.60
"Development, Business & Employment",Property & Design,COAK,Premises-Related Expenditure,Leasehold Rents,CHURCHILL PL LIMITED,15/05/2015,385.50
"Development, Business & Employment",Property & Design,COAK,Premises-Related Expenditure,Leasehold Rents,CHURCHILL PL LIMITED,15/05/2015,420.60
"Development, Business & Employment",Property & Design,COAK,Premises-Related Expenditure,Leasehold Rents,CHURCHILL PL LIMITED,15/05/2015,420.60
"Development, Business & Employment",Property & Design,COAK,Premises-Related Expenditure,Leasehold Rents,CHURCHILL PL LIMITED,15/05/2015,420.60
"Development, Business & Employment",Property & Design,COAK,Premises-Related Expenditure,Water Rates,SEVERN TRENT WATER LTD,07/05/2015,172.32
"Development, Business & Employment",Property & Design,COAP,Premises-Related Expenditure,R&M -Buildings DLO Charge,JCE & SONS LTD,22/05/2015,198.25
"Development, Business & Employment",Property & Design,COAP,Premises-Related Expenditure,R&M -Buildings DLO Charge,JCE & SONS LTD,22/05/2015,296.00
"Development, Business & Employment",Property & Design,COAP,Premises-Related Expenditure,R&M -Buildings DLO Charge,George Birchall Limited,05/05/2015,111.59
"Development, Business & Employment",Property & Design,COAP,Premises-Related Expenditure,R&M -Buildings DLO Charge,QUICK SPIN DOMESTICS,05/05/2015,121.52
"Development, Business & Employment",Property & Design,COAP,Premises-Related Expenditure,R&M -Buildings DLO Charge,George Birchall Limited,05/05/2015,286.85
"Development, Business & Employment",Property & Design,COAP,Premises-Related Expenditure,R&M -Buildings DLO Charge,JCE & SONS LTD,05/05/2015,604.08
"Development, Business & Employment",Property & Design,COAP,Premises-Related Expenditure,R&M -Buildings DLO Charge,Condair,22/05/2015,781.00
"Development, Business & Employment",Property & Design,COAP,Premises-Related Expenditure,R&M -Buildings DLO Charge,George Birchall Limited,22/05/2015,221.67
"Development, Business & Employment",Property & Design,COAP,Premises-Related Expenditure,R&M -Buildings DLO Charge,PP ELECTRICAL SERVICES (Shropshire) Ltd,05/05/2015,995.00
"Development, Business & Employment",Property & Design,COAP,Premises-Related Expenditure,R&M -Buildings DLO Charge,TELFORD & WREKIN SERVICES LTD,05/05/2015,"1,101.64"
"Development, Business & Employment",Property & Design,COAP,Premises-Related Expenditure,R&M -Buildings DLO Charge,TAYLORS MECHANICAL H & P SERVICES LTD,05/05/2015,"4,200.00"
"Development, Business & Employment",Property & Design,COAP,Premises-Related Expenditure,R&M -Buildings DLO Charge,ARJOHUNTLEIGH UK,05/05/2015,102.40
"Development, Business & Employment",Property & Design,COAP,Premises-Related Expenditure,R&M -Buildings DLO Charge,PP ELECTRICAL SERVICES (Shropshire) Ltd,11/05/2015,"3,400.00"
"Development, Business & Employment",Property & Design,COAP,Premises-Related Expenditure,R&M -Buildings DLO Charge,WINDOW & DOOR CONTRACT SERVICES,22/05/2015,583.20
"Development, Business & Employment",Property & Design,COAP,Premises-Related Expenditure,R&M -Buildings DLO Charge,George Birchall Limited,20/05/2015,"1,091.68"
"Development, Business & Employment",Property & Design,COAP,Premises-Related Expenditure,R&M -Buildings DLO Charge,George Birchall Limited,20/05/2015,"3,024.90"
"Development, Business & Employment",Property & Design,COAP,Premises-Related Expenditure,R&M -Buildings DLO Charge,J.A.K. WATER SYSTEMS LTD,20/05/2015,356.00
"Development, Business & Employment",Property & Design,COAP,Premises-Related Expenditure,R&M -Buildings DLO Charge,RMF LANDSCAPING LTD,11/05/2015,185.00
"Development, Business & Employment",Property & Design,COAP,Premises-Related Expenditure,R&M -Buildings DLO Charge,JONES & HAMPTON LTD,11/05/2015,651.80
"Development, Business & Employment",Property & Design,COAP,Premises-Related Expenditure,R&M -Buildings DLO Charge,Ducatt Heating Co. Ltd,11/05/2015,405.00
"Development, Business & Employment",Property & Design,COAP,Premises-Related Expenditure,R&M -Buildings DLO Charge,JCE & SONS LTD,11/05/2015,151.15
"Development, Business & Employment",Property & Design,COAP,Premises-Related Expenditure,R&M -Buildings DLO Charge,JCE & SONS LTD,11/05/2015,223.50
"Development, Business & Employment",Property & Design,COAP,Premises-Related Expenditure,R&M -Buildings DLO Charge,A1 Glass & Glazing (Shropshire) Limited,11/05/2015,265.00
"Development, Business & Employment",Property & Design,COAP,Premises-Related Expenditure,R&M -Buildings DLO Charge,JONES & HAMPTON LTD,11/05/2015,247.91
"Development, Business & Employment",Property & Design,COAP,Premises-Related Expenditure,R&M -Buildings DLO Charge,JCE & SONS LTD,11/05/2015,438.33
"Development, Business & Employment",Property & Design,COAP,Premises-Related Expenditure,R&M -Buildings DLO Charge,JONES & HAMPTON LTD,19/05/2015,591.35
"Development, Business & Employment",Property & Design,COAP,Premises-Related Expenditure,R&M -Buildings DLO Charge,JONES & HAMPTON LTD,19/05/2015,"1,025.52"
"Development, Business & Employment",Property & Design,COAP,Premises-Related Expenditure,R&M -Buildings DLO Charge,Redacted Personal Information ,19/05/2015,400.00
"Development, Business & Employment",Property & Design,COAP,Premises-Related Expenditure,R&M -Buildings DLO Charge,KRM CONTRACTORS LTD,11/05/2015,"1,600.00"
"Development, Business & Employment",Property & Design,COAP,Premises-Related Expenditure,R&M -Buildings DLO Charge,JONES & HAMPTON LTD,14/05/2015,201.90
"Development, Business & Employment",Property & Design,COAP,Premises-Related Expenditure,R&M -Buildings DLO Charge,TAYLORS MECHANICAL H & P SERVICES LTD,14/05/2015,689.50
"Development, Business & Employment",Property & Design,COAP,Premises-Related Expenditure,R&M -Buildings DLO Charge,JONES & HAMPTON LTD,14/05/2015,260.00
"Development, Business & Employment",Property & Design,COAP,Premises-Related Expenditure,R&M -Buildings DLO Charge,JONES & HAMPTON LTD,11/05/2015,104.50
"Development, Business & Employment",Property & Design,COAP,Premises-Related Expenditure,R&M -Buildings DLO Charge,George Birchall Limited,14/05/2015,366.20
"Development, Business & Employment",Property & Design,COAP,Premises-Related Expenditure,R&M -Buildings DLO Charge,George Birchall Limited,14/05/2015,110.40
"Development, Business & Employment",Property & Design,COAP,Premises-Related Expenditure,R&M -Buildings DLO Charge,George Birchall Limited,05/05/2015,155.09
"Development, Business & Employment",Property & Design,COAP,Premises-Related Expenditure,R&M -Buildings DLO Charge,WINDOW & DOOR CONTRACT SERVICES,14/05/2015,279.84
"Development, Business & Employment",Property & Design,COAP,Premises-Related Expenditure,R&M -Buildings DLO Charge,JONES & HAMPTON LTD,14/05/2015,378.32
"Development, Business & Employment",Property & Design,COAP,Premises-Related Expenditure,R&M -Buildings DLO Charge,A E Chapman & Co (Old Hill) Ltd,14/05/2015,201.98
"Development, Business & Employment",Property & Design,COAP,Premises-Related Expenditure,Service Contracts,SECURITY WISE LTD,05/05/2015,256.00
"Development, Business & Employment",Property & Design,COAP,Premises-Related Expenditure,Service Contracts,J.A.K. WATER SYSTEMS LTD,05/05/2015,183.35
"Development, Business & Employment",Property & Design,COAP,Premises-Related Expenditure,Service Contracts,J.A.K. WATER SYSTEMS LTD,05/05/2015,183.35
"Development, Business & Employment",Property & Design,COAP,Premises-Related Expenditure,Service Contracts,SECURITY WISE LTD,05/05/2015,190.00
"Development, Business & Employment",Property & Design,COAP,Premises-Related Expenditure,Service Contracts,SECURITY WISE LTD,05/05/2015,190.00
"Development, Business & Employment",Property & Design,COAP,Premises-Related Expenditure,Service Contracts,SECURITY WISE LTD,05/05/2015,120.00
"Development, Business & Employment",Property & Design,COAP,Premises-Related Expenditure,Service Contracts,SECURITY WISE LTD,05/05/2015,150.00
"Development, Business & Employment",Property & Design,COAP,Premises-Related Expenditure,Service Contracts,George Birchall Limited,05/05/2015,131.50
"Development, Business & Employment",Property & Design,COAP,Premises-Related Expenditure,Service Contracts,SECURITY WISE LTD,05/05/2015,493.00
"Development, Business & Employment",Property & Design,COAP,Premises-Related Expenditure,Service Contracts,BRITISH GAS SERVICES (COMMERCIAL) LTD,05/05/2015,487.50
"Development, Business & Employment",Property & Design,COAP,Premises-Related Expenditure,Service Contracts,SECURITY WISE LTD,05/05/2015,185.00
"Development, Business & Employment",Property & Design,COAP,Premises-Related Expenditure,Service Contracts,Automated building & energy controls,05/05/2015,"2,520.00"
"Development, Business & Employment",Property & Design,COAP,Premises-Related Expenditure,Service Contracts,George Birchall Limited,05/05/2015,273.00
"Development, Business & Employment",Property & Design,COAP,Premises-Related Expenditure,Service Contracts,SKI SLOPE SERVICES LTD,05/05/2015,590.00
"Development, Business & Employment",Property & Design,COAP,Premises-Related Expenditure,Service Contracts,George Birchall Limited,05/05/2015,387.00
"Development, Business & Employment",Property & Design,COAP,Premises-Related Expenditure,Service Contracts,SECURITY WISE LTD,05/05/2015,190.00
"Development, Business & Employment",Property & Design,COAP,Premises-Related Expenditure,Service Contracts,Celsius Design Limited,05/05/2015,166.33
"Development, Business & Employment",Property & Design,COAP,Premises-Related Expenditure,Service Contracts,ARJOHUNTLEIGH UK,05/05/2015,570.00
"Development, Business & Employment",Property & Design,COAP,Premises-Related Expenditure,Service Contracts,BRITISH GAS SERVICES (COMMERCIAL) LTD,05/05/2015,"1,235.00"
"Development, Business & Employment",Property & Design,COAP,Premises-Related Expenditure,Service Contracts,AQUALOGIC (WC) LTD,05/05/2015,156.60
"Development, Business & Employment",Property & Design,COAP,Premises-Related Expenditure,Service Contracts,SECURITY WISE LTD,05/05/2015,190.00
"Development, Business & Employment",Property & Design,COAP,Premises-Related Expenditure,Service Contracts,SECURITY WISE LTD,05/05/2015,185.00
"Development, Business & Employment",Property & Design,COAP,Premises-Related Expenditure,Service Contracts,SECURITY WISE LTD,05/05/2015,185.00
"Development, Business & Employment",Property & Design,COAP,Premises-Related Expenditure,Service Contracts,SECURITY WISE LTD,05/05/2015,256.00
"Development, Business & Employment",Property & Design,COAP,Premises-Related Expenditure,Service Contracts,Celsius Design Limited,05/05/2015,166.33
"Development, Business & Employment",Property & Design,COAP,Premises-Related Expenditure,Service Contracts,SECURITY WISE LTD,05/05/2015,185.00
"Development, Business & Employment",Property & Design,COAP,Premises-Related Expenditure,Service Contracts,SECURITY WISE LTD,05/05/2015,185.00
"Development, Business & Employment",Property & Design,COAP,Premises-Related Expenditure,Service Contracts,3CL,05/05/2015,702.00
"Development, Business & Employment",Property & Design,COAP,Premises-Related Expenditure,Service Contracts,Celsius Design Limited,05/05/2015,166.33
"Development, Business & Employment",Property & Design,COAP,Premises-Related Expenditure,Service Contracts,Celsius Design Limited,05/05/2015,166.33
"Development, Business & Employment",Property & Design,COAP,Premises-Related Expenditure,Service Contracts,SECURITY WISE LTD,05/05/2015,185.00
"Development, Business & Employment",Property & Design,COAP,Premises-Related Expenditure,Service Contracts,PP ELECTRICAL SERVICES (Shropshire) Ltd,05/05/2015,907.20
"Development, Business & Employment",Property & Design,COAP,Premises-Related Expenditure,Service Contracts,SECURITY WISE LTD,05/05/2015,190.00
"Development, Business & Employment",Property & Design,COAP,Premises-Related Expenditure,Service Contracts,J.A.K. WATER SYSTEMS LTD,11/05/2015,234.45
"Development, Business & Employment",Property & Design,COAP,Premises-Related Expenditure,Service Contracts,George Birchall Limited,11/05/2015,398.12
"Development, Business & Employment",Property & Design,COAP,Premises-Related Expenditure,Service Contracts,J.A.K. WATER SYSTEMS LTD,11/05/2015,183.33
"Development, Business & Employment",Property & Design,COAP,Premises-Related Expenditure,Service Contracts,HYDRO-TECH ENVIRONMENTAL LLP,20/05/2015,150.00
"Development, Business & Employment",Property & Design,COAP,Premises-Related Expenditure,Service Contracts,WESSEX LIFT CO. LTD,20/05/2015,440.00
"Development, Business & Employment",Property & Design,COAP,Premises-Related Expenditure,Service Contracts,HOUSE OF PLAY LTD,22/05/2015,687.45
"Development, Business & Employment",Property & Design,COAP,Premises-Related Expenditure,Service Contracts,George Birchall Limited,14/05/2015,131.50
"Development, Business & Employment",Property & Design,COAP,Premises-Related Expenditure,Service Contracts,HYDRO-TECH ENVIRONMENTAL LLP,14/05/2015,350.00
"Development, Business & Employment",Property & Design,COAP,Premises-Related Expenditure,Service Contracts,TAYLORS MECHANICAL H & P SERVICES LTD,14/05/2015,"1,584.00"
"Development, Business & Employment",Property & Design,COAP,Premises-Related Expenditure,Service Contracts,Bosch Thermotechnology Ltd,18/05/2015,"14,886.00"
"Development, Business & Employment",Property & Design,COAP,Premises-Related Expenditure,Service Contracts,George Birchall Limited,14/05/2015,128.00
"Development, Business & Employment",Property & Design,COAP,Premises-Related Expenditure,Service Contracts,George Birchall Limited,14/05/2015,"1,877.00"
"Development, Business & Employment",Property & Design,COAP,Premises-Related Expenditure,Service Contracts,SECURITY WISE LTD,05/05/2015,185.00
"Development, Business & Employment",Property & Design,COAP,Premises-Related Expenditure,Lift Maintenance,AVT COMMUNICATION SYSTEMS LTD,29/05/2015,495.00
"Development, Business & Employment",Property & Design,COAP,Premises-Related Expenditure,Electricity,BRITISH GAS SERVICES (COMMERCIAL) LTD,22/05/2015,132.48
"Development, Business & Employment",Property & Design,COAP,Premises-Related Expenditure,Electricity,STIRCHLEY & BROOKSIDE PARISH COUNCIL,12/05/2015,439.11
"Development, Business & Employment",Property & Design,COAP,Premises-Related Expenditure,Electricity,BRITISH GAS SERVICES (COMMERCIAL) LTD,22/05/2015,141.75
"Development, Business & Employment",Property & Design,COAP,Premises-Related Expenditure,Gas,BRITISH GAS BUSINESS (52464055),29/05/2015,243.61
"Development, Business & Employment",Property & Design,COAP,Premises-Related Expenditure,Gas,BUDGET GAS LTD,22/05/2015,123.16
"Development, Business & Employment",Property & Design,COAP,Premises-Related Expenditure,Gas,MIDLANDS WOOD FUEL SUPPLY LTD,12/05/2015,397.50
"Development, Business & Employment",Property & Design,COAP,Premises-Related Expenditure,Gas,STIRCHLEY & BROOKSIDE PARISH COUNCIL,12/05/2015,518.75
"Development, Business & Employment",Property & Design,COAP,Premises-Related Expenditure,Gas,BRITISH GAS SERVICES (COMMERCIAL) LTD,20/05/2015,"1,009.14"
"Development, Business & Employment",Property & Design,COAP,Premises-Related Expenditure,Solid Fuel,MIDLANDS WOOD FUEL SUPPLY LTD,14/05/2015,"1,669.49"
"Development, Business & Employment",Property & Design,COAP,Premises-Related Expenditure,Solid Fuel,MIDLANDS WOOD FUEL SUPPLY LTD,05/05/2015,825.00
"Development, Business & Employment",Property & Design,COAP,Premises-Related Expenditure,Solid Fuel,MIDLANDS WOOD FUEL SUPPLY LTD,14/05/2015,825.00
"Development, Business & Employment",Property & Design,COAP,Premises-Related Expenditure,Solid Fuel,MIDLANDS WOOD FUEL SUPPLY LTD,20/05/2015,921.02
"Development, Business & Employment",Property & Design,COAP,Premises-Related Expenditure,Solid Fuel,MIDLANDS WOOD FUEL SUPPLY LTD,22/05/2015,160.78
"Development, Business & Employment",Property & Design,COAP,Premises-Related Expenditure,Solid Fuel,MIDLANDS WOOD FUEL SUPPLY LTD,22/05/2015,401.96
"Development, Business & Employment",Property & Design,COAP,Premises-Related Expenditure,Hire Of Rooms,Admaston House Community Centre Trust,20/05/2015,"1,080.00"
"Development, Business & Employment",Property & Design,COAP,Premises-Related Expenditure,Hire Of Rooms,Admaston House Community Centre Trust,20/05/2015,"1,080.00"
"Development, Business & Employment",Property & Design,COAP,Premises-Related Expenditure,Non Domestic Rates,STIRCHLEY & BROOKSIDE PARISH COUNCIL,12/05/2015,582.00
"Development, Business & Employment",Property & Design,COAP,Premises-Related Expenditure,Water Rates,SEVERN TRENT WATER LTD,29/05/2015,163.60
"Development, Business & Employment",Property & Design,COAP,Premises-Related Expenditure,Water Rates,SEVERN TRENT WATER LTD,20/05/2015,289.20
"Development, Business & Employment",Property & Design,COAP,Premises-Related Expenditure,Water Rates,SEVERN TRENT WATER LTD,22/05/2015,-698.10
"Development, Business & Employment",Property & Design,COAP,Premises-Related Expenditure,Water Rates,SEVERN TRENT WATER LTD,22/05/2015,"1,341.82"
"Development, Business & Employment",Property & Design,COAP,Premises-Related Expenditure,Water Rates,SEVERN TRENT WATER LTD,22/05/2015,582.16
"Development, Business & Employment",Property & Design,COAP,Premises-Related Expenditure,Water Rates,SEVERN TRENT WATER LTD,11/05/2015,161.97
"Development, Business & Employment",Property & Design,COAP,Premises-Related Expenditure,Water Rates,SEVERN TRENT WATER LTD,11/05/2015,"5,274.77"
"Development, Business & Employment",Property & Design,COAP,Premises-Related Expenditure,Water Rates,SEVERN TRENT WATER LTD,11/05/2015,593.21
"Development, Business & Employment",Property & Design,COAP,Premises-Related Expenditure,Water Rates,SEVERN TRENT WATER LTD,11/05/2015,533.09
"Development, Business & Employment",Property & Design,COAP,Premises-Related Expenditure,Water Rates,SEVERN TRENT WATER LTD,11/05/2015,"3,756.44"
"Development, Business & Employment",Property & Design,COAP,Premises-Related Expenditure,Water Rates,SEVERN TRENT WATER LTD,11/05/2015,872.86
"Development, Business & Employment",Property & Design,COAP,Premises-Related Expenditure,Water Rates,SEVERN TRENT WATER LTD,14/05/2015,"3,041.31"
"Development, Business & Employment",Property & Design,COAP,Premises-Related Expenditure,Water Rates,SEVERN TRENT WATER LTD,14/05/2015,858.90
"Development, Business & Employment",Property & Design,COAP,Premises-Related Expenditure,Water Rates,SEVERN TRENT WATER LTD,14/05/2015,367.99
"Development, Business & Employment",Property & Design,COAP,Premises-Related Expenditure,Water Rates,SEVERN TRENT WATER LTD,11/05/2015,571.54
"Development, Business & Employment",Property & Design,COAP,Premises-Related Expenditure,Water Rates,SEVERN TRENT WATER LTD,11/05/2015,139.23
"Development, Business & Employment",Property & Design,COAP,Premises-Related Expenditure,Water Rates,SEVERN TRENT WATER LTD,11/05/2015,"1,176.85"
"Development, Business & Employment",Property & Design,COAP,Premises-Related Expenditure,Contract Cleaning,OCEAN CONTRACT CLEANING LTD,14/05/2015,"3,321.46"
"Development, Business & Employment",Property & Design,COAP,Premises-Related Expenditure,Contract Cleaning,OCEAN CONTRACT CLEANING LTD,14/05/2015,"2,481.79"
"Development, Business & Employment",Property & Design,COAP,Premises-Related Expenditure,Contract Cleaning,OCEAN CONTRACT CLEANING LTD,14/05/2015,"3,321.46"
"Development, Business & Employment",Property & Design,COAP,Premises-Related Expenditure,Contract Cleaning,OCEAN CONTRACT CLEANING LTD,14/05/2015,"-10,915.71"
"Development, Business & Employment",Property & Design,COAP,Premises-Related Expenditure,Contract Cleaning,Clearstone Solutions Ltd,14/05/2015,209.00
"Development, Business & Employment",Property & Design,COAP,Premises-Related Expenditure,Contract Cleaning,OCEAN CONTRACT CLEANING LTD,14/05/2015,"3,321.46"
"Development, Business & Employment",Property & Design,COAP,Premises-Related Expenditure,Contract Cleaning,CLEANIT CLEANING SERVICES,11/05/2015,170.00
"Development, Business & Employment",Property & Design,COAP,Premises-Related Expenditure,Contract Cleaning,RENTOKIL INITIAL UK LIMITED,11/05/2015,171.95
"Development, Business & Employment",Property & Design,COAP,Premises-Related Expenditure,Trade Refuse,FCC Recycling (UK) Ltd (39521486),20/05/2015,-111.21
"Development, Business & Employment",Property & Design,COAP,Premises-Related Expenditure,Trade Refuse,CYNGOR GWYNEDD COUNCIL,14/05/2015,"1,689.00"
"Development, Business & Employment",Property & Design,COAP,Premises-Related Expenditure,Trade Refuse,FCC Recycling (UK) Ltd (39521486),20/05/2015,-384.24
"Development, Business & Employment",Property & Design,COAP,Premises-Related Expenditure,Trade Refuse,FCC Recycling (UK) Ltd (39521486),20/05/2015,206.33
"Development, Business & Employment",Property & Design,COAP,Premises-Related Expenditure,Trade Refuse,FCC Recycling (UK) Ltd (39521486),20/05/2015,-354.78
"Development, Business & Employment",Property & Design,COAP,Premises-Related Expenditure,Trade Refuse,FCC Recycling (UK) Ltd (39521486),20/05/2015,-150.57
"Development, Business & Employment",Property & Design,COAP,Premises-Related Expenditure,Trade Refuse,FCC Recycling (UK) Ltd (39521486),20/05/2015,315.36
"Development, Business & Employment",Property & Design,COAP,Premises-Related Expenditure,Trade Refuse,CANNON,22/05/2015,736.32
"Development, Business & Employment",Property & Design,COAP,Premises-Related Expenditure,Building Cleaning DSO,STIRCHLEY & BROOKSIDE PARISH COUNCIL,12/05/2015,650.79
"Development, Business & Employment",Property & Design,COAP,Premises-Related Expenditure,Swimming Pool Chemicals,PHS GROUP LTD,29/05/2015,185.04
"Development, Business & Employment",Property & Design,COAP,Premises-Related Expenditure,Swimming Pool Chemicals,PHS GROUP LTD,29/05/2015,348.49
"Development, Business & Employment",Property & Design,COAP,Premises-Related Expenditure,Swimming Pool Chemicals,PHS GROUP LTD,14/05/2015,199.68
"Development, Business & Employment",Property & Design,COAP,Premises-Related Expenditure,Swimming Pool Chemicals,PHS GROUP LTD,29/05/2015,108.30
"Development, Business & Employment",Property & Design,COAP,Premises-Related Expenditure,Hygiene Services,PHS GROUP LTD,20/05/2015,"2,137.87"
"Development, Business & Employment",Property & Design,COAP,Premises-Related Expenditure,Hygiene Services,CATHEDRAL LEASING LTD,14/05/2015,392.88
"Development, Business & Employment",Property & Design,COAP,Premises-Related Expenditure,Hygiene Services,PHS GROUP LTD,22/05/2015,203.00
"Development, Business & Employment",Property & Design,COAP,Supplies & Services,Security Services,BUSINESS WATCH GUARDING LIMITED,29/05/2015,346.52
"Development, Business & Employment",Property & Design,COAP,Supplies & Services,Security Services,LEISURE SEC PLC,14/05/2015,255.00
"Development, Business & Employment",Property & Design,COAP,Supplies & Services,Security Services,BUSINESS WATCH GUARDING LIMITED,19/05/2015,490.88
"Development, Business & Employment",Property & Design,COAP,Supplies & Services,Security Services,BUSINESS WATCH GUARDING LIMITED,11/05/2015,105.88
"Development, Business & Employment",Property & Design,COAP,Supplies & Services,Security Services,BUSINESS WATCH GUARDING LIMITED,22/05/2015,592.60
"Development, Business & Employment",Property & Design,COAT,Premises-Related Expenditure,R&M -Building Other,JONES & HAMPTON LTD,14/05/2015,687.19
"Development, Business & Employment",Property & Design,COAT,Premises-Related Expenditure,R&M -Building Other,George Birchall Limited,14/05/2015,214.75
"Development, Business & Employment",Property & Design,COAT,Premises-Related Expenditure,R&M -Building Other,JONES & HAMPTON LTD,14/05/2015,142.00
"Development, Business & Employment",Property & Design,COAT,Premises-Related Expenditure,R&M -Building Other,JONES & HAMPTON LTD,14/05/2015,171.50
"Development, Business & Employment",Property & Design,COAT,Premises-Related Expenditure,R&M -Building Other,CHRIS BREEZE LTD,14/05/2015,101.50
"Development, Business & Employment",Property & Design,COAT,Premises-Related Expenditure,R&M -Building Other,PROKILL UK LIMITED,14/05/2015,150.00
"Development, Business & Employment",Property & Design,COAT,Premises-Related Expenditure,R&M -Building Other,WREKIN DRAIN SERVICES LTD,14/05/2015,170.00
"Development, Business & Employment",Property & Design,COAT,Premises-Related Expenditure,R&M -Building Other,JONES & HAMPTON LTD,07/05/2015,248.17
"Development, Business & Employment",Property & Design,COAT,Premises-Related Expenditure,R&M -Building Other,George Birchall Limited,21/05/2015,388.26
"Development, Business & Employment",Property & Design,COAT,Premises-Related Expenditure,R&M -Building Other,JONES & HAMPTON LTD,21/05/2015,107.70
"Development, Business & Employment",Property & Design,COAT,Premises-Related Expenditure,R&M -Building Other,George Birchall Limited,05/05/2015,390.33
"Development, Business & Employment",Property & Design,COAT,Premises-Related Expenditure,Water Rates,SEVERN TRENT WATER LTD,11/05/2015,"3,859.62"
